{"text_format":"1","workbook":"xlsx","n_sheets":11,"sheets":["DC","FC","SEMAINE1","SEMAINE2","SEMAINE3","SEMAINE4","SEMAINE5","RECAP PAIE","PERIODE DE PAIE","MATRICE","EXPLICATIONS"],"not_rendered":{"charts":0,"images":0,"macros":1,"external_links":0,"defined_names":9,"comments":0,"pivot_tables":0},"unopened":[],"bounds":{"document_bytes":16777216,"sheet_cells":100000,"rows_first":2000,"rows_last":500,"rows_between":2000,"halvings":0,"cell_chars":16384,"cell_head_chars":4096},"cells_cut":0,"cells_raw":0,"read":"whole","date_system":"1900"}

{"sheet":"DC","index":0,"n_rows":44,"n_cols":35,"rows_kept":44,"cut":false,"hidden":false,"merged":[[0,0,0,10]]}
["RECAP SEMAINE DU 19 AU 25/12/16"]
["atelier mécanique","présence","heures de\nrappel à 200%","heures de\n rappel à\n 300 %","heures\nsupplém\nà 150 %","grève","jour\nférié \nchômé","congé\npayé*","Réduction temps travail","repos \ncompens\nastreinte* ","astreinte\npayée\n(2h75)+absence autorisée payée","abattement\nheures\nsuplémen. non payée","repos \ncompens\nheures suppl.","repos \ncompens\nsur heures de\nnuit*","réunion\nusine","heures\nvisite \nmédicale","absence\n maladie","accident du\ntravail","congés\nconvent","congés\nnaissance","abs non rémunérée","réunion hors temps travail CE","réunion hors temps travail DP","réunion hors temps travail CHSCT","CCE","Heure délégation CE","Heure délégation DP","Heure délégation CHSCT","Indemnité \nde \nrappel","idemnité \nde\ntransport","indemnité\nde\ntransport","prime de\nresponsabilité","prime\nconditions\nparticulières","formation","total heures"]
["Noms","P","HR2","HR3","HS2","GR","JF0","CP","RTT","RC4","AA1","AHS","RC3","RC8","RIU","VM","AM","AT1","CC","CN",null,null,null,null,null,null,null,null,"IR1","IT","ITL","PR","PS","FT"]
["xxx",null,null,null,null,null,null,null,null,null,1,null,null,null,null,null,null,null,null,null,null,null,null,null,null,null,null,null,null,null,null,null,null,null,{"$f":"B4+H4+I4+J4+M4+N4+AH4","v":0}]
["xxx",null,null,null,null,null,null,null,null,null,1,null,null,null,null,null,null,null,null,null,null,null,null,null,null,null,null,null,null,null,null,null,null,null,{"$f":"B5+H5+I5+J5+M5+N5+AH5","v":0}]
["xxx",null,null,null,null,null,null,null,null,null,1,null,null,null,null,null,null,null,null,null,null,null,null,null,null,null,null,null,null,null,null,null,null,null,0]
["xxx",null,null,null,null,null,null,null,null,null,1,null,null,null,null,null,null,null,null,null,null,null,null,null,null,null,null,null,null,null,null,null,null,null,0]
["xxx",null,null,null,null,null,null,null,null,null,1,null,null,null,null,null,null,null,null,null,null,null,null,null,null,null,null,null,null,null,null,null,null,null,0]
["xxx",null,null,null,null,null,null,null,null,null,1,null,null,null,null,null,null,null,null,null,null,null,null,null,null,null,null,null,null,null,null,null,null,null,0]
["xxx",null,null,null,null,null,null,null,null,null,1,null,null,null,null,null,null,null,null,null,null,null,null,null,null,null,null,null,null,null,null,null,null,null,0]
["xxx",null,null,null,null,null,null,null,null,null,1,null,null,null,null,null,null,null,null,null,null,null,null,null,null,null,null,null,null,null,null,null,null,null,0]
["xxx",null,null,null,null,null,null,null,null,null,1,null,null,null,null,null,null,null,null,null,null,null,null,null,null,null,null,null,null,null,null,null,null,null,0]
["xxx",null,null,null,null,null,null,null,null,null,1,null,null,null,null,null,null,null,null,null,null,null,null,null,null,null,null,null,null,null,null,null,null,null,0]
["xxx",null,null,null,null,null,null,null,null,null,1,null,null,null,null,null,null,null,null,null,null,null,null,null,null,null,null,null,null,null,null,null,null,null,0]
["xxx",null,null,null,null,null,null,null,null,null,1,null,null,null,null,null,null,null,null,null,null,null,null,null,null,null,null,null,null,null,null,null,null,null,0]
["xxx",null,null,null,null,null,null,null,null,null,1,null,null,null,null,null,null,null,null,null,null,null,null,null,null,null,null,null,null,null,null,null,null,null,0]
["xxx",null,null,null,null,null,null,null,null,null,1,null,null,null,null,null,null,null,null,null,null,null,null,null,null,null,null,null,null,null,null,null,null,null,0]
["xxx",null,null,null,null,null,null,null,null,null,1,null,null,null,null,null,null,null,null,null,null,null,null,null,null,null,null,null,null,null,null,null,null,null,0]
["xxx",null,null,null,null,null,null,null,null,null,1,null,null,null,null,null,null,null,null,null,null,null,null,null,null,null,null,null,null,null,null,null,null,null,0]
["xxx",null,null,null,null,null,null,null,null,null,1,null,null,null,null,null,null,null,null,null,null,null,null,null,null,null,null,null,null,null,null,null,null,null,0]
["atelier électrique"]
["xxx",null,null,null,null,null,null,null,null,null,null,null,null,null,null,null,null,null,null,null,null,null,null,null,null,null,null,null,null,null,null,null,null,null,0]
["xxx",null,null,null,null,null,null,null,null,null,null,null,null,null,null,null,null,null,null,null,null,null,null,null,null,null,null,null,null,null,null,null,null,null,0]
["xxx",null,null,null,null,null,null,null,null,null,null,null,null,null,null,null,null,null,null,null,null,null,null,null,null,null,null,null,null,null,null,null,null,null,0]
["xxx",null,null,null,null,null,null,null,null,null,null,null,null,null,null,null,null,null,null,null,null,null,null,null,null,null,null,null,null,null,null,null,null,null,0]
["xxx",null,null,null,null,null,null,null,null,null,null,null,null,null,null,null,null,null,null,null,null,null,null,null,null,null,null,null,null,null,null,null,null,null,0]
["xxx",null,null,null,null,null,null,null,null,null,null,null,null,null,null,null,null,null,null,null,null,null,null,null,null,null,null,null,null,null,null,null,null,null,0]
["xxx",null,null,null,null,null,null,null,null,null,null,null,null,null,null,null,null,null,null,null,null,null,null,null,null,null,null,null,null,null,null,null,null,null,0]
["xxx",null,null,null,null,null,null,null,null,null,null,null,null,null,null,null,null,null,null,null,null,null,null,null,null,null,null,null,null,null,null,null,null,null,0]
["xxx",null,null,null,null,null,null,null,null,null,null,null,null,null,null,null,null,null,null,null,null,null,null,null,null,null,null,null,null,null,null,null,null,null,0]
["xxx",null,null,null,null,null,null,null,null,null,null,null,null,null,null,null,null,null,null,null,null,null,null,null,null,null,null,null,null,null,null,null,null,null,0]
["Magasin général"]
["xxx",null,null,null,null,null,null,null,null,null,null,null,null,null,null,null,null,null,null,null,null,null,null,null,null,null,null,null,null,null,null,null,null,null,0]
["xxx",null,null,null,null,null,null,null,null,null,null,null,null,null,null,null,null,null,null,null,null,null,null,null,null,null,null,null,null,null,null,null,null,null,0]
["xxx",null,null,null,null,null,null,null,null,null,null,null,null,null,null,null,null,null,null,null,null,null,null,null,null,null,null,null,null,null,null,null,null,null,0]
["xxx",null,null,null,null,null,null,null,null,null,null,null,null,null,null,null,null,null,null,null,null,null,null,null,null,null,null,null,null,null,null,null,null,null,0]
["TOTAL ",{"$f":"SUM(B4:B36)","v":0},{"$f":"SUM(C4:C36)","v":0},0,0,0,0,0,0,0,17,0,0,0,0,0,0,0,0,0,0,0,0,0,0,0,0,0,0,0,0,0,0,0,0]
[]
[]
[]
["total des heures"]
["total ENT"]
["magasin "]
["heures GESINDUS"]

{"sheet":"FC","index":1,"n_rows":44,"n_cols":35,"rows_kept":44,"cut":false,"hidden":false,"merged":[[0,0,0,10]]}
["RECAP SEMAINE DU 19 AU 25/12/16"]
["atelier mécanique","présence","heures de\nrappel à 200%","heures de\n rappel à\n 300 %","heures\nsupplém\nà 150 %","grève","jour\nférié \nchômé","congé\npayé*","Réduction temps travail","repos \ncompens\nastreinte* ","astreinte\npayée\n(2h75)+absence autorisée payée","abattement\nheures\nsuplémen. non payée","repos \ncompens\nheures suppl.","repos \ncompens\nsur heures de\nnuit*","réunion\nusine","heures\nvisite \nmédicale","absence\n maladie","accident du\ntravail","congés\nconvent","congés\nnaissance","abs non rémunérée","réunion hors temps travail CE","réunion hors temps travail DP","réunion hors temps travail CHSCT","CCE","Heure délégation CE","Heure délégation DP","Heure délégation CHSCT","Indemnité \nde \nrappel","idemnité \nde\ntransport","indemnité\nde\ntransport","prime de\nresponsabilité","prime\nconditions\nparticulières","formation","total heures"]
["Noms","P","HR2","HR3","HS2","GR","JF0","CP","RTT","RC4","AA1","AHS","RC3","RC8","RIU","VM","AM","AT1","CC","CN",null,null,null,null,null,null,null,null,"IR1","IT","ITL","PR","PS","FT"]
["xxx",null,null,null,null,null,null,null,null,null,1,null,null,null,null,null,null,null,null,null,null,null,null,null,null,null,null,null,null,null,null,null,null,null,{"$f":"B4+H4+I4+J4+M4+N4+AH4","v":0}]
["xxx",null,null,null,null,null,null,null,null,null,1,null,null,null,null,null,null,null,null,null,null,null,null,null,null,null,null,null,null,null,null,null,null,null,{"$f":"B5+H5+I5+J5+M5+N5+AH5","v":0}]
["xxx",null,null,null,null,null,null,null,null,null,1,null,null,null,null,null,null,null,null,null,null,null,null,null,null,null,null,null,null,null,null,null,null,null,0]
["xxx",null,null,null,null,null,null,null,null,null,1,null,null,null,null,null,null,null,null,null,null,null,null,null,null,null,null,null,null,null,null,null,null,null,0]
["xxx",null,null,null,null,null,null,null,null,null,1,null,null,null,null,null,null,null,null,null,null,null,null,null,null,null,null,null,null,null,null,null,null,null,0]
["xxx",null,null,null,null,null,null,null,null,null,1,null,null,null,null,null,null,null,null,null,null,null,null,null,null,null,null,null,null,null,null,null,null,null,0]
["xxx",null,null,null,null,null,null,null,null,null,1,null,null,null,null,null,null,null,null,null,null,null,null,null,null,null,null,null,null,null,null,null,null,null,0]
["xxx",null,null,null,null,null,null,null,null,null,1,null,null,null,null,null,null,null,null,null,null,null,null,null,null,null,null,null,null,null,null,null,null,null,0]
["xxx",null,null,null,null,null,null,null,null,null,1,null,null,null,null,null,null,null,null,null,null,null,null,null,null,null,null,null,null,null,null,null,null,null,0]
["xxx",null,null,null,null,null,null,null,null,null,1,null,null,null,null,null,null,null,null,null,null,null,null,null,null,null,null,null,null,null,null,null,null,null,0]
["xxx",null,null,null,null,null,null,null,null,null,1,null,null,null,null,null,null,null,null,null,null,null,null,null,null,null,null,null,null,null,null,null,null,null,0]
["xxx",null,null,null,null,null,null,null,null,null,1,null,null,null,null,null,null,null,null,null,null,null,null,null,null,null,null,null,null,null,null,null,null,null,0]
["xxx",null,null,null,null,null,null,null,null,null,1,null,null,null,null,null,null,null,null,null,null,null,null,null,null,null,null,null,null,null,null,null,null,null,0]
["xxx",null,null,null,null,null,null,null,null,null,1,null,null,null,null,null,null,null,null,null,null,null,null,null,null,null,null,null,null,null,null,null,null,null,0]
["xxx",null,null,null,null,null,null,null,null,null,1,null,null,null,null,null,null,null,null,null,null,null,null,null,null,null,null,null,null,null,null,null,null,null,0]
["xxx",null,null,null,null,null,null,null,null,null,1,null,null,null,null,null,null,null,null,null,null,null,null,null,null,null,null,null,null,null,null,null,null,null,0]
["xxx",null,null,null,null,null,null,null,null,null,1,null,null,null,null,null,null,null,null,null,null,null,null,null,null,null,null,null,null,null,null,null,null,null,0]
["atelier électrique"]
["xxx",null,null,null,null,null,null,null,null,null,null,null,null,null,null,null,null,null,null,null,null,null,null,null,null,null,null,null,null,null,null,null,null,null,0]
["xxx",null,null,null,null,null,null,null,null,null,null,null,null,null,null,null,null,null,null,null,null,null,null,null,null,null,null,null,null,null,null,null,null,null,0]
["xxx",null,null,null,null,null,null,null,null,null,null,null,null,null,null,null,null,null,null,null,null,null,null,null,null,null,null,null,null,null,null,null,null,null,0]
["xxx",null,null,null,null,null,null,null,null,null,null,null,null,null,null,null,null,null,null,null,null,null,null,null,null,null,null,null,null,null,null,null,null,null,0]
["xxx",null,null,null,null,null,null,null,null,null,null,null,null,null,null,null,null,null,null,null,null,null,null,null,null,null,null,null,null,null,null,null,null,null,0]
["xxx",null,null,null,null,null,null,null,null,null,null,null,null,null,null,null,null,null,null,null,null,null,null,null,null,null,null,null,null,null,null,null,null,null,0]
["xxx",null,null,null,null,null,null,null,null,null,null,null,null,null,null,null,null,null,null,null,null,null,null,null,null,null,null,null,null,null,null,null,null,null,0]
["xxx",null,null,null,null,null,null,null,null,null,null,null,null,null,null,null,null,null,null,null,null,null,null,null,null,null,null,null,null,null,null,null,null,null,0]
["xxx",null,null,null,null,null,null,null,null,null,null,null,null,null,null,null,null,null,null,null,null,null,null,null,null,null,null,null,null,null,null,null,null,null,0]
["xxx",null,null,null,null,null,null,null,null,null,null,null,null,null,null,null,null,null,null,null,null,null,null,null,null,null,null,null,null,null,null,null,null,null,0]
["Magasin général"]
["xxx",null,null,null,null,null,null,null,null,null,null,null,null,null,null,null,null,null,null,null,null,null,null,null,null,null,null,null,null,null,null,null,null,null,0]
["xxx",null,null,null,null,null,null,null,null,null,null,null,null,null,null,null,null,null,null,null,null,null,null,null,null,null,null,null,null,null,null,null,null,null,0]
["xxx",null,null,null,null,null,null,null,null,null,null,null,null,null,null,null,null,null,null,null,null,null,null,null,null,null,null,null,null,null,null,null,null,null,0]
["xxx",null,null,null,null,null,null,null,null,null,null,null,null,null,null,null,null,null,null,null,null,null,null,null,null,null,null,null,null,null,null,null,null,null,0]
["TOTAL ",{"$f":"SUM(B4:B36)","v":0},{"$f":"SUM(C4:C36)","v":0},0,0,0,0,0,0,0,17,0,0,0,0,0,0,0,0,0,0,0,0,0,0,0,0,0,0,0,0,0,0,0,0]
[]
[]
[]
["total des heures"]
["total ENT"]
["magasin "]
["heures GESINDUS"]

{"sheet":"SEMAINE1","index":2,"n_rows":44,"n_cols":35,"rows_kept":44,"cut":false,"hidden":false,"merged":[[0,0,0,10]]}
["RECAP SEMAINE DU 19 AU 25/12/16"]
["atelier mécanique","présence","heures de\nrappel à 200%","heures de\n rappel à\n 300 %","heures\nsupplém\nà 150 %","grève","jour\nférié \nchômé","congé\npayé*","Réduction temps travail","repos \ncompens\nastreinte* ","astreinte\npayée\n(2h75)+absence autorisée payée","abattement\nheures\nsuplémen. non payée","repos \ncompens\nheures suppl.","repos \ncompens\nsur heures de\nnuit*","réunion\nusine","heures\nvisite \nmédicale","absence\n maladie","accident du\ntravail","congés\nconvent","congés\nnaissance","abs non rémunérée","réunion hors temps travail CE","réunion hors temps travail DP","réunion hors temps travail CHSCT","CCE","Heure délégation CE","Heure délégation DP","Heure délégation CHSCT","Indemnité \nde \nrappel","idemnité \nde\ntransport","indemnité\nde\ntransport","prime de\nresponsabilité","prime\nconditions\nparticulières","formation","total heures"]
["Noms","P","HR2","HR3","HS2","GR","JF0","CP","RTT","RC4","AA1","AHS","RC3","RC8","RIU","VM","AM","AT1","CC","CN",null,null,null,null,null,null,null,null,"IR1","IT","ITL","PR","PS","FT"]
["xxx",{"$f":"SUM(DC:FC!B4)","v":0},{"$f":"SUM(DC:FC!C4)","v":0},{"$f":"SUM(DC:FC!D4)","v":0},{"$f":"SUM(DC:FC!E4)","v":0},{"$f":"SUM(DC:FC!F4)","v":0},{"$f":"SUM(DC:FC!G4)","v":0},{"$f":"SUM(DC:FC!H4)","v":0},{"$f":"SUM(DC:FC!I4)","v":0},{"$f":"SUM(DC:FC!J4)","v":0},{"$f":"SUM(DC:FC!K4)","v":2},{"$f":"SUM(DC:FC!L4)","v":0},{"$f":"SUM(DC:FC!M4)","v":0},{"$f":"SUM(DC:FC!N4)","v":0},{"$f":"SUM(DC:FC!O4)","v":0},{"$f":"SUM(DC:FC!P4)","v":0},{"$f":"SUM(DC:FC!Q4)","v":0},{"$f":"SUM(DC:FC!R4)","v":0},{"$f":"SUM(DC:FC!S4)","v":0},{"$f":"SUM(DC:FC!T4)","v":0},{"$f":"SUM(DC:FC!U4)","v":0},{"$f":"SUM(DC:FC!V4)","v":0},{"$f":"SUM(DC:FC!W4)","v":0},{"$f":"SUM(DC:FC!X4)","v":0},{"$f":"SUM(DC:FC!Y4)","v":0},{"$f":"SUM(DC:FC!Z4)","v":0},{"$f":"SUM(DC:FC!AA4)","v":0},{"$f":"SUM(DC:FC!AB4)","v":0},{"$f":"SUM(DC:FC!AC4)","v":0},{"$f":"SUM(DC:FC!AD4)","v":0},{"$f":"SUM(DC:FC!AE4)","v":0},{"$f":"SUM(DC:FC!AF4)","v":0},{"$f":"SUM(DC:FC!AG4)","v":0},{"$f":"SUM(DC:FC!AH4)","v":0},{"$f":"B4+H4+I4+J4+M4+N4+AH4","v":0}]
["xxx",{"$f":"SUM(DC:FC!B5)","v":0},{"$f":"SUM(DC:FC!C5)","v":0},{"$f":"SUM(DC:FC!D5)","v":0},{"$f":"SUM(DC:FC!E5)","v":0},{"$f":"SUM(DC:FC!F5)","v":0},{"$f":"SUM(DC:FC!G5)","v":0},{"$f":"SUM(DC:FC!H5)","v":0},{"$f":"SUM(DC:FC!I5)","v":0},{"$f":"SUM(DC:FC!J5)","v":0},{"$f":"SUM(DC:FC!K5)","v":2},{"$f":"SUM(DC:FC!L5)","v":0},{"$f":"SUM(DC:FC!M5)","v":0},{"$f":"SUM(DC:FC!N5)","v":0},{"$f":"SUM(DC:FC!O5)","v":0},{"$f":"SUM(DC:FC!P5)","v":0},{"$f":"SUM(DC:FC!Q5)","v":0},{"$f":"SUM(DC:FC!R5)","v":0},{"$f":"SUM(DC:FC!S5)","v":0},{"$f":"SUM(DC:FC!T5)","v":0},{"$f":"SUM(DC:FC!U5)","v":0},{"$f":"SUM(DC:FC!V5)","v":0},{"$f":"SUM(DC:FC!W5)","v":0},{"$f":"SUM(DC:FC!X5)","v":0},{"$f":"SUM(DC:FC!Y5)","v":0},{"$f":"SUM(DC:FC!Z5)","v":0},{"$f":"SUM(DC:FC!AA5)","v":0},{"$f":"SUM(DC:FC!AB5)","v":0},{"$f":"SUM(DC:FC!AC5)","v":0},{"$f":"SUM(DC:FC!AD5)","v":0},{"$f":"SUM(DC:FC!AE5)","v":0},{"$f":"SUM(DC:FC!AF5)","v":0},{"$f":"SUM(DC:FC!AG5)","v":0},{"$f":"SUM(DC:FC!AH5)","v":0},{"$f":"B5+H5+I5+J5+M5+N5+AH5","v":0}]
["xxx",{"$f":"SUM(DC:FC!B6)","v":0},{"$f":"SUM(DC:FC!C6)","v":0},{"$f":"SUM(DC:FC!D6)","v":0},{"$f":"SUM(DC:FC!E6)","v":0},{"$f":"SUM(DC:FC!F6)","v":0},{"$f":"SUM(DC:FC!G6)","v":0},{"$f":"SUM(DC:FC!H6)","v":0},{"$f":"SUM(DC:FC!I6)","v":0},{"$f":"SUM(DC:FC!J6)","v":0},{"$f":"SUM(DC:FC!K6)","v":2},{"$f":"SUM(DC:FC!L6)","v":0},{"$f":"SUM(DC:FC!M6)","v":0},{"$f":"SUM(DC:FC!N6)","v":0},{"$f":"SUM(DC:FC!O6)","v":0},{"$f":"SUM(DC:FC!P6)","v":0},{"$f":"SUM(DC:FC!Q6)","v":0},{"$f":"SUM(DC:FC!R6)","v":0},{"$f":"SUM(DC:FC!S6)","v":0},{"$f":"SUM(DC:FC!T6)","v":0},{"$f":"SUM(DC:FC!U6)","v":0},{"$f":"SUM(DC:FC!V6)","v":0},{"$f":"SUM(DC:FC!W6)","v":0},{"$f":"SUM(DC:FC!X6)","v":0},{"$f":"SUM(DC:FC!Y6)","v":0},{"$f":"SUM(DC:FC!Z6)","v":0},{"$f":"SUM(DC:FC!AA6)","v":0},{"$f":"SUM(DC:FC!AB6)","v":0},{"$f":"SUM(DC:FC!AC6)","v":0},{"$f":"SUM(DC:FC!AD6)","v":0},{"$f":"SUM(DC:FC!AE6)","v":0},{"$f":"SUM(DC:FC!AF6)","v":0},{"$f":"SUM(DC:FC!AG6)","v":0},{"$f":"SUM(DC:FC!AH6)","v":0},0]
["xxx",{"$f":"SUM(DC:FC!B7)","v":0},{"$f":"SUM(DC:FC!C7)","v":0},{"$f":"SUM(DC:FC!D7)","v":0},{"$f":"SUM(DC:FC!E7)","v":0},{"$f":"SUM(DC:FC!F7)","v":0},{"$f":"SUM(DC:FC!G7)","v":0},{"$f":"SUM(DC:FC!H7)","v":0},{"$f":"SUM(DC:FC!I7)","v":0},{"$f":"SUM(DC:FC!J7)","v":0},{"$f":"SUM(DC:FC!K7)","v":2},{"$f":"SUM(DC:FC!L7)","v":0},{"$f":"SUM(DC:FC!M7)","v":0},{"$f":"SUM(DC:FC!N7)","v":0},{"$f":"SUM(DC:FC!O7)","v":0},{"$f":"SUM(DC:FC!P7)","v":0},{"$f":"SUM(DC:FC!Q7)","v":0},{"$f":"SUM(DC:FC!R7)","v":0},{"$f":"SUM(DC:FC!S7)","v":0},{"$f":"SUM(DC:FC!T7)","v":0},{"$f":"SUM(DC:FC!U7)","v":0},{"$f":"SUM(DC:FC!V7)","v":0},{"$f":"SUM(DC:FC!W7)","v":0},{"$f":"SUM(DC:FC!X7)","v":0},{"$f":"SUM(DC:FC!Y7)","v":0},{"$f":"SUM(DC:FC!Z7)","v":0},{"$f":"SUM(DC:FC!AA7)","v":0},{"$f":"SUM(DC:FC!AB7)","v":0},{"$f":"SUM(DC:FC!AC7)","v":0},{"$f":"SUM(DC:FC!AD7)","v":0},{"$f":"SUM(DC:FC!AE7)","v":0},{"$f":"SUM(DC:FC!AF7)","v":0},{"$f":"SUM(DC:FC!AG7)","v":0},{"$f":"SUM(DC:FC!AH7)","v":0},0]
["xxx",{"$f":"SUM(DC:FC!B8)","v":0},{"$f":"SUM(DC:FC!C8)","v":0},{"$f":"SUM(DC:FC!D8)","v":0},{"$f":"SUM(DC:FC!E8)","v":0},{"$f":"SUM(DC:FC!F8)","v":0},{"$f":"SUM(DC:FC!G8)","v":0},{"$f":"SUM(DC:FC!H8)","v":0},{"$f":"SUM(DC:FC!I8)","v":0},{"$f":"SUM(DC:FC!J8)","v":0},{"$f":"SUM(DC:FC!K8)","v":2},{"$f":"SUM(DC:FC!L8)","v":0},{"$f":"SUM(DC:FC!M8)","v":0},{"$f":"SUM(DC:FC!N8)","v":0},{"$f":"SUM(DC:FC!O8)","v":0},{"$f":"SUM(DC:FC!P8)","v":0},{"$f":"SUM(DC:FC!Q8)","v":0},{"$f":"SUM(DC:FC!R8)","v":0},{"$f":"SUM(DC:FC!S8)","v":0},{"$f":"SUM(DC:FC!T8)","v":0},{"$f":"SUM(DC:FC!U8)","v":0},{"$f":"SUM(DC:FC!V8)","v":0},{"$f":"SUM(DC:FC!W8)","v":0},{"$f":"SUM(DC:FC!X8)","v":0},{"$f":"SUM(DC:FC!Y8)","v":0},{"$f":"SUM(DC:FC!Z8)","v":0},{"$f":"SUM(DC:FC!AA8)","v":0},{"$f":"SUM(DC:FC!AB8)","v":0},{"$f":"SUM(DC:FC!AC8)","v":0},{"$f":"SUM(DC:FC!AD8)","v":0},{"$f":"SUM(DC:FC!AE8)","v":0},{"$f":"SUM(DC:FC!AF8)","v":0},{"$f":"SUM(DC:FC!AG8)","v":0},{"$f":"SUM(DC:FC!AH8)","v":0},0]
["xxx",{"$f":"SUM(DC:FC!B9)","v":0},{"$f":"SUM(DC:FC!C9)","v":0},{"$f":"SUM(DC:FC!D9)","v":0},{"$f":"SUM(DC:FC!E9)","v":0},{"$f":"SUM(DC:FC!F9)","v":0},{"$f":"SUM(DC:FC!G9)","v":0},{"$f":"SUM(DC:FC!H9)","v":0},{"$f":"SUM(DC:FC!I9)","v":0},{"$f":"SUM(DC:FC!J9)","v":0},{"$f":"SUM(DC:FC!K9)","v":2},{"$f":"SUM(DC:FC!L9)","v":0},{"$f":"SUM(DC:FC!M9)","v":0},{"$f":"SUM(DC:FC!N9)","v":0},{"$f":"SUM(DC:FC!O9)","v":0},{"$f":"SUM(DC:FC!P9)","v":0},{"$f":"SUM(DC:FC!Q9)","v":0},{"$f":"SUM(DC:FC!R9)","v":0},{"$f":"SUM(DC:FC!S9)","v":0},{"$f":"SUM(DC:FC!T9)","v":0},{"$f":"SUM(DC:FC!U9)","v":0},{"$f":"SUM(DC:FC!V9)","v":0},{"$f":"SUM(DC:FC!W9)","v":0},{"$f":"SUM(DC:FC!X9)","v":0},{"$f":"SUM(DC:FC!Y9)","v":0},{"$f":"SUM(DC:FC!Z9)","v":0},{"$f":"SUM(DC:FC!AA9)","v":0},{"$f":"SUM(DC:FC!AB9)","v":0},{"$f":"SUM(DC:FC!AC9)","v":0},{"$f":"SUM(DC:FC!AD9)","v":0},{"$f":"SUM(DC:FC!AE9)","v":0},{"$f":"SUM(DC:FC!AF9)","v":0},{"$f":"SUM(DC:FC!AG9)","v":0},{"$f":"SUM(DC:FC!AH9)","v":0},0]
["xxx",{"$f":"SUM(DC:FC!B10)","v":0},{"$f":"SUM(DC:FC!C10)","v":0},{"$f":"SUM(DC:FC!D10)","v":0},{"$f":"SUM(DC:FC!E10)","v":0},{"$f":"SUM(DC:FC!F10)","v":0},{"$f":"SUM(DC:FC!G10)","v":0},{"$f":"SUM(DC:FC!H10)","v":0},{"$f":"SUM(DC:FC!I10)","v":0},{"$f":"SUM(DC:FC!J10)","v":0},{"$f":"SUM(DC:FC!K10)","v":2},{"$f":"SUM(DC:FC!L10)","v":0},{"$f":"SUM(DC:FC!M10)","v":0},{"$f":"SUM(DC:FC!N10)","v":0},{"$f":"SUM(DC:FC!O10)","v":0},{"$f":"SUM(DC:FC!P10)","v":0},{"$f":"SUM(DC:FC!Q10)","v":0},{"$f":"SUM(DC:FC!R10)","v":0},{"$f":"SUM(DC:FC!S10)","v":0},{"$f":"SUM(DC:FC!T10)","v":0},{"$f":"SUM(DC:FC!U10)","v":0},{"$f":"SUM(DC:FC!V10)","v":0},{"$f":"SUM(DC:FC!W10)","v":0},{"$f":"SUM(DC:FC!X10)","v":0},{"$f":"SUM(DC:FC!Y10)","v":0},{"$f":"SUM(DC:FC!Z10)","v":0},{"$f":"SUM(DC:FC!AA10)","v":0},{"$f":"SUM(DC:FC!AB10)","v":0},{"$f":"SUM(DC:FC!AC10)","v":0},{"$f":"SUM(DC:FC!AD10)","v":0},{"$f":"SUM(DC:FC!AE10)","v":0},{"$f":"SUM(DC:FC!AF10)","v":0},{"$f":"SUM(DC:FC!AG10)","v":0},{"$f":"SUM(DC:FC!AH10)","v":0},0]
["xxx",{"$f":"SUM(DC:FC!B11)","v":0},{"$f":"SUM(DC:FC!C11)","v":0},{"$f":"SUM(DC:FC!D11)","v":0},{"$f":"SUM(DC:FC!E11)","v":0},{"$f":"SUM(DC:FC!F11)","v":0},{"$f":"SUM(DC:FC!G11)","v":0},{"$f":"SUM(DC:FC!H11)","v":0},{"$f":"SUM(DC:FC!I11)","v":0},{"$f":"SUM(DC:FC!J11)","v":0},{"$f":"SUM(DC:FC!K11)","v":2},{"$f":"SUM(DC:FC!L11)","v":0},{"$f":"SUM(DC:FC!M11)","v":0},{"$f":"SUM(DC:FC!N11)","v":0},{"$f":"SUM(DC:FC!O11)","v":0},{"$f":"SUM(DC:FC!P11)","v":0},{"$f":"SUM(DC:FC!Q11)","v":0},{"$f":"SUM(DC:FC!R11)","v":0},{"$f":"SUM(DC:FC!S11)","v":0},{"$f":"SUM(DC:FC!T11)","v":0},{"$f":"SUM(DC:FC!U11)","v":0},{"$f":"SUM(DC:FC!V11)","v":0},{"$f":"SUM(DC:FC!W11)","v":0},{"$f":"SUM(DC:FC!X11)","v":0},{"$f":"SUM(DC:FC!Y11)","v":0},{"$f":"SUM(DC:FC!Z11)","v":0},{"$f":"SUM(DC:FC!AA11)","v":0},{"$f":"SUM(DC:FC!AB11)","v":0},{"$f":"SUM(DC:FC!AC11)","v":0},{"$f":"SUM(DC:FC!AD11)","v":0},{"$f":"SUM(DC:FC!AE11)","v":0},{"$f":"SUM(DC:FC!AF11)","v":0},{"$f":"SUM(DC:FC!AG11)","v":0},{"$f":"SUM(DC:FC!AH11)","v":0},0]
["xxx",{"$f":"SUM(DC:FC!B12)","v":0},{"$f":"SUM(DC:FC!C12)","v":0},{"$f":"SUM(DC:FC!D12)","v":0},{"$f":"SUM(DC:FC!E12)","v":0},{"$f":"SUM(DC:FC!F12)","v":0},{"$f":"SUM(DC:FC!G12)","v":0},{"$f":"SUM(DC:FC!H12)","v":0},{"$f":"SUM(DC:FC!I12)","v":0},{"$f":"SUM(DC:FC!J12)","v":0},{"$f":"SUM(DC:FC!K12)","v":2},{"$f":"SUM(DC:FC!L12)","v":0},{"$f":"SUM(DC:FC!M12)","v":0},{"$f":"SUM(DC:FC!N12)","v":0},{"$f":"SUM(DC:FC!O12)","v":0},{"$f":"SUM(DC:FC!P12)","v":0},{"$f":"SUM(DC:FC!Q12)","v":0},{"$f":"SUM(DC:FC!R12)","v":0},{"$f":"SUM(DC:FC!S12)","v":0},{"$f":"SUM(DC:FC!T12)","v":0},{"$f":"SUM(DC:FC!U12)","v":0},{"$f":"SUM(DC:FC!V12)","v":0},{"$f":"SUM(DC:FC!W12)","v":0},{"$f":"SUM(DC:FC!X12)","v":0},{"$f":"SUM(DC:FC!Y12)","v":0},{"$f":"SUM(DC:FC!Z12)","v":0},{"$f":"SUM(DC:FC!AA12)","v":0},{"$f":"SUM(DC:FC!AB12)","v":0},{"$f":"SUM(DC:FC!AC12)","v":0},{"$f":"SUM(DC:FC!AD12)","v":0},{"$f":"SUM(DC:FC!AE12)","v":0},{"$f":"SUM(DC:FC!AF12)","v":0},{"$f":"SUM(DC:FC!AG12)","v":0},{"$f":"SUM(DC:FC!AH12)","v":0},0]
["xxx",{"$f":"SUM(DC:FC!B13)","v":0},{"$f":"SUM(DC:FC!C13)","v":0},{"$f":"SUM(DC:FC!D13)","v":0},{"$f":"SUM(DC:FC!E13)","v":0},{"$f":"SUM(DC:FC!F13)","v":0},{"$f":"SUM(DC:FC!G13)","v":0},{"$f":"SUM(DC:FC!H13)","v":0},{"$f":"SUM(DC:FC!I13)","v":0},{"$f":"SUM(DC:FC!J13)","v":0},{"$f":"SUM(DC:FC!K13)","v":2},{"$f":"SUM(DC:FC!L13)","v":0},{"$f":"SUM(DC:FC!M13)","v":0},{"$f":"SUM(DC:FC!N13)","v":0},{"$f":"SUM(DC:FC!O13)","v":0},{"$f":"SUM(DC:FC!P13)","v":0},{"$f":"SUM(DC:FC!Q13)","v":0},{"$f":"SUM(DC:FC!R13)","v":0},{"$f":"SUM(DC:FC!S13)","v":0},{"$f":"SUM(DC:FC!T13)","v":0},{"$f":"SUM(DC:FC!U13)","v":0},{"$f":"SUM(DC:FC!V13)","v":0},{"$f":"SUM(DC:FC!W13)","v":0},{"$f":"SUM(DC:FC!X13)","v":0},{"$f":"SUM(DC:FC!Y13)","v":0},{"$f":"SUM(DC:FC!Z13)","v":0},{"$f":"SUM(DC:FC!AA13)","v":0},{"$f":"SUM(DC:FC!AB13)","v":0},{"$f":"SUM(DC:FC!AC13)","v":0},{"$f":"SUM(DC:FC!AD13)","v":0},{"$f":"SUM(DC:FC!AE13)","v":0},{"$f":"SUM(DC:FC!AF13)","v":0},{"$f":"SUM(DC:FC!AG13)","v":0},{"$f":"SUM(DC:FC!AH13)","v":0},0]
["xxx",{"$f":"SUM(DC:FC!B14)","v":0},{"$f":"SUM(DC:FC!C14)","v":0},{"$f":"SUM(DC:FC!D14)","v":0},{"$f":"SUM(DC:FC!E14)","v":0},{"$f":"SUM(DC:FC!F14)","v":0},{"$f":"SUM(DC:FC!G14)","v":0},{"$f":"SUM(DC:FC!H14)","v":0},{"$f":"SUM(DC:FC!I14)","v":0},{"$f":"SUM(DC:FC!J14)","v":0},{"$f":"SUM(DC:FC!K14)","v":2},{"$f":"SUM(DC:FC!L14)","v":0},{"$f":"SUM(DC:FC!M14)","v":0},{"$f":"SUM(DC:FC!N14)","v":0},{"$f":"SUM(DC:FC!O14)","v":0},{"$f":"SUM(DC:FC!P14)","v":0},{"$f":"SUM(DC:FC!Q14)","v":0},{"$f":"SUM(DC:FC!R14)","v":0},{"$f":"SUM(DC:FC!S14)","v":0},{"$f":"SUM(DC:FC!T14)","v":0},{"$f":"SUM(DC:FC!U14)","v":0},{"$f":"SUM(DC:FC!V14)","v":0},{"$f":"SUM(DC:FC!W14)","v":0},{"$f":"SUM(DC:FC!X14)","v":0},{"$f":"SUM(DC:FC!Y14)","v":0},{"$f":"SUM(DC:FC!Z14)","v":0},{"$f":"SUM(DC:FC!AA14)","v":0},{"$f":"SUM(DC:FC!AB14)","v":0},{"$f":"SUM(DC:FC!AC14)","v":0},{"$f":"SUM(DC:FC!AD14)","v":0},{"$f":"SUM(DC:FC!AE14)","v":0},{"$f":"SUM(DC:FC!AF14)","v":0},{"$f":"SUM(DC:FC!AG14)","v":0},{"$f":"SUM(DC:FC!AH14)","v":0},0]
["xxx",{"$f":"SUM(DC:FC!B15)","v":0},{"$f":"SUM(DC:FC!C15)","v":0},{"$f":"SUM(DC:FC!D15)","v":0},{"$f":"SUM(DC:FC!E15)","v":0},{"$f":"SUM(DC:FC!F15)","v":0},{"$f":"SUM(DC:FC!G15)","v":0},{"$f":"SUM(DC:FC!H15)","v":0},{"$f":"SUM(DC:FC!I15)","v":0},{"$f":"SUM(DC:FC!J15)","v":0},{"$f":"SUM(DC:FC!K15)","v":2},{"$f":"SUM(DC:FC!L15)","v":0},{"$f":"SUM(DC:FC!M15)","v":0},{"$f":"SUM(DC:FC!N15)","v":0},{"$f":"SUM(DC:FC!O15)","v":0},{"$f":"SUM(DC:FC!P15)","v":0},{"$f":"SUM(DC:FC!Q15)","v":0},{"$f":"SUM(DC:FC!R15)","v":0},{"$f":"SUM(DC:FC!S15)","v":0},{"$f":"SUM(DC:FC!T15)","v":0},{"$f":"SUM(DC:FC!U15)","v":0},{"$f":"SUM(DC:FC!V15)","v":0},{"$f":"SUM(DC:FC!W15)","v":0},{"$f":"SUM(DC:FC!X15)","v":0},{"$f":"SUM(DC:FC!Y15)","v":0},{"$f":"SUM(DC:FC!Z15)","v":0},{"$f":"SUM(DC:FC!AA15)","v":0},{"$f":"SUM(DC:FC!AB15)","v":0},{"$f":"SUM(DC:FC!AC15)","v":0},{"$f":"SUM(DC:FC!AD15)","v":0},{"$f":"SUM(DC:FC!AE15)","v":0},{"$f":"SUM(DC:FC!AF15)","v":0},{"$f":"SUM(DC:FC!AG15)","v":0},{"$f":"SUM(DC:FC!AH15)","v":0},0]
["xxx",{"$f":"SUM(DC:FC!B16)","v":0},{"$f":"SUM(DC:FC!C16)","v":0},{"$f":"SUM(DC:FC!D16)","v":0},{"$f":"SUM(DC:FC!E16)","v":0},{"$f":"SUM(DC:FC!F16)","v":0},{"$f":"SUM(DC:FC!G16)","v":0},{"$f":"SUM(DC:FC!H16)","v":0},{"$f":"SUM(DC:FC!I16)","v":0},{"$f":"SUM(DC:FC!J16)","v":0},{"$f":"SUM(DC:FC!K16)","v":2},{"$f":"SUM(DC:FC!L16)","v":0},{"$f":"SUM(DC:FC!M16)","v":0},{"$f":"SUM(DC:FC!N16)","v":0},{"$f":"SUM(DC:FC!O16)","v":0},{"$f":"SUM(DC:FC!P16)","v":0},{"$f":"SUM(DC:FC!Q16)","v":0},{"$f":"SUM(DC:FC!R16)","v":0},{"$f":"SUM(DC:FC!S16)","v":0},{"$f":"SUM(DC:FC!T16)","v":0},{"$f":"SUM(DC:FC!U16)","v":0},{"$f":"SUM(DC:FC!V16)","v":0},{"$f":"SUM(DC:FC!W16)","v":0},{"$f":"SUM(DC:FC!X16)","v":0},{"$f":"SUM(DC:FC!Y16)","v":0},{"$f":"SUM(DC:FC!Z16)","v":0},{"$f":"SUM(DC:FC!AA16)","v":0},{"$f":"SUM(DC:FC!AB16)","v":0},{"$f":"SUM(DC:FC!AC16)","v":0},{"$f":"SUM(DC:FC!AD16)","v":0},{"$f":"SUM(DC:FC!AE16)","v":0},{"$f":"SUM(DC:FC!AF16)","v":0},{"$f":"SUM(DC:FC!AG16)","v":0},{"$f":"SUM(DC:FC!AH16)","v":0},0]
["xxx",{"$f":"SUM(DC:FC!B17)","v":0},{"$f":"SUM(DC:FC!C17)","v":0},{"$f":"SUM(DC:FC!D17)","v":0},{"$f":"SUM(DC:FC!E17)","v":0},{"$f":"SUM(DC:FC!F17)","v":0},{"$f":"SUM(DC:FC!G17)","v":0},{"$f":"SUM(DC:FC!H17)","v":0},{"$f":"SUM(DC:FC!I17)","v":0},{"$f":"SUM(DC:FC!J17)","v":0},{"$f":"SUM(DC:FC!K17)","v":2},{"$f":"SUM(DC:FC!L17)","v":0},{"$f":"SUM(DC:FC!M17)","v":0},{"$f":"SUM(DC:FC!N17)","v":0},{"$f":"SUM(DC:FC!O17)","v":0},{"$f":"SUM(DC:FC!P17)","v":0},{"$f":"SUM(DC:FC!Q17)","v":0},{"$f":"SUM(DC:FC!R17)","v":0},{"$f":"SUM(DC:FC!S17)","v":0},{"$f":"SUM(DC:FC!T17)","v":0},{"$f":"SUM(DC:FC!U17)","v":0},{"$f":"SUM(DC:FC!V17)","v":0},{"$f":"SUM(DC:FC!W17)","v":0},{"$f":"SUM(DC:FC!X17)","v":0},{"$f":"SUM(DC:FC!Y17)","v":0},{"$f":"SUM(DC:FC!Z17)","v":0},{"$f":"SUM(DC:FC!AA17)","v":0},{"$f":"SUM(DC:FC!AB17)","v":0},{"$f":"SUM(DC:FC!AC17)","v":0},{"$f":"SUM(DC:FC!AD17)","v":0},{"$f":"SUM(DC:FC!AE17)","v":0},{"$f":"SUM(DC:FC!AF17)","v":0},{"$f":"SUM(DC:FC!AG17)","v":0},{"$f":"SUM(DC:FC!AH17)","v":0},0]
["xxx",{"$f":"SUM(DC:FC!B18)","v":0},{"$f":"SUM(DC:FC!C18)","v":0},{"$f":"SUM(DC:FC!D18)","v":0},{"$f":"SUM(DC:FC!E18)","v":0},{"$f":"SUM(DC:FC!F18)","v":0},{"$f":"SUM(DC:FC!G18)","v":0},{"$f":"SUM(DC:FC!H18)","v":0},{"$f":"SUM(DC:FC!I18)","v":0},{"$f":"SUM(DC:FC!J18)","v":0},{"$f":"SUM(DC:FC!K18)","v":2},{"$f":"SUM(DC:FC!L18)","v":0},{"$f":"SUM(DC:FC!M18)","v":0},{"$f":"SUM(DC:FC!N18)","v":0},{"$f":"SUM(DC:FC!O18)","v":0},{"$f":"SUM(DC:FC!P18)","v":0},{"$f":"SUM(DC:FC!Q18)","v":0},{"$f":"SUM(DC:FC!R18)","v":0},{"$f":"SUM(DC:FC!S18)","v":0},{"$f":"SUM(DC:FC!T18)","v":0},{"$f":"SUM(DC:FC!U18)","v":0},{"$f":"SUM(DC:FC!V18)","v":0},{"$f":"SUM(DC:FC!W18)","v":0},{"$f":"SUM(DC:FC!X18)","v":0},{"$f":"SUM(DC:FC!Y18)","v":0},{"$f":"SUM(DC:FC!Z18)","v":0},{"$f":"SUM(DC:FC!AA18)","v":0},{"$f":"SUM(DC:FC!AB18)","v":0},{"$f":"SUM(DC:FC!AC18)","v":0},{"$f":"SUM(DC:FC!AD18)","v":0},{"$f":"SUM(DC:FC!AE18)","v":0},{"$f":"SUM(DC:FC!AF18)","v":0},{"$f":"SUM(DC:FC!AG18)","v":0},{"$f":"SUM(DC:FC!AH18)","v":0},0]
["xxx",{"$f":"SUM(DC:FC!B19)","v":0},{"$f":"SUM(DC:FC!C19)","v":0},{"$f":"SUM(DC:FC!D19)","v":0},{"$f":"SUM(DC:FC!E19)","v":0},{"$f":"SUM(DC:FC!F19)","v":0},{"$f":"SUM(DC:FC!G19)","v":0},{"$f":"SUM(DC:FC!H19)","v":0},{"$f":"SUM(DC:FC!I19)","v":0},{"$f":"SUM(DC:FC!J19)","v":0},{"$f":"SUM(DC:FC!K19)","v":2},{"$f":"SUM(DC:FC!L19)","v":0},{"$f":"SUM(DC:FC!M19)","v":0},{"$f":"SUM(DC:FC!N19)","v":0},{"$f":"SUM(DC:FC!O19)","v":0},{"$f":"SUM(DC:FC!P19)","v":0},{"$f":"SUM(DC:FC!Q19)","v":0},{"$f":"SUM(DC:FC!R19)","v":0},{"$f":"SUM(DC:FC!S19)","v":0},{"$f":"SUM(DC:FC!T19)","v":0},{"$f":"SUM(DC:FC!U19)","v":0},{"$f":"SUM(DC:FC!V19)","v":0},{"$f":"SUM(DC:FC!W19)","v":0},{"$f":"SUM(DC:FC!X19)","v":0},{"$f":"SUM(DC:FC!Y19)","v":0},{"$f":"SUM(DC:FC!Z19)","v":0},{"$f":"SUM(DC:FC!AA19)","v":0},{"$f":"SUM(DC:FC!AB19)","v":0},{"$f":"SUM(DC:FC!AC19)","v":0},{"$f":"SUM(DC:FC!AD19)","v":0},{"$f":"SUM(DC:FC!AE19)","v":0},{"$f":"SUM(DC:FC!AF19)","v":0},{"$f":"SUM(DC:FC!AG19)","v":0},{"$f":"SUM(DC:FC!AH19)","v":0},0]
["xxx",{"$f":"SUM(DC:FC!B20)","v":0},{"$f":"SUM(DC:FC!C20)","v":0},{"$f":"SUM(DC:FC!D20)","v":0},{"$f":"SUM(DC:FC!E20)","v":0},{"$f":"SUM(DC:FC!F20)","v":0},{"$f":"SUM(DC:FC!G20)","v":0},{"$f":"SUM(DC:FC!H20)","v":0},{"$f":"SUM(DC:FC!I20)","v":0},{"$f":"SUM(DC:FC!J20)","v":0},{"$f":"SUM(DC:FC!K20)","v":2},{"$f":"SUM(DC:FC!L20)","v":0},{"$f":"SUM(DC:FC!M20)","v":0},{"$f":"SUM(DC:FC!N20)","v":0},{"$f":"SUM(DC:FC!O20)","v":0},{"$f":"SUM(DC:FC!P20)","v":0},{"$f":"SUM(DC:FC!Q20)","v":0},{"$f":"SUM(DC:FC!R20)","v":0},{"$f":"SUM(DC:FC!S20)","v":0},{"$f":"SUM(DC:FC!T20)","v":0},{"$f":"SUM(DC:FC!U20)","v":0},{"$f":"SUM(DC:FC!V20)","v":0},{"$f":"SUM(DC:FC!W20)","v":0},{"$f":"SUM(DC:FC!X20)","v":0},{"$f":"SUM(DC:FC!Y20)","v":0},{"$f":"SUM(DC:FC!Z20)","v":0},{"$f":"SUM(DC:FC!AA20)","v":0},{"$f":"SUM(DC:FC!AB20)","v":0},{"$f":"SUM(DC:FC!AC20)","v":0},{"$f":"SUM(DC:FC!AD20)","v":0},{"$f":"SUM(DC:FC!AE20)","v":0},{"$f":"SUM(DC:FC!AF20)","v":0},{"$f":"SUM(DC:FC!AG20)","v":0},{"$f":"SUM(DC:FC!AH20)","v":0},0]
["atelier électrique"]
["xxx",{"$f":"SUM(DC:FC!B22)","v":0},{"$f":"SUM(DC:FC!C22)","v":0},{"$f":"SUM(DC:FC!D22)","v":0},{"$f":"SUM(DC:FC!E22)","v":0},{"$f":"SUM(DC:FC!F22)","v":0},{"$f":"SUM(DC:FC!G22)","v":0},{"$f":"SUM(DC:FC!H22)","v":0},{"$f":"SUM(DC:FC!I22)","v":0},{"$f":"SUM(DC:FC!J22)","v":0},{"$f":"SUM(DC:FC!K22)","v":0},{"$f":"SUM(DC:FC!L22)","v":0},{"$f":"SUM(DC:FC!M22)","v":0},{"$f":"SUM(DC:FC!N22)","v":0},{"$f":"SUM(DC:FC!O22)","v":0},{"$f":"SUM(DC:FC!P22)","v":0},{"$f":"SUM(DC:FC!Q22)","v":0},{"$f":"SUM(DC:FC!R22)","v":0},{"$f":"SUM(DC:FC!S22)","v":0},{"$f":"SUM(DC:FC!T22)","v":0},{"$f":"SUM(DC:FC!U22)","v":0},{"$f":"SUM(DC:FC!V22)","v":0},{"$f":"SUM(DC:FC!W22)","v":0},{"$f":"SUM(DC:FC!X22)","v":0},{"$f":"SUM(DC:FC!Y22)","v":0},{"$f":"SUM(DC:FC!Z22)","v":0},{"$f":"SUM(DC:FC!AA22)","v":0},{"$f":"SUM(DC:FC!AB22)","v":0},{"$f":"SUM(DC:FC!AC22)","v":0},{"$f":"SUM(DC:FC!AD22)","v":0},{"$f":"SUM(DC:FC!AE22)","v":0},{"$f":"SUM(DC:FC!AF22)","v":0},{"$f":"SUM(DC:FC!AG22)","v":0},{"$f":"SUM(DC:FC!AH22)","v":0},0]
["xxx",{"$f":"SUM(DC:FC!B23)","v":0},{"$f":"SUM(DC:FC!C23)","v":0},{"$f":"SUM(DC:FC!D23)","v":0},{"$f":"SUM(DC:FC!E23)","v":0},{"$f":"SUM(DC:FC!F23)","v":0},{"$f":"SUM(DC:FC!G23)","v":0},{"$f":"SUM(DC:FC!H23)","v":0},{"$f":"SUM(DC:FC!I23)","v":0},{"$f":"SUM(DC:FC!J23)","v":0},{"$f":"SUM(DC:FC!K23)","v":0},{"$f":"SUM(DC:FC!L23)","v":0},{"$f":"SUM(DC:FC!M23)","v":0},{"$f":"SUM(DC:FC!N23)","v":0},{"$f":"SUM(DC:FC!O23)","v":0},{"$f":"SUM(DC:FC!P23)","v":0},{"$f":"SUM(DC:FC!Q23)","v":0},{"$f":"SUM(DC:FC!R23)","v":0},{"$f":"SUM(DC:FC!S23)","v":0},{"$f":"SUM(DC:FC!T23)","v":0},{"$f":"SUM(DC:FC!U23)","v":0},{"$f":"SUM(DC:FC!V23)","v":0},{"$f":"SUM(DC:FC!W23)","v":0},{"$f":"SUM(DC:FC!X23)","v":0},{"$f":"SUM(DC:FC!Y23)","v":0},{"$f":"SUM(DC:FC!Z23)","v":0},{"$f":"SUM(DC:FC!AA23)","v":0},{"$f":"SUM(DC:FC!AB23)","v":0},{"$f":"SUM(DC:FC!AC23)","v":0},{"$f":"SUM(DC:FC!AD23)","v":0},{"$f":"SUM(DC:FC!AE23)","v":0},{"$f":"SUM(DC:FC!AF23)","v":0},{"$f":"SUM(DC:FC!AG23)","v":0},{"$f":"SUM(DC:FC!AH23)","v":0},0]
["xxx",{"$f":"SUM(DC:FC!B24)","v":0},{"$f":"SUM(DC:FC!C24)","v":0},{"$f":"SUM(DC:FC!D24)","v":0},{"$f":"SUM(DC:FC!E24)","v":0},{"$f":"SUM(DC:FC!F24)","v":0},{"$f":"SUM(DC:FC!G24)","v":0},{"$f":"SUM(DC:FC!H24)","v":0},{"$f":"SUM(DC:FC!I24)","v":0},{"$f":"SUM(DC:FC!J24)","v":0},{"$f":"SUM(DC:FC!K24)","v":0},{"$f":"SUM(DC:FC!L24)","v":0},{"$f":"SUM(DC:FC!M24)","v":0},{"$f":"SUM(DC:FC!N24)","v":0},{"$f":"SUM(DC:FC!O24)","v":0},{"$f":"SUM(DC:FC!P24)","v":0},{"$f":"SUM(DC:FC!Q24)","v":0},{"$f":"SUM(DC:FC!R24)","v":0},{"$f":"SUM(DC:FC!S24)","v":0},{"$f":"SUM(DC:FC!T24)","v":0},{"$f":"SUM(DC:FC!U24)","v":0},{"$f":"SUM(DC:FC!V24)","v":0},{"$f":"SUM(DC:FC!W24)","v":0},{"$f":"SUM(DC:FC!X24)","v":0},{"$f":"SUM(DC:FC!Y24)","v":0},{"$f":"SUM(DC:FC!Z24)","v":0},{"$f":"SUM(DC:FC!AA24)","v":0},{"$f":"SUM(DC:FC!AB24)","v":0},{"$f":"SUM(DC:FC!AC24)","v":0},{"$f":"SUM(DC:FC!AD24)","v":0},{"$f":"SUM(DC:FC!AE24)","v":0},{"$f":"SUM(DC:FC!AF24)","v":0},{"$f":"SUM(DC:FC!AG24)","v":0},{"$f":"SUM(DC:FC!AH24)","v":0},0]
["xxx",{"$f":"SUM(DC:FC!B25)","v":0},{"$f":"SUM(DC:FC!C25)","v":0},{"$f":"SUM(DC:FC!D25)","v":0},{"$f":"SUM(DC:FC!E25)","v":0},{"$f":"SUM(DC:FC!F25)","v":0},{"$f":"SUM(DC:FC!G25)","v":0},{"$f":"SUM(DC:FC!H25)","v":0},{"$f":"SUM(DC:FC!I25)","v":0},{"$f":"SUM(DC:FC!J25)","v":0},{"$f":"SUM(DC:FC!K25)","v":0},{"$f":"SUM(DC:FC!L25)","v":0},{"$f":"SUM(DC:FC!M25)","v":0},{"$f":"SUM(DC:FC!N25)","v":0},{"$f":"SUM(DC:FC!O25)","v":0},{"$f":"SUM(DC:FC!P25)","v":0},{"$f":"SUM(DC:FC!Q25)","v":0},{"$f":"SUM(DC:FC!R25)","v":0},{"$f":"SUM(DC:FC!S25)","v":0},{"$f":"SUM(DC:FC!T25)","v":0},{"$f":"SUM(DC:FC!U25)","v":0},{"$f":"SUM(DC:FC!V25)","v":0},{"$f":"SUM(DC:FC!W25)","v":0},{"$f":"SUM(DC:FC!X25)","v":0},{"$f":"SUM(DC:FC!Y25)","v":0},{"$f":"SUM(DC:FC!Z25)","v":0},{"$f":"SUM(DC:FC!AA25)","v":0},{"$f":"SUM(DC:FC!AB25)","v":0},{"$f":"SUM(DC:FC!AC25)","v":0},{"$f":"SUM(DC:FC!AD25)","v":0},{"$f":"SUM(DC:FC!AE25)","v":0},{"$f":"SUM(DC:FC!AF25)","v":0},{"$f":"SUM(DC:FC!AG25)","v":0},{"$f":"SUM(DC:FC!AH25)","v":0},0]
["xxx",{"$f":"SUM(DC:FC!B26)","v":0},{"$f":"SUM(DC:FC!C26)","v":0},{"$f":"SUM(DC:FC!D26)","v":0},{"$f":"SUM(DC:FC!E26)","v":0},{"$f":"SUM(DC:FC!F26)","v":0},{"$f":"SUM(DC:FC!G26)","v":0},{"$f":"SUM(DC:FC!H26)","v":0},{"$f":"SUM(DC:FC!I26)","v":0},{"$f":"SUM(DC:FC!J26)","v":0},{"$f":"SUM(DC:FC!K26)","v":0},{"$f":"SUM(DC:FC!L26)","v":0},{"$f":"SUM(DC:FC!M26)","v":0},{"$f":"SUM(DC:FC!N26)","v":0},{"$f":"SUM(DC:FC!O26)","v":0},{"$f":"SUM(DC:FC!P26)","v":0},{"$f":"SUM(DC:FC!Q26)","v":0},{"$f":"SUM(DC:FC!R26)","v":0},{"$f":"SUM(DC:FC!S26)","v":0},{"$f":"SUM(DC:FC!T26)","v":0},{"$f":"SUM(DC:FC!U26)","v":0},{"$f":"SUM(DC:FC!V26)","v":0},{"$f":"SUM(DC:FC!W26)","v":0},{"$f":"SUM(DC:FC!X26)","v":0},{"$f":"SUM(DC:FC!Y26)","v":0},{"$f":"SUM(DC:FC!Z26)","v":0},{"$f":"SUM(DC:FC!AA26)","v":0},{"$f":"SUM(DC:FC!AB26)","v":0},{"$f":"SUM(DC:FC!AC26)","v":0},{"$f":"SUM(DC:FC!AD26)","v":0},{"$f":"SUM(DC:FC!AE26)","v":0},{"$f":"SUM(DC:FC!AF26)","v":0},{"$f":"SUM(DC:FC!AG26)","v":0},{"$f":"SUM(DC:FC!AH26)","v":0},0]
["xxx",{"$f":"SUM(DC:FC!B27)","v":0},{"$f":"SUM(DC:FC!C27)","v":0},{"$f":"SUM(DC:FC!D27)","v":0},{"$f":"SUM(DC:FC!E27)","v":0},{"$f":"SUM(DC:FC!F27)","v":0},{"$f":"SUM(DC:FC!G27)","v":0},{"$f":"SUM(DC:FC!H27)","v":0},{"$f":"SUM(DC:FC!I27)","v":0},{"$f":"SUM(DC:FC!J27)","v":0},{"$f":"SUM(DC:FC!K27)","v":0},{"$f":"SUM(DC:FC!L27)","v":0},{"$f":"SUM(DC:FC!M27)","v":0},{"$f":"SUM(DC:FC!N27)","v":0},{"$f":"SUM(DC:FC!O27)","v":0},{"$f":"SUM(DC:FC!P27)","v":0},{"$f":"SUM(DC:FC!Q27)","v":0},{"$f":"SUM(DC:FC!R27)","v":0},{"$f":"SUM(DC:FC!S27)","v":0},{"$f":"SUM(DC:FC!T27)","v":0},{"$f":"SUM(DC:FC!U27)","v":0},{"$f":"SUM(DC:FC!V27)","v":0},{"$f":"SUM(DC:FC!W27)","v":0},{"$f":"SUM(DC:FC!X27)","v":0},{"$f":"SUM(DC:FC!Y27)","v":0},{"$f":"SUM(DC:FC!Z27)","v":0},{"$f":"SUM(DC:FC!AA27)","v":0},{"$f":"SUM(DC:FC!AB27)","v":0},{"$f":"SUM(DC:FC!AC27)","v":0},{"$f":"SUM(DC:FC!AD27)","v":0},{"$f":"SUM(DC:FC!AE27)","v":0},{"$f":"SUM(DC:FC!AF27)","v":0},{"$f":"SUM(DC:FC!AG27)","v":0},{"$f":"SUM(DC:FC!AH27)","v":0},0]
["xxx",{"$f":"SUM(DC:FC!B28)","v":0},{"$f":"SUM(DC:FC!C28)","v":0},{"$f":"SUM(DC:FC!D28)","v":0},{"$f":"SUM(DC:FC!E28)","v":0},{"$f":"SUM(DC:FC!F28)","v":0},{"$f":"SUM(DC:FC!G28)","v":0},{"$f":"SUM(DC:FC!H28)","v":0},{"$f":"SUM(DC:FC!I28)","v":0},{"$f":"SUM(DC:FC!J28)","v":0},{"$f":"SUM(DC:FC!K28)","v":0},{"$f":"SUM(DC:FC!L28)","v":0},{"$f":"SUM(DC:FC!M28)","v":0},{"$f":"SUM(DC:FC!N28)","v":0},{"$f":"SUM(DC:FC!O28)","v":0},{"$f":"SUM(DC:FC!P28)","v":0},{"$f":"SUM(DC:FC!Q28)","v":0},{"$f":"SUM(DC:FC!R28)","v":0},{"$f":"SUM(DC:FC!S28)","v":0},{"$f":"SUM(DC:FC!T28)","v":0},{"$f":"SUM(DC:FC!U28)","v":0},{"$f":"SUM(DC:FC!V28)","v":0},{"$f":"SUM(DC:FC!W28)","v":0},{"$f":"SUM(DC:FC!X28)","v":0},{"$f":"SUM(DC:FC!Y28)","v":0},{"$f":"SUM(DC:FC!Z28)","v":0},{"$f":"SUM(DC:FC!AA28)","v":0},{"$f":"SUM(DC:FC!AB28)","v":0},{"$f":"SUM(DC:FC!AC28)","v":0},{"$f":"SUM(DC:FC!AD28)","v":0},{"$f":"SUM(DC:FC!AE28)","v":0},{"$f":"SUM(DC:FC!AF28)","v":0},{"$f":"SUM(DC:FC!AG28)","v":0},{"$f":"SUM(DC:FC!AH28)","v":0},0]
["xxx",{"$f":"SUM(DC:FC!B29)","v":0},{"$f":"SUM(DC:FC!C29)","v":0},{"$f":"SUM(DC:FC!D29)","v":0},{"$f":"SUM(DC:FC!E29)","v":0},{"$f":"SUM(DC:FC!F29)","v":0},{"$f":"SUM(DC:FC!G29)","v":0},{"$f":"SUM(DC:FC!H29)","v":0},{"$f":"SUM(DC:FC!I29)","v":0},{"$f":"SUM(DC:FC!J29)","v":0},{"$f":"SUM(DC:FC!K29)","v":0},{"$f":"SUM(DC:FC!L29)","v":0},{"$f":"SUM(DC:FC!M29)","v":0},{"$f":"SUM(DC:FC!N29)","v":0},{"$f":"SUM(DC:FC!O29)","v":0},{"$f":"SUM(DC:FC!P29)","v":0},{"$f":"SUM(DC:FC!Q29)","v":0},{"$f":"SUM(DC:FC!R29)","v":0},{"$f":"SUM(DC:FC!S29)","v":0},{"$f":"SUM(DC:FC!T29)","v":0},{"$f":"SUM(DC:FC!U29)","v":0},{"$f":"SUM(DC:FC!V29)","v":0},{"$f":"SUM(DC:FC!W29)","v":0},{"$f":"SUM(DC:FC!X29)","v":0},{"$f":"SUM(DC:FC!Y29)","v":0},{"$f":"SUM(DC:FC!Z29)","v":0},{"$f":"SUM(DC:FC!AA29)","v":0},{"$f":"SUM(DC:FC!AB29)","v":0},{"$f":"SUM(DC:FC!AC29)","v":0},{"$f":"SUM(DC:FC!AD29)","v":0},{"$f":"SUM(DC:FC!AE29)","v":0},{"$f":"SUM(DC:FC!AF29)","v":0},{"$f":"SUM(DC:FC!AG29)","v":0},{"$f":"SUM(DC:FC!AH29)","v":0},0]
["xxx",{"$f":"SUM(DC:FC!B30)","v":0},{"$f":"SUM(DC:FC!C30)","v":0},{"$f":"SUM(DC:FC!D30)","v":0},{"$f":"SUM(DC:FC!E30)","v":0},{"$f":"SUM(DC:FC!F30)","v":0},{"$f":"SUM(DC:FC!G30)","v":0},{"$f":"SUM(DC:FC!H30)","v":0},{"$f":"SUM(DC:FC!I30)","v":0},{"$f":"SUM(DC:FC!J30)","v":0},{"$f":"SUM(DC:FC!K30)","v":0},{"$f":"SUM(DC:FC!L30)","v":0},{"$f":"SUM(DC:FC!M30)","v":0},{"$f":"SUM(DC:FC!N30)","v":0},{"$f":"SUM(DC:FC!O30)","v":0},{"$f":"SUM(DC:FC!P30)","v":0},{"$f":"SUM(DC:FC!Q30)","v":0},{"$f":"SUM(DC:FC!R30)","v":0},{"$f":"SUM(DC:FC!S30)","v":0},{"$f":"SUM(DC:FC!T30)","v":0},{"$f":"SUM(DC:FC!U30)","v":0},{"$f":"SUM(DC:FC!V30)","v":0},{"$f":"SUM(DC:FC!W30)","v":0},{"$f":"SUM(DC:FC!X30)","v":0},{"$f":"SUM(DC:FC!Y30)","v":0},{"$f":"SUM(DC:FC!Z30)","v":0},{"$f":"SUM(DC:FC!AA30)","v":0},{"$f":"SUM(DC:FC!AB30)","v":0},{"$f":"SUM(DC:FC!AC30)","v":0},{"$f":"SUM(DC:FC!AD30)","v":0},{"$f":"SUM(DC:FC!AE30)","v":0},{"$f":"SUM(DC:FC!AF30)","v":0},{"$f":"SUM(DC:FC!AG30)","v":0},{"$f":"SUM(DC:FC!AH30)","v":0},0]
["xxx",{"$f":"SUM(DC:FC!B31)","v":0},{"$f":"SUM(DC:FC!C31)","v":0},{"$f":"SUM(DC:FC!D31)","v":0},{"$f":"SUM(DC:FC!E31)","v":0},{"$f":"SUM(DC:FC!F31)","v":0},{"$f":"SUM(DC:FC!G31)","v":0},{"$f":"SUM(DC:FC!H31)","v":0},{"$f":"SUM(DC:FC!I31)","v":0},{"$f":"SUM(DC:FC!J31)","v":0},{"$f":"SUM(DC:FC!K31)","v":0},{"$f":"SUM(DC:FC!L31)","v":0},{"$f":"SUM(DC:FC!M31)","v":0},{"$f":"SUM(DC:FC!N31)","v":0},{"$f":"SUM(DC:FC!O31)","v":0},{"$f":"SUM(DC:FC!P31)","v":0},{"$f":"SUM(DC:FC!Q31)","v":0},{"$f":"SUM(DC:FC!R31)","v":0},{"$f":"SUM(DC:FC!S31)","v":0},{"$f":"SUM(DC:FC!T31)","v":0},{"$f":"SUM(DC:FC!U31)","v":0},{"$f":"SUM(DC:FC!V31)","v":0},{"$f":"SUM(DC:FC!W31)","v":0},{"$f":"SUM(DC:FC!X31)","v":0},{"$f":"SUM(DC:FC!Y31)","v":0},{"$f":"SUM(DC:FC!Z31)","v":0},{"$f":"SUM(DC:FC!AA31)","v":0},{"$f":"SUM(DC:FC!AB31)","v":0},{"$f":"SUM(DC:FC!AC31)","v":0},{"$f":"SUM(DC:FC!AD31)","v":0},{"$f":"SUM(DC:FC!AE31)","v":0},{"$f":"SUM(DC:FC!AF31)","v":0},{"$f":"SUM(DC:FC!AG31)","v":0},{"$f":"SUM(DC:FC!AH31)","v":0},0]
["Magasin général"]
["xxx",{"$f":"SUM(DC:FC!B33)","v":0},{"$f":"SUM(DC:FC!C33)","v":0},{"$f":"SUM(DC:FC!D33)","v":0},{"$f":"SUM(DC:FC!E33)","v":0},{"$f":"SUM(DC:FC!F33)","v":0},{"$f":"SUM(DC:FC!G33)","v":0},{"$f":"SUM(DC:FC!H33)","v":0},{"$f":"SUM(DC:FC!I33)","v":0},{"$f":"SUM(DC:FC!J33)","v":0},{"$f":"SUM(DC:FC!K33)","v":0},{"$f":"SUM(DC:FC!L33)","v":0},{"$f":"SUM(DC:FC!M33)","v":0},{"$f":"SUM(DC:FC!N33)","v":0},{"$f":"SUM(DC:FC!O33)","v":0},{"$f":"SUM(DC:FC!P33)","v":0},{"$f":"SUM(DC:FC!Q33)","v":0},{"$f":"SUM(DC:FC!R33)","v":0},{"$f":"SUM(DC:FC!S33)","v":0},{"$f":"SUM(DC:FC!T33)","v":0},{"$f":"SUM(DC:FC!U33)","v":0},{"$f":"SUM(DC:FC!V33)","v":0},{"$f":"SUM(DC:FC!W33)","v":0},{"$f":"SUM(DC:FC!X33)","v":0},{"$f":"SUM(DC:FC!Y33)","v":0},{"$f":"SUM(DC:FC!Z33)","v":0},{"$f":"SUM(DC:FC!AA33)","v":0},{"$f":"SUM(DC:FC!AB33)","v":0},{"$f":"SUM(DC:FC!AC33)","v":0},{"$f":"SUM(DC:FC!AD33)","v":0},{"$f":"SUM(DC:FC!AE33)","v":0},{"$f":"SUM(DC:FC!AF33)","v":0},{"$f":"SUM(DC:FC!AG33)","v":0},{"$f":"SUM(DC:FC!AH33)","v":0},0]
["xxx",{"$f":"SUM(DC:FC!B34)","v":0},{"$f":"SUM(DC:FC!C34)","v":0},{"$f":"SUM(DC:FC!D34)","v":0},{"$f":"SUM(DC:FC!E34)","v":0},{"$f":"SUM(DC:FC!F34)","v":0},{"$f":"SUM(DC:FC!G34)","v":0},{"$f":"SUM(DC:FC!H34)","v":0},{"$f":"SUM(DC:FC!I34)","v":0},{"$f":"SUM(DC:FC!J34)","v":0},{"$f":"SUM(DC:FC!K34)","v":0},{"$f":"SUM(DC:FC!L34)","v":0},{"$f":"SUM(DC:FC!M34)","v":0},{"$f":"SUM(DC:FC!N34)","v":0},{"$f":"SUM(DC:FC!O34)","v":0},{"$f":"SUM(DC:FC!P34)","v":0},{"$f":"SUM(DC:FC!Q34)","v":0},{"$f":"SUM(DC:FC!R34)","v":0},{"$f":"SUM(DC:FC!S34)","v":0},{"$f":"SUM(DC:FC!T34)","v":0},{"$f":"SUM(DC:FC!U34)","v":0},{"$f":"SUM(DC:FC!V34)","v":0},{"$f":"SUM(DC:FC!W34)","v":0},{"$f":"SUM(DC:FC!X34)","v":0},{"$f":"SUM(DC:FC!Y34)","v":0},{"$f":"SUM(DC:FC!Z34)","v":0},{"$f":"SUM(DC:FC!AA34)","v":0},{"$f":"SUM(DC:FC!AB34)","v":0},{"$f":"SUM(DC:FC!AC34)","v":0},{"$f":"SUM(DC:FC!AD34)","v":0},{"$f":"SUM(DC:FC!AE34)","v":0},{"$f":"SUM(DC:FC!AF34)","v":0},{"$f":"SUM(DC:FC!AG34)","v":0},{"$f":"SUM(DC:FC!AH34)","v":0},0]
["xxx",{"$f":"SUM(DC:FC!B35)","v":0},{"$f":"SUM(DC:FC!C35)","v":0},{"$f":"SUM(DC:FC!D35)","v":0},{"$f":"SUM(DC:FC!E35)","v":0},{"$f":"SUM(DC:FC!F35)","v":0},{"$f":"SUM(DC:FC!G35)","v":0},{"$f":"SUM(DC:FC!H35)","v":0},{"$f":"SUM(DC:FC!I35)","v":0},{"$f":"SUM(DC:FC!J35)","v":0},{"$f":"SUM(DC:FC!K35)","v":0},{"$f":"SUM(DC:FC!L35)","v":0},{"$f":"SUM(DC:FC!M35)","v":0},{"$f":"SUM(DC:FC!N35)","v":0},{"$f":"SUM(DC:FC!O35)","v":0},{"$f":"SUM(DC:FC!P35)","v":0},{"$f":"SUM(DC:FC!Q35)","v":0},{"$f":"SUM(DC:FC!R35)","v":0},{"$f":"SUM(DC:FC!S35)","v":0},{"$f":"SUM(DC:FC!T35)","v":0},{"$f":"SUM(DC:FC!U35)","v":0},{"$f":"SUM(DC:FC!V35)","v":0},{"$f":"SUM(DC:FC!W35)","v":0},{"$f":"SUM(DC:FC!X35)","v":0},{"$f":"SUM(DC:FC!Y35)","v":0},{"$f":"SUM(DC:FC!Z35)","v":0},{"$f":"SUM(DC:FC!AA35)","v":0},{"$f":"SUM(DC:FC!AB35)","v":0},{"$f":"SUM(DC:FC!AC35)","v":0},{"$f":"SUM(DC:FC!AD35)","v":0},{"$f":"SUM(DC:FC!AE35)","v":0},{"$f":"SUM(DC:FC!AF35)","v":0},{"$f":"SUM(DC:FC!AG35)","v":0},{"$f":"SUM(DC:FC!AH35)","v":0},0]
["xxx",{"$f":"SUM(DC:FC!B36)","v":0},{"$f":"SUM(DC:FC!C36)","v":0},{"$f":"SUM(DC:FC!D36)","v":0},{"$f":"SUM(DC:FC!E36)","v":0},{"$f":"SUM(DC:FC!F36)","v":0},{"$f":"SUM(DC:FC!G36)","v":0},{"$f":"SUM(DC:FC!H36)","v":0},{"$f":"SUM(DC:FC!I36)","v":0},{"$f":"SUM(DC:FC!J36)","v":0},{"$f":"SUM(DC:FC!K36)","v":0},{"$f":"SUM(DC:FC!L36)","v":0},{"$f":"SUM(DC:FC!M36)","v":0},{"$f":"SUM(DC:FC!N36)","v":0},{"$f":"SUM(DC:FC!O36)","v":0},{"$f":"SUM(DC:FC!P36)","v":0},{"$f":"SUM(DC:FC!Q36)","v":0},{"$f":"SUM(DC:FC!R36)","v":0},{"$f":"SUM(DC:FC!S36)","v":0},{"$f":"SUM(DC:FC!T36)","v":0},{"$f":"SUM(DC:FC!U36)","v":0},{"$f":"SUM(DC:FC!V36)","v":0},{"$f":"SUM(DC:FC!W36)","v":0},{"$f":"SUM(DC:FC!X36)","v":0},{"$f":"SUM(DC:FC!Y36)","v":0},{"$f":"SUM(DC:FC!Z36)","v":0},{"$f":"SUM(DC:FC!AA36)","v":0},{"$f":"SUM(DC:FC!AB36)","v":0},{"$f":"SUM(DC:FC!AC36)","v":0},{"$f":"SUM(DC:FC!AD36)","v":0},{"$f":"SUM(DC:FC!AE36)","v":0},{"$f":"SUM(DC:FC!AF36)","v":0},{"$f":"SUM(DC:FC!AG36)","v":0},{"$f":"SUM(DC:FC!AH36)","v":0},0]
["TOTAL ",{"$f":"SUM(B4:B36)","v":0},{"$f":"SUM(C4:C36)","v":0},0,0,0,0,0,0,0,34,0,0,0,0,0,0,0,0,0,0,0,0,0,0,0,0,0,0,0,0,0,0,0,0]
[]
[]
[]
["total des heures"]
["total ENT"]
["magasin "]
["heures GESINDUS"]

{"sheet":"SEMAINE2","index":3,"n_rows":44,"n_cols":35,"rows_kept":44,"cut":false,"hidden":false,"merged":[[0,0,0,9]]}
["RECAP SEMAINE DU 02/01 AU 08/01/17"]
["atelier mécanique","présence","heures de\nrappel à 200%","heures de\n rappel à\n 300 %","heures\nsupplém\nà 150 %","grève","jour\nférié \nchômé","congé\npayé*","Réduction temps travail","repos \ncompens\nastreinte* ","astreinte\npayée\n(2h75)+absence autorisée payée","abattement\nheures\nsuplémen. non payée","repos \ncompens\nheures suppl.","repos \ncompens\nsur heures de\nnuit*","réunion\nusine","heures\nvisite \nmédicale","absence\n maladie","accident du\ntravail","congés\nconvent","congés\nnaissance","abs non rémunérée","réunion hors temps travail CE","réunion hors temps travail DP","réunion hors temps travail CHSCT","CCE","Heure délégation CE","Heure délégation DP","Heure délégation CHSCT","Indemnité \nde \nrappel","idemnité \nde\ntransport","indemnité\nde\ntransport","prime de\nresponsabilité","prime\nconditions\nparticulières","formation","total heures"]
["Noms","P","HR2","HR3","HS2","GR","JF0","CP","RTT","RC4","AA1","AHS","RC3","RC8","RIU","VM","AM","AT1","CC","CN",null,null,null,null,null,null,null,null,"IR1","IT","ITL","PR","PS","FT"]
["xxx",4,null,null,null,null,null,null,null,null,null,null,null,null,null,null,null,null,null,null,null,null,null,null,null,null,null,null,null,null,null,null,null,null,{"$f":"B4+H4+I4+J4+M4+N4+AH4","v":4}]
["xxx",null,null,null,null,null,null,null,null,null,null,null,null,null,null,null,null,null,null,null,null,null,null,null,null,null,null,null,null,null,null,null,null,null,{"$f":"B5+H5+I5+J5+M5+N5+AH5","v":0}]
["xxx",null,null,null,null,null,null,null,null,null,null,null,null,null,null,null,null,null,null,null,null,null,null,null,null,null,null,null,null,null,null,null,null,null,0]
["xxx",null,null,null,null,null,null,null,null,null,null,null,null,null,null,null,null,null,null,null,null,null,null,null,null,null,null,null,null,null,null,null,null,null,0]
["xxx",null,null,null,null,null,null,null,null,null,null,null,null,null,null,null,null,null,null,null,null,null,null,null,null,null,null,null,null,null,null,null,null,null,0]
["xxx",null,null,null,null,null,null,null,null,null,null,null,null,null,null,null,null,null,null,null,null,null,null,null,null,null,null,null,null,null,null,null,null,null,0]
["xxx",null,null,null,null,null,null,null,null,null,null,null,null,null,null,null,null,null,null,null,null,null,null,null,null,null,null,null,null,null,null,null,null,null,0]
["xxx",null,null,null,null,null,null,null,null,null,null,null,null,null,null,null,null,null,null,null,null,null,null,null,null,null,null,null,null,null,null,null,null,null,0]
["xxx",null,null,null,null,null,null,null,null,null,null,null,null,null,null,null,null,null,null,null,null,null,null,null,null,null,null,null,null,null,null,null,null,null,0]
["xxx",null,null,null,null,null,null,null,null,null,null,null,null,null,null,null,null,null,null,null,null,null,null,null,null,null,null,null,null,null,null,null,null,null,0]
["xxx",null,null,null,null,null,null,null,null,null,null,null,null,null,null,null,null,null,null,null,null,null,null,null,null,null,null,null,null,null,null,null,null,null,0]
["xxx",null,null,null,null,null,null,null,null,null,null,null,null,null,null,null,null,null,null,null,null,null,null,null,null,null,null,null,null,null,null,null,null,null,0]
["xxx",null,null,null,null,null,null,null,null,null,null,null,null,null,null,null,null,null,null,null,null,null,null,null,null,null,null,null,null,null,null,null,null,null,0]
["xxx",null,null,null,null,null,null,null,null,null,null,null,null,null,null,null,null,null,null,null,null,null,null,null,null,null,null,null,null,null,null,null,null,null,0]
["xxx",null,null,null,null,null,null,null,null,null,null,null,null,null,null,null,null,null,null,null,null,null,null,null,null,null,null,null,null,null,null,null,null,null,0]
["xxx",null,null,null,null,null,null,null,null,null,null,null,null,null,null,null,null,null,null,null,null,null,null,null,null,null,null,null,null,null,null,null,null,null,0]
["xxx",null,null,null,null,null,null,null,null,null,null,null,null,null,null,null,null,null,null,null,null,null,null,null,null,null,null,null,null,null,null,null,null,null,0]
["atelier électrique"]
["xxx",null,null,null,null,null,null,null,null,1,null,null,null,null,null,null,null,null,null,null,null,null,null,null,null,null,null,null,null,null,null,null,null,null,1]
["xxx",null,null,null,null,null,null,null,null,1,null,null,null,null,null,null,null,null,null,null,null,null,null,null,null,null,null,null,null,null,null,null,null,null,1]
["xxx",null,null,null,null,null,null,null,null,1,null,null,null,null,null,null,null,null,null,null,null,null,null,null,null,null,null,null,null,null,null,null,null,null,1]
["xxx",null,null,null,null,null,null,null,null,1,null,null,null,null,null,null,null,null,null,null,null,null,null,null,null,null,null,null,null,null,null,null,null,null,1]
["xxx",null,null,null,null,null,null,null,null,1,null,null,null,null,null,null,null,null,null,null,null,null,null,null,null,null,null,null,null,null,null,null,null,null,1]
["xxx",null,null,null,null,null,null,null,null,1,null,null,null,null,null,null,null,null,null,null,null,null,null,null,null,null,null,null,null,null,null,null,null,null,1]
["xxx",null,null,null,null,null,null,null,null,1,null,null,null,null,null,null,null,null,null,null,null,null,null,null,null,null,null,null,null,null,null,null,null,null,1]
["xxx",null,null,null,null,null,null,null,null,1,null,null,null,null,null,null,null,null,null,null,null,null,null,null,null,null,null,null,null,null,null,null,null,null,1]
["xxx",null,null,null,null,null,null,null,null,1,null,null,null,null,null,null,null,null,null,null,null,null,null,null,null,null,null,null,null,null,null,null,null,null,1]
["xxx",null,null,null,null,null,null,null,null,1,null,null,null,null,null,null,null,null,null,null,null,null,null,null,null,null,null,null,null,null,null,null,null,null,1]
["Magasin général"]
["xxx",null,null,null,null,null,null,null,null,null,null,null,null,null,null,null,null,null,null,null,null,null,null,null,null,null,null,null,null,null,null,null,null,null,0]
["xxx",null,null,null,null,null,null,null,null,null,null,null,null,null,null,null,null,null,null,null,null,null,null,null,null,null,null,null,null,null,null,null,null,null,0]
["xxx",null,null,null,null,null,null,null,null,null,null,null,null,null,null,null,null,null,null,null,null,null,null,null,null,null,null,null,null,null,null,null,null,null,0]
["xxx",null,null,null,null,null,null,null,null,null,null,null,null,null,null,null,null,null,null,null,null,null,null,null,null,null,null,null,null,null,null,null,null,null,0]
["TOTAL ",{"$f":"SUM(B4:B36)","v":4},{"$f":"SUM(C4:C36)","v":0},0,0,0,0,0,0,10,0,0,0,0,0,0,0,0,0,0,0,0,0,0,0,0,0,0,0,0,0,0,0,0,14]
[]
[]
[]
["total des heures"]
["total ENT"]
["magasin "]
["heures GESINDUS"]

{"sheet":"SEMAINE3","index":4,"n_rows":44,"n_cols":35,"rows_kept":44,"cut":false,"hidden":false,"merged":[[0,0,0,9]]}
["RECAP SEMAINE DU 02/01 AU 08/01/17"]
["atelier mécanique","présence","heures de\nrappel à 200%","heures de\n rappel à\n 300 %","heures\nsupplém\nà 150 %","grève","jour\nférié \nchômé","congé\npayé*","Réduction temps travail","repos \ncompens\nastreinte* ","astreinte\npayée\n(2h75)+absence autorisée payée","abattement\nheures\nsuplémen. non payée","repos \ncompens\nheures suppl.","repos \ncompens\nsur heures de\nnuit*","réunion\nusine","heures\nvisite \nmédicale","absence\n maladie","accident du\ntravail","congés\nconvent","congés\nnaissance","abs non rémunérée","réunion hors temps travail CE","réunion hors temps travail DP","réunion hors temps travail CHSCT","CCE","Heure délégation CE","Heure délégation DP","Heure délégation CHSCT","Indemnité \nde \nrappel","idemnité \nde\ntransport","indemnité\nde\ntransport","prime de\nresponsabilité","prime\nconditions\nparticulières","formation","total heures"]
["Noms","P","HR2","HR3","HS2","GR","JF0","CP","RTT","RC4","AA1","AHS","RC3","RC8","RIU","VM","AM","AT1","CC","CN",null,null,null,null,null,null,null,null,"IR1","IT","ITL","PR","PS","FT"]
["xxx",8,null,null,null,null,null,null,null,null,null,null,null,null,null,null,null,null,null,null,null,null,null,null,null,null,null,null,null,null,null,null,null,null,{"$f":"B4+H4+I4+J4+M4+N4+AH4","v":8}]
["xxx",null,null,null,null,null,null,null,null,null,null,null,null,null,null,null,null,null,null,null,null,null,null,null,null,null,null,null,null,null,null,null,null,null,{"$f":"B5+H5+I5+J5+M5+N5+AH5","v":0}]
["xxx",null,null,null,null,null,null,null,null,null,null,null,null,null,null,null,null,null,null,null,null,null,null,null,null,null,null,null,null,null,null,null,null,null,0]
["xxx",null,null,null,null,null,null,null,null,null,null,null,null,null,null,null,null,null,null,null,null,null,null,null,null,null,null,null,null,null,null,null,null,null,0]
["xxx",null,null,null,null,null,null,null,null,null,null,null,null,null,null,null,null,null,null,null,null,null,null,null,null,null,null,null,null,null,null,null,null,null,0]
["xxx",null,null,null,null,null,null,null,null,null,null,null,null,null,null,null,null,null,null,null,null,null,null,null,null,null,null,null,null,null,null,null,null,null,0]
["xxx",null,null,null,null,null,null,null,null,null,null,null,null,null,null,null,null,null,null,null,null,null,null,null,null,null,null,null,null,null,null,null,null,null,0]
["xxx",null,null,null,null,null,null,null,null,null,null,null,null,null,null,null,null,null,null,null,null,null,null,null,null,null,null,null,null,null,null,null,null,null,0]
["xxx",null,null,null,null,null,null,null,null,null,null,null,null,null,null,null,null,null,null,null,null,null,null,null,null,null,null,null,null,null,null,null,null,null,0]
["xxx",null,null,null,null,null,null,null,null,null,null,null,null,null,null,null,null,null,null,null,null,null,null,null,null,null,null,null,null,null,null,null,null,null,0]
["xxx",null,null,null,null,null,null,null,null,null,null,null,null,null,null,null,null,null,null,null,null,null,null,null,null,null,null,null,null,null,null,null,null,null,0]
["xxx",null,null,null,null,null,null,null,null,null,null,null,null,null,null,null,null,null,null,null,null,null,null,null,null,null,null,null,null,null,null,null,null,null,0]
["xxx",null,null,null,null,null,null,null,null,null,null,null,null,null,null,null,null,null,null,null,null,null,null,null,null,null,null,null,null,null,null,null,null,null,0]
["xxx",null,null,null,null,null,null,null,null,null,null,null,null,null,null,null,null,null,null,null,null,null,null,null,null,null,null,null,null,null,null,null,null,null,0]
["xxx",null,null,null,null,null,null,null,null,null,null,null,null,null,null,null,null,null,null,null,null,null,null,null,null,null,null,null,null,null,null,null,null,null,0]
["xxx",null,null,null,null,null,null,null,null,null,null,null,null,null,null,null,null,null,null,null,null,null,null,null,null,null,null,null,null,null,null,null,null,null,0]
["xxx",null,null,null,null,null,null,null,null,null,null,null,null,null,null,null,null,null,null,null,null,null,null,null,null,null,null,null,null,null,null,null,null,null,0]
["atelier électrique"]
["xxx",null,null,null,null,null,null,null,null,null,null,null,null,null,null,null,null,null,null,null,null,null,null,null,null,null,null,null,null,null,null,null,null,null,0]
["xxx",null,null,null,null,null,null,null,null,null,null,null,null,null,null,null,null,null,null,null,null,null,null,null,null,null,null,null,null,null,null,null,null,null,0]
["xxx",null,null,null,null,null,null,null,null,null,null,null,null,null,null,null,null,null,null,null,null,null,null,null,null,null,null,null,null,null,null,null,null,null,0]
["xxx",null,null,null,null,null,null,null,null,null,null,null,null,null,null,null,null,null,null,null,null,null,null,null,null,null,null,null,null,null,null,null,null,null,0]
["xxx",null,null,null,null,null,null,null,null,null,null,null,null,null,null,null,null,null,null,null,null,null,null,null,null,null,null,null,null,null,null,null,null,null,0]
["xxx",null,null,null,null,null,null,null,null,null,null,null,null,null,null,null,null,null,null,null,null,null,null,null,null,null,null,null,null,null,null,null,null,null,0]
["xxx",null,null,null,null,null,null,null,null,null,null,null,null,null,null,null,null,null,null,null,null,null,null,null,null,null,null,null,null,null,null,null,null,null,0]
["xxx",null,null,null,null,null,null,null,null,null,null,null,null,null,null,null,null,null,null,null,null,null,null,null,null,null,null,null,null,null,null,null,null,null,0]
["xxx",null,null,null,null,null,null,null,null,null,null,null,null,null,null,null,null,null,null,null,null,null,null,null,null,null,null,null,null,null,null,null,null,null,0]
["xxx",null,null,null,null,null,null,null,null,null,null,null,null,null,null,null,null,null,null,null,null,null,null,null,null,null,null,null,null,null,null,null,null,null,0]
["Magasin général"]
["xxx",null,null,null,null,null,null,null,null,null,null,null,null,null,null,null,null,null,null,null,null,null,null,null,null,null,null,null,null,null,null,null,null,null,0]
["xxx",null,null,null,null,null,null,null,null,null,null,null,null,null,null,null,null,null,null,null,null,null,null,null,null,null,null,null,null,null,null,null,null,null,0]
["xxx",null,null,null,null,null,null,null,null,null,null,null,null,null,null,null,null,null,null,null,null,null,null,null,null,null,null,null,null,null,null,null,null,null,0]
["xxx",null,null,null,null,null,null,null,null,null,null,null,null,null,null,null,null,null,null,null,null,null,null,null,null,null,null,null,null,null,null,null,null,null,0]
["TOTAL ",{"$f":"SUM(B4:B36)","v":8},{"$f":"SUM(C4:C36)","v":0},0,0,0,0,0,0,0,0,0,0,0,0,0,0,0,0,0,0,0,0,0,0,0,0,0,0,0,0,0,0,0,8]
[]
[]
[]
["total des heures"]
["total ENT"]
["magasin "]
["heures GESINDUS"]

{"sheet":"SEMAINE4","index":5,"n_rows":44,"n_cols":35,"rows_kept":44,"cut":false,"hidden":false,"merged":[[0,0,0,9]]}
["RECAP SEMAINE DU 09 AU 15/01/17"]
["atelier mécanique","présence","heures de\nrappel à 200%","heures de\n rappel à\n 300 %","heures\nsupplém\nà 150 %","grève","jour\nférié \nchômé","congé\npayé*","Réduction temps travail","repos \ncompens\nastreinte* ","astreinte\npayée\n(2h75)+absence autorisée payée","abattement\nheures\nsuplémen. non payée","repos \ncompens\nheures suppl.","repos \ncompens\nsur heures de\nnuit*","réunion\nusine","heures\nvisite \nmédicale","absence\n maladie","accident du\ntravail","congés\nconvent","congés\nnaissance","abs non rémunérée","réunion hors temps travail CE","réunion hors temps travail DP","réunion hors temps travail CHSCT","CCE","Heure délégation CE","Heure délégation DP","Heure délégation CHSCT","Indemnité \nde \nrappel","idemnité \nde\ntransport","indemnité\nde\ntransport","prime de\nresponsabilité","prime\nconditions\nparticulières","formation","total heures"]
["Noms","P","HR2","HR3","HS2","GR","JF0","CP","RTT","RC4","AA1","AHS","RC3","RC8","RIU","VM","AM","AT1","CC","CN",null,null,null,null,null,null,null,null,"IR1","IT","ITL","PR","PS","FT"]
["xxx",10,null,null,null,null,null,null,null,null,null,null,null,null,null,null,null,null,null,null,null,null,null,null,null,null,null,null,null,null,null,null,null,null,{"$f":"B4+H4+I4+J4+M4+N4+AH4","v":10}]
["xxx",null,null,null,null,null,null,null,null,null,null,null,null,null,null,null,null,null,null,null,null,null,null,null,null,null,null,null,null,null,null,null,null,null,{"$f":"B5+H5+I5+J5+M5+N5+AH5","v":0}]
["xxx",null,null,null,null,null,null,null,null,null,null,null,null,null,null,null,null,null,null,null,null,null,null,null,null,null,null,null,null,null,null,null,null,null,0]
["xxx",null,null,null,null,null,null,null,null,null,null,null,null,null,null,null,null,null,null,null,null,null,null,null,null,null,null,null,null,null,null,null,null,null,0]
["xxx",null,null,null,null,null,null,null,null,null,null,null,null,null,null,null,null,null,null,null,null,null,null,null,null,null,null,null,null,null,null,null,null,null,0]
["xxx",null,null,null,null,null,null,null,null,null,null,null,null,null,null,null,null,null,null,null,null,null,null,null,null,null,null,null,null,null,null,null,null,null,0]
["xxx",null,null,null,null,null,null,null,null,null,null,null,null,null,null,null,null,null,null,null,null,null,null,null,null,null,null,null,null,null,null,null,null,null,0]
["xxx",null,null,null,null,null,null,null,null,null,null,null,null,null,null,null,null,null,null,null,null,null,null,null,null,null,null,null,null,null,null,null,null,null,0]
["xxx",null,null,null,null,null,null,null,null,null,null,null,null,null,null,null,null,null,null,null,null,null,null,null,null,null,null,null,null,null,null,null,null,null,0]
["xxx",null,null,null,null,null,null,null,null,null,null,null,null,null,null,null,null,null,null,null,null,null,null,null,null,null,null,null,null,null,null,null,null,null,0]
["xxx",null,null,null,null,null,null,null,null,null,null,null,null,null,null,null,null,null,null,null,null,null,null,null,null,null,null,null,null,null,null,null,null,null,0]
["xxx",null,null,null,null,null,null,null,null,null,null,null,null,null,null,null,null,null,null,null,null,null,null,null,null,null,null,null,null,null,null,null,null,null,0]
["xxx",null,null,null,null,null,null,null,null,null,null,null,null,null,null,null,null,null,null,null,null,null,null,null,null,null,null,null,null,null,null,null,null,null,0]
["xxx",null,null,null,null,null,null,null,null,null,null,null,null,null,null,null,null,null,null,null,null,null,null,null,null,null,null,null,null,null,null,null,null,null,0]
["xxx",null,null,null,null,null,null,null,null,null,null,null,null,null,null,null,null,null,null,null,null,null,null,null,null,null,null,null,null,null,null,null,null,null,0]
["xxx",null,null,null,null,null,null,null,null,null,null,null,null,null,null,null,null,null,null,null,null,null,null,null,null,null,null,null,null,null,null,null,null,null,0]
["xxx",null,null,null,null,null,null,null,null,null,null,null,null,null,null,null,null,null,null,null,null,null,null,null,null,null,null,null,null,null,null,null,null,null,0]
["atelier électrique"]
["xxx",null,null,null,null,null,null,null,null,null,null,null,null,null,null,null,null,null,null,null,null,null,null,null,null,null,null,null,null,null,null,null,null,null,0]
["xxx",null,null,null,null,null,null,null,null,null,null,null,null,null,null,null,null,null,null,null,null,null,null,null,null,null,null,null,null,null,null,null,null,null,0]
["xxx",null,null,null,null,null,null,null,null,null,null,null,null,null,null,null,null,null,null,null,null,null,null,null,null,null,null,null,null,null,null,null,null,null,0]
["xxx",null,null,null,null,null,null,null,null,null,null,null,null,null,null,null,null,null,null,null,null,null,null,null,null,null,null,null,null,null,null,null,null,null,0]
["xxx",null,null,null,null,null,null,null,null,null,null,null,null,null,null,null,null,null,null,null,null,null,null,null,null,null,null,null,null,null,null,null,null,null,0]
["xxx",null,null,null,null,null,null,null,null,null,null,null,null,null,null,null,null,null,null,null,null,null,null,null,null,null,null,null,null,null,null,null,null,null,0]
["xxx",null,null,null,null,null,null,null,null,null,null,null,null,null,null,null,null,null,null,null,null,null,null,null,null,null,null,null,null,null,null,null,null,null,0]
["xxx",null,null,null,null,null,null,null,null,null,null,null,null,null,null,null,null,null,null,null,null,null,null,null,null,null,null,null,null,null,null,null,null,null,0]
["xxx",null,null,null,null,null,null,null,null,null,null,null,null,null,null,null,null,null,null,null,null,null,null,null,null,null,null,null,null,null,null,null,null,null,0]
["xxx",null,null,null,null,null,null,null,null,null,null,null,null,null,null,null,null,null,null,null,null,null,null,null,null,null,null,null,null,null,null,null,null,null,0]
["Magasin général"]
["xxx",null,null,null,null,null,null,null,null,null,null,null,null,null,null,null,null,null,null,null,null,null,null,null,null,null,null,null,null,null,null,null,null,null,0]
["xxx",null,null,null,null,null,null,null,null,null,null,null,null,null,null,null,null,null,null,null,null,null,null,null,null,null,null,null,null,null,null,null,null,null,0]
["xxx",null,null,null,null,null,null,null,null,null,null,null,null,null,null,null,null,null,null,null,null,null,null,null,null,null,null,null,null,null,null,null,null,null,0]
["xxx",null,null,null,null,null,null,null,null,null,null,null,null,null,null,null,null,null,null,null,null,null,null,null,null,null,null,null,null,null,null,null,null,null,0]
["TOTAL ",{"$f":"SUM(B4:B36)","v":10},{"$f":"SUM(C4:C36)","v":0},0,0,0,0,0,0,0,0,0,0,0,0,0,0,0,0,0,0,0,0,0,0,0,0,0,0,0,0,0,0,0,10]
[]
[]
[]
["total des heures"]
["total ENT"]
["magasin "]
["heures GESINDUS"]

{"sheet":"SEMAINE5","index":6,"n_rows":44,"n_cols":35,"rows_kept":44,"cut":false,"hidden":false,"merged":[[0,0,0,9]]}
["RECAP SEMAINE DU 09 AU 15/01/17"]
["atelier mécanique","présence","heures de\nrappel à 200%","heures de\n rappel à\n 300 %","heures\nsupplém\nà 150 %","grève","jour\nférié \nchômé","congé\npayé*","Réduction temps travail","repos \ncompens\nastreinte* ","astreinte\npayée\n(2h75)+absence autorisée payée","abattement\nheures\nsuplémen. non payée","repos \ncompens\nheures suppl.","repos \ncompens\nsur heures de\nnuit*","réunion\nusine","heures\nvisite \nmédicale","absence\n maladie","accident du\ntravail","congés\nconvent","congés\nnaissance","abs non rémunérée","réunion hors temps travail CE","réunion hors temps travail DP","réunion hors temps travail CHSCT","CCE","Heure délégation CE","Heure délégation DP","Heure délégation CHSCT","Indemnité \nde \nrappel","idemnité \nde\ntransport","indemnité\nde\ntransport","prime de\nresponsabilité","prime\nconditions\nparticulières","formation","total heures"]
["Noms","P","HR2","HR3","HS2","GR","JF0","CP","RTT","RC4","AA1","AHS","RC3","RC8","RIU","VM","AM","AT1","CC","CN",null,null,null,null,null,null,null,null,"IR1","IT","ITL","PR","PS","FT"]
["xxx",100,null,null,null,null,null,null,null,null,null,null,null,null,null,null,null,null,null,null,null,null,null,null,null,null,null,null,null,null,null,null,null,null,{"$f":"B4+H4+I4+J4+M4+N4+AH4","v":100}]
["xxx",null,null,null,null,null,null,null,null,null,null,null,null,null,null,null,null,null,null,null,null,null,null,null,null,null,null,null,null,null,null,null,null,null,{"$f":"B5+H5+I5+J5+M5+N5+AH5","v":0}]
["xxx",null,null,null,null,null,null,null,null,null,null,null,null,null,null,null,null,null,null,null,null,null,null,null,null,null,null,null,null,null,null,null,null,null,0]
["xxx",null,null,null,null,null,null,null,null,null,null,null,null,null,null,null,null,null,null,null,null,null,null,null,null,null,null,null,null,null,null,null,null,null,0]
["xxx",null,null,null,null,null,null,null,null,null,null,null,null,null,null,null,null,null,null,null,null,null,null,null,null,null,null,null,null,null,null,null,null,null,0]
["xxx",null,null,null,null,null,null,null,null,null,null,null,null,null,null,null,null,null,null,null,null,null,null,null,null,null,null,null,null,null,null,null,null,null,0]
["xxx",null,null,null,null,null,null,null,null,null,null,null,null,null,null,null,null,null,null,null,null,null,null,null,null,null,null,null,null,null,null,null,null,null,0]
["xxx",null,null,null,null,null,null,null,null,null,null,null,null,null,null,null,null,null,null,null,null,null,null,null,null,null,null,null,null,null,null,null,null,null,0]
["xxx",null,null,null,null,null,null,null,null,null,null,null,null,null,null,null,null,null,null,null,null,null,null,null,null,null,null,null,null,null,null,null,null,null,0]
["xxx",null,null,null,null,null,null,null,null,null,null,null,null,null,null,null,null,null,null,null,null,null,null,null,null,null,null,null,null,null,null,null,null,null,0]
["xxx",null,null,null,null,null,null,null,null,null,null,null,null,null,null,null,null,null,null,null,null,null,null,null,null,null,null,null,null,null,null,null,null,null,0]
["xxx",null,null,null,null,null,null,null,null,null,null,null,null,null,null,null,null,null,null,null,null,null,null,null,null,null,null,null,null,null,null,null,null,null,0]
["xxx",null,null,null,null,null,null,null,null,null,null,null,null,null,null,null,null,null,null,null,null,null,null,null,null,null,null,null,null,null,null,null,null,null,0]
["xxx",null,null,null,null,null,null,null,null,null,null,null,null,null,null,null,null,null,null,null,null,null,null,null,null,null,null,null,null,null,null,null,null,null,0]
["xxx",null,null,null,null,null,null,null,null,null,null,null,null,null,null,null,null,null,null,null,null,null,null,null,null,null,null,null,null,null,null,null,null,null,0]
["xxx",null,null,null,null,null,null,null,null,null,null,null,null,null,null,null,null,null,null,null,null,null,null,null,null,null,null,null,null,null,null,null,null,null,0]
["xxx",null,null,null,null,null,null,null,null,null,null,null,null,null,null,null,null,null,null,null,null,null,null,null,null,null,null,null,null,null,null,null,null,null,0]
["atelier électrique"]
["xxx",null,null,null,null,null,null,null,null,null,null,null,null,null,null,null,null,null,null,null,null,null,null,null,null,null,null,null,null,null,null,null,null,null,0]
["xxx",null,null,null,null,null,null,null,null,null,null,null,null,null,null,null,null,null,null,null,null,null,null,null,null,null,null,null,null,null,null,null,null,null,0]
["xxx",null,null,null,null,null,null,null,null,null,null,null,null,null,null,null,null,null,null,null,null,null,null,null,null,null,null,null,null,null,null,null,null,null,0]
["xxx",null,null,null,null,null,null,null,null,null,null,null,null,null,null,null,null,null,null,null,null,null,null,null,null,null,null,null,null,null,null,null,null,null,0]
["xxx",null,null,null,null,null,null,null,null,null,null,null,null,null,null,null,null,null,null,null,null,null,null,null,null,null,null,null,null,null,null,null,null,null,0]
["xxx",null,null,null,null,null,null,null,null,null,null,null,null,null,null,null,null,null,null,null,null,null,null,null,null,null,null,null,null,null,null,null,null,null,0]
["xxx",null,null,null,null,null,null,null,null,null,null,null,null,null,null,null,null,null,null,null,null,null,null,null,null,null,null,null,null,null,null,null,null,null,0]
["xxx",null,null,null,null,null,null,null,null,null,null,null,null,null,null,null,null,null,null,null,null,null,null,null,null,null,null,null,null,null,null,null,null,null,0]
["xxx",null,null,null,null,null,null,null,null,null,null,null,null,null,null,null,null,null,null,null,null,null,null,null,null,null,null,null,null,null,null,null,null,null,0]
["xxx",null,null,null,null,null,null,null,null,null,null,null,null,null,null,null,null,null,null,null,null,null,null,null,null,null,null,null,null,null,null,null,null,null,0]
["Magasin général"]
["xxx",null,null,null,null,null,null,null,null,null,null,null,null,null,null,null,null,null,null,null,null,null,null,null,null,null,null,null,null,null,null,null,null,null,0]
["xxx",null,null,null,null,null,null,null,null,null,null,null,null,null,null,null,null,null,null,null,null,null,null,null,null,null,null,null,null,null,null,null,null,null,0]
["xxx",null,null,null,null,null,null,null,null,null,null,null,null,null,null,null,null,null,null,null,null,null,null,null,null,null,null,null,null,null,null,null,null,null,0]
["xxx",null,null,null,null,null,null,null,null,null,null,null,null,null,null,null,null,null,null,null,null,null,null,null,null,null,null,null,null,null,null,null,null,null,0]
["TOTAL ",{"$f":"SUM(B4:B36)","v":100},{"$f":"SUM(C4:C36)","v":0},0,0,0,0,0,0,0,0,0,0,0,0,0,0,0,0,0,0,0,0,0,0,0,0,0,0,0,0,0,0,0,100]
[]
[]
[]
["total des heures"]
["total ENT"]
["magasin "]
["heures GESINDUS"]

{"sheet":"RECAP PAIE","index":7,"n_rows":44,"n_cols":35,"rows_kept":44,"cut":false,"hidden":false,"merged":[[0,1,0,4]]}
["RECAP PAIE",null,null,null,null,"ABSENCES",null,null,null,null,null,null,null,null,null,null,null,null,null,null,null,null,null,null,null,null,null,"INDEMNITE ET PRIME"]
["atelier mécanique","présence","heures de\nrappel à 200%","heures de\n rappel à\n 300 %","heures\nsupplém\nà 150 %","grève","jour\nférié \nchômé","congé\npayé*","Réduction temps travail","repos \ncompens\nastreinte* ","astreinte\npayée\n(2h75)+absence autorisée payée","abattement\nheures\nsuplémen. non payée","repos \ncompens\nheures suppl.","repos \ncompens\nsur heures de\nnuit*","réunion\nusine","heures\nvisite \nmédicale","absence\n maladie","accident du\ntravail","congés\nconvent","congés\nnaissance","abs non rémunérée","réunion hors temps travail CE","réunion hors temps travail DP","réunion hors temps travail CHSCT","CCE","Heure délégation CE","Heure délégation DP","Heure délégation CHSCT","Indemnité \nde \nrappel","idemnité \nde\ntransport","indemnité\nde\ntransport","prime de\nresponsabilité","prime\nconditions\nparticulières","formation","total heures"]
["Noms","P","HR2","HR3","HS2","GR","JF0","CP","RTT","RC4","AA1","AHS","RC3","RC8","RIU","VM","AM","AT1","CC","CN",null,null,null,null,null,null,null,null,"IR1","IT","ITL","PR","PS","FT"]
["xxx",{"$f":"SUM(SEMAINE1:SEMAINE5!B4)","v":122},{"$f":"SUM(SEMAINE1:SEMAINE5!C4)","v":0},{"$f":"SUM(SEMAINE1:SEMAINE5!D4)","v":0},{"$f":"SUM(SEMAINE1:SEMAINE5!E4)","v":0},{"$f":"SUM(SEMAINE1:SEMAINE5!F4)","v":0},{"$f":"SUM(SEMAINE1:SEMAINE5!G4)","v":0},{"$f":"SUM(SEMAINE1:SEMAINE5!H4)","v":0},{"$f":"SUM(SEMAINE1:SEMAINE5!I4)","v":0},{"$f":"SUM(SEMAINE1:SEMAINE5!J4)","v":0},{"$f":"SUM(SEMAINE1:SEMAINE5!K4)","v":2},{"$f":"SUM(SEMAINE1:SEMAINE5!L4)","v":0},{"$f":"SUM(SEMAINE1:SEMAINE5!M4)","v":0},{"$f":"SUM(SEMAINE1:SEMAINE5!N4)","v":0},{"$f":"SUM(SEMAINE1:SEMAINE5!O4)","v":0},{"$f":"SUM(SEMAINE1:SEMAINE5!P4)","v":0},{"$f":"SUM(SEMAINE1:SEMAINE5!Q4)","v":0},{"$f":"SUM(SEMAINE1:SEMAINE5!R4)","v":0},{"$f":"SUM(SEMAINE1:SEMAINE5!S4)","v":0},{"$f":"SUM(SEMAINE1:SEMAINE5!T4)","v":0},{"$f":"SUM(SEMAINE1:SEMAINE5!U4)","v":0},{"$f":"SUM(SEMAINE1:SEMAINE5!V4)","v":0},{"$f":"SUM(SEMAINE1:SEMAINE5!W4)","v":0},{"$f":"SUM(SEMAINE1:SEMAINE5!X4)","v":0},{"$f":"SUM(SEMAINE1:SEMAINE5!Y4)","v":0},{"$f":"SUM(SEMAINE1:SEMAINE5!Z4)","v":0},{"$f":"SUM(SEMAINE1:SEMAINE5!AA4)","v":0},{"$f":"SUM(SEMAINE1:SEMAINE5!AB4)","v":0},{"$f":"SUM(SEMAINE1:SEMAINE5!AC4)","v":0},{"$f":"SUM(SEMAINE1:SEMAINE5!AD4)","v":0},{"$f":"SUM(SEMAINE1:SEMAINE5!AE4)","v":0},{"$f":"SUM(SEMAINE1:SEMAINE5!AF4)","v":0},{"$f":"SUM(SEMAINE1:SEMAINE5!AG4)","v":0},{"$f":"SUM(SEMAINE1:SEMAINE5!AH4)","v":0},{"$f":"B4+H4+I4+J4+M4+N4+AH4","v":122}]
["xxx",{"$f":"SUM(SEMAINE1:SEMAINE5!B5)","v":0},{"$f":"SUM(SEMAINE1:SEMAINE5!C5)","v":0},{"$f":"SUM(SEMAINE1:SEMAINE5!D5)","v":0},{"$f":"SUM(SEMAINE1:SEMAINE5!E5)","v":0},{"$f":"SUM(SEMAINE1:SEMAINE5!F5)","v":0},{"$f":"SUM(SEMAINE1:SEMAINE5!G5)","v":0},{"$f":"SUM(SEMAINE1:SEMAINE5!H5)","v":0},{"$f":"SUM(SEMAINE1:SEMAINE5!I5)","v":0},{"$f":"SUM(SEMAINE1:SEMAINE5!J5)","v":0},{"$f":"SUM(SEMAINE1:SEMAINE5!K5)","v":2},{"$f":"SUM(SEMAINE1:SEMAINE5!L5)","v":0},{"$f":"SUM(SEMAINE1:SEMAINE5!M5)","v":0},{"$f":"SUM(SEMAINE1:SEMAINE5!N5)","v":0},{"$f":"SUM(SEMAINE1:SEMAINE5!O5)","v":0},{"$f":"SUM(SEMAINE1:SEMAINE5!P5)","v":0},{"$f":"SUM(SEMAINE1:SEMAINE5!Q5)","v":0},{"$f":"SUM(SEMAINE1:SEMAINE5!R5)","v":0},{"$f":"SUM(SEMAINE1:SEMAINE5!S5)","v":0},{"$f":"SUM(SEMAINE1:SEMAINE5!T5)","v":0},{"$f":"SUM(SEMAINE1:SEMAINE5!U5)","v":0},{"$f":"SUM(SEMAINE1:SEMAINE5!V5)","v":0},{"$f":"SUM(SEMAINE1:SEMAINE5!W5)","v":0},{"$f":"SUM(SEMAINE1:SEMAINE5!X5)","v":0},{"$f":"SUM(SEMAINE1:SEMAINE5!Y5)","v":0},{"$f":"SUM(SEMAINE1:SEMAINE5!Z5)","v":0},{"$f":"SUM(SEMAINE1:SEMAINE5!AA5)","v":0},{"$f":"SUM(SEMAINE1:SEMAINE5!AB5)","v":0},{"$f":"SUM(SEMAINE1:SEMAINE5!AC5)","v":0},{"$f":"SUM(SEMAINE1:SEMAINE5!AD5)","v":0},{"$f":"SUM(SEMAINE1:SEMAINE5!AE5)","v":0},{"$f":"SUM(SEMAINE1:SEMAINE5!AF5)","v":0},{"$f":"SUM(SEMAINE1:SEMAINE5!AG5)","v":0},{"$f":"SUM(SEMAINE1:SEMAINE5!AH5)","v":0},{"$f":"B5+H5+I5+J5+M5+N5+AH5","v":0}]
["xxx",{"$f":"SUM(SEMAINE1:SEMAINE5!B6)","v":0},{"$f":"SUM(SEMAINE1:SEMAINE5!C6)","v":0},{"$f":"SUM(SEMAINE1:SEMAINE5!D6)","v":0},{"$f":"SUM(SEMAINE1:SEMAINE5!E6)","v":0},{"$f":"SUM(SEMAINE1:SEMAINE5!F6)","v":0},{"$f":"SUM(SEMAINE1:SEMAINE5!G6)","v":0},{"$f":"SUM(SEMAINE1:SEMAINE5!H6)","v":0},{"$f":"SUM(SEMAINE1:SEMAINE5!I6)","v":0},{"$f":"SUM(SEMAINE1:SEMAINE5!J6)","v":0},{"$f":"SUM(SEMAINE1:SEMAINE5!K6)","v":2},{"$f":"SUM(SEMAINE1:SEMAINE5!L6)","v":0},{"$f":"SUM(SEMAINE1:SEMAINE5!M6)","v":0},{"$f":"SUM(SEMAINE1:SEMAINE5!N6)","v":0},{"$f":"SUM(SEMAINE1:SEMAINE5!O6)","v":0},{"$f":"SUM(SEMAINE1:SEMAINE5!P6)","v":0},{"$f":"SUM(SEMAINE1:SEMAINE5!Q6)","v":0},{"$f":"SUM(SEMAINE1:SEMAINE5!R6)","v":0},{"$f":"SUM(SEMAINE1:SEMAINE5!S6)","v":0},{"$f":"SUM(SEMAINE1:SEMAINE5!T6)","v":0},{"$f":"SUM(SEMAINE1:SEMAINE5!U6)","v":0},{"$f":"SUM(SEMAINE1:SEMAINE5!V6)","v":0},{"$f":"SUM(SEMAINE1:SEMAINE5!W6)","v":0},{"$f":"SUM(SEMAINE1:SEMAINE5!X6)","v":0},{"$f":"SUM(SEMAINE1:SEMAINE5!Y6)","v":0},{"$f":"SUM(SEMAINE1:SEMAINE5!Z6)","v":0},{"$f":"SUM(SEMAINE1:SEMAINE5!AA6)","v":0},{"$f":"SUM(SEMAINE1:SEMAINE5!AB6)","v":0},{"$f":"SUM(SEMAINE1:SEMAINE5!AC6)","v":0},{"$f":"SUM(SEMAINE1:SEMAINE5!AD6)","v":0},{"$f":"SUM(SEMAINE1:SEMAINE5!AE6)","v":0},{"$f":"SUM(SEMAINE1:SEMAINE5!AF6)","v":0},{"$f":"SUM(SEMAINE1:SEMAINE5!AG6)","v":0},{"$f":"SUM(SEMAINE1:SEMAINE5!AH6)","v":0},0]
["xxx",{"$f":"SUM(SEMAINE1:SEMAINE5!B7)","v":0},{"$f":"SUM(SEMAINE1:SEMAINE5!C7)","v":0},{"$f":"SUM(SEMAINE1:SEMAINE5!D7)","v":0},{"$f":"SUM(SEMAINE1:SEMAINE5!E7)","v":0},{"$f":"SUM(SEMAINE1:SEMAINE5!F7)","v":0},{"$f":"SUM(SEMAINE1:SEMAINE5!G7)","v":0},{"$f":"SUM(SEMAINE1:SEMAINE5!H7)","v":0},{"$f":"SUM(SEMAINE1:SEMAINE5!I7)","v":0},{"$f":"SUM(SEMAINE1:SEMAINE5!J7)","v":0},{"$f":"SUM(SEMAINE1:SEMAINE5!K7)","v":2},{"$f":"SUM(SEMAINE1:SEMAINE5!L7)","v":0},{"$f":"SUM(SEMAINE1:SEMAINE5!M7)","v":0},{"$f":"SUM(SEMAINE1:SEMAINE5!N7)","v":0},{"$f":"SUM(SEMAINE1:SEMAINE5!O7)","v":0},{"$f":"SUM(SEMAINE1:SEMAINE5!P7)","v":0},{"$f":"SUM(SEMAINE1:SEMAINE5!Q7)","v":0},{"$f":"SUM(SEMAINE1:SEMAINE5!R7)","v":0},{"$f":"SUM(SEMAINE1:SEMAINE5!S7)","v":0},{"$f":"SUM(SEMAINE1:SEMAINE5!T7)","v":0},{"$f":"SUM(SEMAINE1:SEMAINE5!U7)","v":0},{"$f":"SUM(SEMAINE1:SEMAINE5!V7)","v":0},{"$f":"SUM(SEMAINE1:SEMAINE5!W7)","v":0},{"$f":"SUM(SEMAINE1:SEMAINE5!X7)","v":0},{"$f":"SUM(SEMAINE1:SEMAINE5!Y7)","v":0},{"$f":"SUM(SEMAINE1:SEMAINE5!Z7)","v":0},{"$f":"SUM(SEMAINE1:SEMAINE5!AA7)","v":0},{"$f":"SUM(SEMAINE1:SEMAINE5!AB7)","v":0},{"$f":"SUM(SEMAINE1:SEMAINE5!AC7)","v":0},{"$f":"SUM(SEMAINE1:SEMAINE5!AD7)","v":0},{"$f":"SUM(SEMAINE1:SEMAINE5!AE7)","v":0},{"$f":"SUM(SEMAINE1:SEMAINE5!AF7)","v":0},{"$f":"SUM(SEMAINE1:SEMAINE5!AG7)","v":0},{"$f":"SUM(SEMAINE1:SEMAINE5!AH7)","v":0},0]
["xxx",{"$f":"SUM(SEMAINE1:SEMAINE5!B8)","v":0},{"$f":"SUM(SEMAINE1:SEMAINE5!C8)","v":0},{"$f":"SUM(SEMAINE1:SEMAINE5!D8)","v":0},{"$f":"SUM(SEMAINE1:SEMAINE5!E8)","v":0},{"$f":"SUM(SEMAINE1:SEMAINE5!F8)","v":0},{"$f":"SUM(SEMAINE1:SEMAINE5!G8)","v":0},{"$f":"SUM(SEMAINE1:SEMAINE5!H8)","v":0},{"$f":"SUM(SEMAINE1:SEMAINE5!I8)","v":0},{"$f":"SUM(SEMAINE1:SEMAINE5!J8)","v":0},{"$f":"SUM(SEMAINE1:SEMAINE5!K8)","v":2},{"$f":"SUM(SEMAINE1:SEMAINE5!L8)","v":0},{"$f":"SUM(SEMAINE1:SEMAINE5!M8)","v":0},{"$f":"SUM(SEMAINE1:SEMAINE5!N8)","v":0},{"$f":"SUM(SEMAINE1:SEMAINE5!O8)","v":0},{"$f":"SUM(SEMAINE1:SEMAINE5!P8)","v":0},{"$f":"SUM(SEMAINE1:SEMAINE5!Q8)","v":0},{"$f":"SUM(SEMAINE1:SEMAINE5!R8)","v":0},{"$f":"SUM(SEMAINE1:SEMAINE5!S8)","v":0},{"$f":"SUM(SEMAINE1:SEMAINE5!T8)","v":0},{"$f":"SUM(SEMAINE1:SEMAINE5!U8)","v":0},{"$f":"SUM(SEMAINE1:SEMAINE5!V8)","v":0},{"$f":"SUM(SEMAINE1:SEMAINE5!W8)","v":0},{"$f":"SUM(SEMAINE1:SEMAINE5!X8)","v":0},{"$f":"SUM(SEMAINE1:SEMAINE5!Y8)","v":0},{"$f":"SUM(SEMAINE1:SEMAINE5!Z8)","v":0},{"$f":"SUM(SEMAINE1:SEMAINE5!AA8)","v":0},{"$f":"SUM(SEMAINE1:SEMAINE5!AB8)","v":0},{"$f":"SUM(SEMAINE1:SEMAINE5!AC8)","v":0},{"$f":"SUM(SEMAINE1:SEMAINE5!AD8)","v":0},{"$f":"SUM(SEMAINE1:SEMAINE5!AE8)","v":0},{"$f":"SUM(SEMAINE1:SEMAINE5!AF8)","v":0},{"$f":"SUM(SEMAINE1:SEMAINE5!AG8)","v":0},{"$f":"SUM(SEMAINE1:SEMAINE5!AH8)","v":0},0]
["xxx",{"$f":"SUM(SEMAINE1:SEMAINE5!B9)","v":0},{"$f":"SUM(SEMAINE1:SEMAINE5!C9)","v":0},{"$f":"SUM(SEMAINE1:SEMAINE5!D9)","v":0},{"$f":"SUM(SEMAINE1:SEMAINE5!E9)","v":0},{"$f":"SUM(SEMAINE1:SEMAINE5!F9)","v":0},{"$f":"SUM(SEMAINE1:SEMAINE5!G9)","v":0},{"$f":"SUM(SEMAINE1:SEMAINE5!H9)","v":0},{"$f":"SUM(SEMAINE1:SEMAINE5!I9)","v":0},{"$f":"SUM(SEMAINE1:SEMAINE5!J9)","v":0},{"$f":"SUM(SEMAINE1:SEMAINE5!K9)","v":2},{"$f":"SUM(SEMAINE1:SEMAINE5!L9)","v":0},{"$f":"SUM(SEMAINE1:SEMAINE5!M9)","v":0},{"$f":"SUM(SEMAINE1:SEMAINE5!N9)","v":0},{"$f":"SUM(SEMAINE1:SEMAINE5!O9)","v":0},{"$f":"SUM(SEMAINE1:SEMAINE5!P9)","v":0},{"$f":"SUM(SEMAINE1:SEMAINE5!Q9)","v":0},{"$f":"SUM(SEMAINE1:SEMAINE5!R9)","v":0},{"$f":"SUM(SEMAINE1:SEMAINE5!S9)","v":0},{"$f":"SUM(SEMAINE1:SEMAINE5!T9)","v":0},{"$f":"SUM(SEMAINE1:SEMAINE5!U9)","v":0},{"$f":"SUM(SEMAINE1:SEMAINE5!V9)","v":0},{"$f":"SUM(SEMAINE1:SEMAINE5!W9)","v":0},{"$f":"SUM(SEMAINE1:SEMAINE5!X9)","v":0},{"$f":"SUM(SEMAINE1:SEMAINE5!Y9)","v":0},{"$f":"SUM(SEMAINE1:SEMAINE5!Z9)","v":0},{"$f":"SUM(SEMAINE1:SEMAINE5!AA9)","v":0},{"$f":"SUM(SEMAINE1:SEMAINE5!AB9)","v":0},{"$f":"SUM(SEMAINE1:SEMAINE5!AC9)","v":0},{"$f":"SUM(SEMAINE1:SEMAINE5!AD9)","v":0},{"$f":"SUM(SEMAINE1:SEMAINE5!AE9)","v":0},{"$f":"SUM(SEMAINE1:SEMAINE5!AF9)","v":0},{"$f":"SUM(SEMAINE1:SEMAINE5!AG9)","v":0},{"$f":"SUM(SEMAINE1:SEMAINE5!AH9)","v":0},0]
["xxx",{"$f":"SUM(SEMAINE1:SEMAINE5!B10)","v":0},{"$f":"SUM(SEMAINE1:SEMAINE5!C10)","v":0},{"$f":"SUM(SEMAINE1:SEMAINE5!D10)","v":0},{"$f":"SUM(SEMAINE1:SEMAINE5!E10)","v":0},{"$f":"SUM(SEMAINE1:SEMAINE5!F10)","v":0},{"$f":"SUM(SEMAINE1:SEMAINE5!G10)","v":0},{"$f":"SUM(SEMAINE1:SEMAINE5!H10)","v":0},{"$f":"SUM(SEMAINE1:SEMAINE5!I10)","v":0},{"$f":"SUM(SEMAINE1:SEMAINE5!J10)","v":0},{"$f":"SUM(SEMAINE1:SEMAINE5!K10)","v":2},{"$f":"SUM(SEMAINE1:SEMAINE5!L10)","v":0},{"$f":"SUM(SEMAINE1:SEMAINE5!M10)","v":0},{"$f":"SUM(SEMAINE1:SEMAINE5!N10)","v":0},{"$f":"SUM(SEMAINE1:SEMAINE5!O10)","v":0},{"$f":"SUM(SEMAINE1:SEMAINE5!P10)","v":0},{"$f":"SUM(SEMAINE1:SEMAINE5!Q10)","v":0},{"$f":"SUM(SEMAINE1:SEMAINE5!R10)","v":0},{"$f":"SUM(SEMAINE1:SEMAINE5!S10)","v":0},{"$f":"SUM(SEMAINE1:SEMAINE5!T10)","v":0},{"$f":"SUM(SEMAINE1:SEMAINE5!U10)","v":0},{"$f":"SUM(SEMAINE1:SEMAINE5!V10)","v":0},{"$f":"SUM(SEMAINE1:SEMAINE5!W10)","v":0},{"$f":"SUM(SEMAINE1:SEMAINE5!X10)","v":0},{"$f":"SUM(SEMAINE1:SEMAINE5!Y10)","v":0},{"$f":"SUM(SEMAINE1:SEMAINE5!Z10)","v":0},{"$f":"SUM(SEMAINE1:SEMAINE5!AA10)","v":0},{"$f":"SUM(SEMAINE1:SEMAINE5!AB10)","v":0},{"$f":"SUM(SEMAINE1:SEMAINE5!AC10)","v":0},{"$f":"SUM(SEMAINE1:SEMAINE5!AD10)","v":0},{"$f":"SUM(SEMAINE1:SEMAINE5!AE10)","v":0},{"$f":"SUM(SEMAINE1:SEMAINE5!AF10)","v":0},{"$f":"SUM(SEMAINE1:SEMAINE5!AG10)","v":0},{"$f":"SUM(SEMAINE1:SEMAINE5!AH10)","v":0},0]
["xxx",{"$f":"SUM(SEMAINE1:SEMAINE5!B11)","v":0},{"$f":"SUM(SEMAINE1:SEMAINE5!C11)","v":0},{"$f":"SUM(SEMAINE1:SEMAINE5!D11)","v":0},{"$f":"SUM(SEMAINE1:SEMAINE5!E11)","v":0},{"$f":"SUM(SEMAINE1:SEMAINE5!F11)","v":0},{"$f":"SUM(SEMAINE1:SEMAINE5!G11)","v":0},{"$f":"SUM(SEMAINE1:SEMAINE5!H11)","v":0},{"$f":"SUM(SEMAINE1:SEMAINE5!I11)","v":0},{"$f":"SUM(SEMAINE1:SEMAINE5!J11)","v":0},{"$f":"SUM(SEMAINE1:SEMAINE5!K11)","v":2},{"$f":"SUM(SEMAINE1:SEMAINE5!L11)","v":0},{"$f":"SUM(SEMAINE1:SEMAINE5!M11)","v":0},{"$f":"SUM(SEMAINE1:SEMAINE5!N11)","v":0},{"$f":"SUM(SEMAINE1:SEMAINE5!O11)","v":0},{"$f":"SUM(SEMAINE1:SEMAINE5!P11)","v":0},{"$f":"SUM(SEMAINE1:SEMAINE5!Q11)","v":0},{"$f":"SUM(SEMAINE1:SEMAINE5!R11)","v":0},{"$f":"SUM(SEMAINE1:SEMAINE5!S11)","v":0},{"$f":"SUM(SEMAINE1:SEMAINE5!T11)","v":0},{"$f":"SUM(SEMAINE1:SEMAINE5!U11)","v":0},{"$f":"SUM(SEMAINE1:SEMAINE5!V11)","v":0},{"$f":"SUM(SEMAINE1:SEMAINE5!W11)","v":0},{"$f":"SUM(SEMAINE1:SEMAINE5!X11)","v":0},{"$f":"SUM(SEMAINE1:SEMAINE5!Y11)","v":0},{"$f":"SUM(SEMAINE1:SEMAINE5!Z11)","v":0},{"$f":"SUM(SEMAINE1:SEMAINE5!AA11)","v":0},{"$f":"SUM(SEMAINE1:SEMAINE5!AB11)","v":0},{"$f":"SUM(SEMAINE1:SEMAINE5!AC11)","v":0},{"$f":"SUM(SEMAINE1:SEMAINE5!AD11)","v":0},{"$f":"SUM(SEMAINE1:SEMAINE5!AE11)","v":0},{"$f":"SUM(SEMAINE1:SEMAINE5!AF11)","v":0},{"$f":"SUM(SEMAINE1:SEMAINE5!AG11)","v":0},{"$f":"SUM(SEMAINE1:SEMAINE5!AH11)","v":0},0]
["xxx",{"$f":"SUM(SEMAINE1:SEMAINE5!B12)","v":0},{"$f":"SUM(SEMAINE1:SEMAINE5!C12)","v":0},{"$f":"SUM(SEMAINE1:SEMAINE5!D12)","v":0},{"$f":"SUM(SEMAINE1:SEMAINE5!E12)","v":0},{"$f":"SUM(SEMAINE1:SEMAINE5!F12)","v":0},{"$f":"SUM(SEMAINE1:SEMAINE5!G12)","v":0},{"$f":"SUM(SEMAINE1:SEMAINE5!H12)","v":0},{"$f":"SUM(SEMAINE1:SEMAINE5!I12)","v":0},{"$f":"SUM(SEMAINE1:SEMAINE5!J12)","v":0},{"$f":"SUM(SEMAINE1:SEMAINE5!K12)","v":2},{"$f":"SUM(SEMAINE1:SEMAINE5!L12)","v":0},{"$f":"SUM(SEMAINE1:SEMAINE5!M12)","v":0},{"$f":"SUM(SEMAINE1:SEMAINE5!N12)","v":0},{"$f":"SUM(SEMAINE1:SEMAINE5!O12)","v":0},{"$f":"SUM(SEMAINE1:SEMAINE5!P12)","v":0},{"$f":"SUM(SEMAINE1:SEMAINE5!Q12)","v":0},{"$f":"SUM(SEMAINE1:SEMAINE5!R12)","v":0},{"$f":"SUM(SEMAINE1:SEMAINE5!S12)","v":0},{"$f":"SUM(SEMAINE1:SEMAINE5!T12)","v":0},{"$f":"SUM(SEMAINE1:SEMAINE5!U12)","v":0},{"$f":"SUM(SEMAINE1:SEMAINE5!V12)","v":0},{"$f":"SUM(SEMAINE1:SEMAINE5!W12)","v":0},{"$f":"SUM(SEMAINE1:SEMAINE5!X12)","v":0},{"$f":"SUM(SEMAINE1:SEMAINE5!Y12)","v":0},{"$f":"SUM(SEMAINE1:SEMAINE5!Z12)","v":0},{"$f":"SUM(SEMAINE1:SEMAINE5!AA12)","v":0},{"$f":"SUM(SEMAINE1:SEMAINE5!AB12)","v":0},{"$f":"SUM(SEMAINE1:SEMAINE5!AC12)","v":0},{"$f":"SUM(SEMAINE1:SEMAINE5!AD12)","v":0},{"$f":"SUM(SEMAINE1:SEMAINE5!AE12)","v":0},{"$f":"SUM(SEMAINE1:SEMAINE5!AF12)","v":0},{"$f":"SUM(SEMAINE1:SEMAINE5!AG12)","v":0},{"$f":"SUM(SEMAINE1:SEMAINE5!AH12)","v":0},0]
["xxx",{"$f":"SUM(SEMAINE1:SEMAINE5!B13)","v":0},{"$f":"SUM(SEMAINE1:SEMAINE5!C13)","v":0},{"$f":"SUM(SEMAINE1:SEMAINE5!D13)","v":0},{"$f":"SUM(SEMAINE1:SEMAINE5!E13)","v":0},{"$f":"SUM(SEMAINE1:SEMAINE5!F13)","v":0},{"$f":"SUM(SEMAINE1:SEMAINE5!G13)","v":0},{"$f":"SUM(SEMAINE1:SEMAINE5!H13)","v":0},{"$f":"SUM(SEMAINE1:SEMAINE5!I13)","v":0},{"$f":"SUM(SEMAINE1:SEMAINE5!J13)","v":0},{"$f":"SUM(SEMAINE1:SEMAINE5!K13)","v":2},{"$f":"SUM(SEMAINE1:SEMAINE5!L13)","v":0},{"$f":"SUM(SEMAINE1:SEMAINE5!M13)","v":0},{"$f":"SUM(SEMAINE1:SEMAINE5!N13)","v":0},{"$f":"SUM(SEMAINE1:SEMAINE5!O13)","v":0},{"$f":"SUM(SEMAINE1:SEMAINE5!P13)","v":0},{"$f":"SUM(SEMAINE1:SEMAINE5!Q13)","v":0},{"$f":"SUM(SEMAINE1:SEMAINE5!R13)","v":0},{"$f":"SUM(SEMAINE1:SEMAINE5!S13)","v":0},{"$f":"SUM(SEMAINE1:SEMAINE5!T13)","v":0},{"$f":"SUM(SEMAINE1:SEMAINE5!U13)","v":0},{"$f":"SUM(SEMAINE1:SEMAINE5!V13)","v":0},{"$f":"SUM(SEMAINE1:SEMAINE5!W13)","v":0},{"$f":"SUM(SEMAINE1:SEMAINE5!X13)","v":0},{"$f":"SUM(SEMAINE1:SEMAINE5!Y13)","v":0},{"$f":"SUM(SEMAINE1:SEMAINE5!Z13)","v":0},{"$f":"SUM(SEMAINE1:SEMAINE5!AA13)","v":0},{"$f":"SUM(SEMAINE1:SEMAINE5!AB13)","v":0},{"$f":"SUM(SEMAINE1:SEMAINE5!AC13)","v":0},{"$f":"SUM(SEMAINE1:SEMAINE5!AD13)","v":0},{"$f":"SUM(SEMAINE1:SEMAINE5!AE13)","v":0},{"$f":"SUM(SEMAINE1:SEMAINE5!AF13)","v":0},{"$f":"SUM(SEMAINE1:SEMAINE5!AG13)","v":0},{"$f":"SUM(SEMAINE1:SEMAINE5!AH13)","v":0},0]
["xxx",{"$f":"SUM(SEMAINE1:SEMAINE5!B14)","v":0},{"$f":"SUM(SEMAINE1:SEMAINE5!C14)","v":0},{"$f":"SUM(SEMAINE1:SEMAINE5!D14)","v":0},{"$f":"SUM(SEMAINE1:SEMAINE5!E14)","v":0},{"$f":"SUM(SEMAINE1:SEMAINE5!F14)","v":0},{"$f":"SUM(SEMAINE1:SEMAINE5!G14)","v":0},{"$f":"SUM(SEMAINE1:SEMAINE5!H14)","v":0},{"$f":"SUM(SEMAINE1:SEMAINE5!I14)","v":0},{"$f":"SUM(SEMAINE1:SEMAINE5!J14)","v":0},{"$f":"SUM(SEMAINE1:SEMAINE5!K14)","v":2},{"$f":"SUM(SEMAINE1:SEMAINE5!L14)","v":0},{"$f":"SUM(SEMAINE1:SEMAINE5!M14)","v":0},{"$f":"SUM(SEMAINE1:SEMAINE5!N14)","v":0},{"$f":"SUM(SEMAINE1:SEMAINE5!O14)","v":0},{"$f":"SUM(SEMAINE1:SEMAINE5!P14)","v":0},{"$f":"SUM(SEMAINE1:SEMAINE5!Q14)","v":0},{"$f":"SUM(SEMAINE1:SEMAINE5!R14)","v":0},{"$f":"SUM(SEMAINE1:SEMAINE5!S14)","v":0},{"$f":"SUM(SEMAINE1:SEMAINE5!T14)","v":0},{"$f":"SUM(SEMAINE1:SEMAINE5!U14)","v":0},{"$f":"SUM(SEMAINE1:SEMAINE5!V14)","v":0},{"$f":"SUM(SEMAINE1:SEMAINE5!W14)","v":0},{"$f":"SUM(SEMAINE1:SEMAINE5!X14)","v":0},{"$f":"SUM(SEMAINE1:SEMAINE5!Y14)","v":0},{"$f":"SUM(SEMAINE1:SEMAINE5!Z14)","v":0},{"$f":"SUM(SEMAINE1:SEMAINE5!AA14)","v":0},{"$f":"SUM(SEMAINE1:SEMAINE5!AB14)","v":0},{"$f":"SUM(SEMAINE1:SEMAINE5!AC14)","v":0},{"$f":"SUM(SEMAINE1:SEMAINE5!AD14)","v":0},{"$f":"SUM(SEMAINE1:SEMAINE5!AE14)","v":0},{"$f":"SUM(SEMAINE1:SEMAINE5!AF14)","v":0},{"$f":"SUM(SEMAINE1:SEMAINE5!AG14)","v":0},{"$f":"SUM(SEMAINE1:SEMAINE5!AH14)","v":0},0]
["xxx",{"$f":"SUM(SEMAINE1:SEMAINE5!B15)","v":0},{"$f":"SUM(SEMAINE1:SEMAINE5!C15)","v":0},{"$f":"SUM(SEMAINE1:SEMAINE5!D15)","v":0},{"$f":"SUM(SEMAINE1:SEMAINE5!E15)","v":0},{"$f":"SUM(SEMAINE1:SEMAINE5!F15)","v":0},{"$f":"SUM(SEMAINE1:SEMAINE5!G15)","v":0},{"$f":"SUM(SEMAINE1:SEMAINE5!H15)","v":0},{"$f":"SUM(SEMAINE1:SEMAINE5!I15)","v":0},{"$f":"SUM(SEMAINE1:SEMAINE5!J15)","v":0},{"$f":"SUM(SEMAINE1:SEMAINE5!K15)","v":2},{"$f":"SUM(SEMAINE1:SEMAINE5!L15)","v":0},{"$f":"SUM(SEMAINE1:SEMAINE5!M15)","v":0},{"$f":"SUM(SEMAINE1:SEMAINE5!N15)","v":0},{"$f":"SUM(SEMAINE1:SEMAINE5!O15)","v":0},{"$f":"SUM(SEMAINE1:SEMAINE5!P15)","v":0},{"$f":"SUM(SEMAINE1:SEMAINE5!Q15)","v":0},{"$f":"SUM(SEMAINE1:SEMAINE5!R15)","v":0},{"$f":"SUM(SEMAINE1:SEMAINE5!S15)","v":0},{"$f":"SUM(SEMAINE1:SEMAINE5!T15)","v":0},{"$f":"SUM(SEMAINE1:SEMAINE5!U15)","v":0},{"$f":"SUM(SEMAINE1:SEMAINE5!V15)","v":0},{"$f":"SUM(SEMAINE1:SEMAINE5!W15)","v":0},{"$f":"SUM(SEMAINE1:SEMAINE5!X15)","v":0},{"$f":"SUM(SEMAINE1:SEMAINE5!Y15)","v":0},{"$f":"SUM(SEMAINE1:SEMAINE5!Z15)","v":0},{"$f":"SUM(SEMAINE1:SEMAINE5!AA15)","v":0},{"$f":"SUM(SEMAINE1:SEMAINE5!AB15)","v":0},{"$f":"SUM(SEMAINE1:SEMAINE5!AC15)","v":0},{"$f":"SUM(SEMAINE1:SEMAINE5!AD15)","v":0},{"$f":"SUM(SEMAINE1:SEMAINE5!AE15)","v":0},{"$f":"SUM(SEMAINE1:SEMAINE5!AF15)","v":0},{"$f":"SUM(SEMAINE1:SEMAINE5!AG15)","v":0},{"$f":"SUM(SEMAINE1:SEMAINE5!AH15)","v":0},0]
["xxx",{"$f":"SUM(SEMAINE1:SEMAINE5!B16)","v":0},{"$f":"SUM(SEMAINE1:SEMAINE5!C16)","v":0},{"$f":"SUM(SEMAINE1:SEMAINE5!D16)","v":0},{"$f":"SUM(SEMAINE1:SEMAINE5!E16)","v":0},{"$f":"SUM(SEMAINE1:SEMAINE5!F16)","v":0},{"$f":"SUM(SEMAINE1:SEMAINE5!G16)","v":0},{"$f":"SUM(SEMAINE1:SEMAINE5!H16)","v":0},{"$f":"SUM(SEMAINE1:SEMAINE5!I16)","v":0},{"$f":"SUM(SEMAINE1:SEMAINE5!J16)","v":0},{"$f":"SUM(SEMAINE1:SEMAINE5!K16)","v":2},{"$f":"SUM(SEMAINE1:SEMAINE5!L16)","v":0},{"$f":"SUM(SEMAINE1:SEMAINE5!M16)","v":0},{"$f":"SUM(SEMAINE1:SEMAINE5!N16)","v":0},{"$f":"SUM(SEMAINE1:SEMAINE5!O16)","v":0},{"$f":"SUM(SEMAINE1:SEMAINE5!P16)","v":0},{"$f":"SUM(SEMAINE1:SEMAINE5!Q16)","v":0},{"$f":"SUM(SEMAINE1:SEMAINE5!R16)","v":0},{"$f":"SUM(SEMAINE1:SEMAINE5!S16)","v":0},{"$f":"SUM(SEMAINE1:SEMAINE5!T16)","v":0},{"$f":"SUM(SEMAINE1:SEMAINE5!U16)","v":0},{"$f":"SUM(SEMAINE1:SEMAINE5!V16)","v":0},{"$f":"SUM(SEMAINE1:SEMAINE5!W16)","v":0},{"$f":"SUM(SEMAINE1:SEMAINE5!X16)","v":0},{"$f":"SUM(SEMAINE1:SEMAINE5!Y16)","v":0},{"$f":"SUM(SEMAINE1:SEMAINE5!Z16)","v":0},{"$f":"SUM(SEMAINE1:SEMAINE5!AA16)","v":0},{"$f":"SUM(SEMAINE1:SEMAINE5!AB16)","v":0},{"$f":"SUM(SEMAINE1:SEMAINE5!AC16)","v":0},{"$f":"SUM(SEMAINE1:SEMAINE5!AD16)","v":0},{"$f":"SUM(SEMAINE1:SEMAINE5!AE16)","v":0},{"$f":"SUM(SEMAINE1:SEMAINE5!AF16)","v":0},{"$f":"SUM(SEMAINE1:SEMAINE5!AG16)","v":0},{"$f":"SUM(SEMAINE1:SEMAINE5!AH16)","v":0},0]
["xxx",{"$f":"SUM(SEMAINE1:SEMAINE5!B17)","v":0},{"$f":"SUM(SEMAINE1:SEMAINE5!C17)","v":0},{"$f":"SUM(SEMAINE1:SEMAINE5!D17)","v":0},{"$f":"SUM(SEMAINE1:SEMAINE5!E17)","v":0},{"$f":"SUM(SEMAINE1:SEMAINE5!F17)","v":0},{"$f":"SUM(SEMAINE1:SEMAINE5!G17)","v":0},{"$f":"SUM(SEMAINE1:SEMAINE5!H17)","v":0},{"$f":"SUM(SEMAINE1:SEMAINE5!I17)","v":0},{"$f":"SUM(SEMAINE1:SEMAINE5!J17)","v":0},{"$f":"SUM(SEMAINE1:SEMAINE5!K17)","v":2},{"$f":"SUM(SEMAINE1:SEMAINE5!L17)","v":0},{"$f":"SUM(SEMAINE1:SEMAINE5!M17)","v":0},{"$f":"SUM(SEMAINE1:SEMAINE5!N17)","v":0},{"$f":"SUM(SEMAINE1:SEMAINE5!O17)","v":0},{"$f":"SUM(SEMAINE1:SEMAINE5!P17)","v":0},{"$f":"SUM(SEMAINE1:SEMAINE5!Q17)","v":0},{"$f":"SUM(SEMAINE1:SEMAINE5!R17)","v":0},{"$f":"SUM(SEMAINE1:SEMAINE5!S17)","v":0},{"$f":"SUM(SEMAINE1:SEMAINE5!T17)","v":0},{"$f":"SUM(SEMAINE1:SEMAINE5!U17)","v":0},{"$f":"SUM(SEMAINE1:SEMAINE5!V17)","v":0},{"$f":"SUM(SEMAINE1:SEMAINE5!W17)","v":0},{"$f":"SUM(SEMAINE1:SEMAINE5!X17)","v":0},{"$f":"SUM(SEMAINE1:SEMAINE5!Y17)","v":0},{"$f":"SUM(SEMAINE1:SEMAINE5!Z17)","v":0},{"$f":"SUM(SEMAINE1:SEMAINE5!AA17)","v":0},{"$f":"SUM(SEMAINE1:SEMAINE5!AB17)","v":0},{"$f":"SUM(SEMAINE1:SEMAINE5!AC17)","v":0},{"$f":"SUM(SEMAINE1:SEMAINE5!AD17)","v":0},{"$f":"SUM(SEMAINE1:SEMAINE5!AE17)","v":0},{"$f":"SUM(SEMAINE1:SEMAINE5!AF17)","v":0},{"$f":"SUM(SEMAINE1:SEMAINE5!AG17)","v":0},{"$f":"SUM(SEMAINE1:SEMAINE5!AH17)","v":0},0]
["xxx",{"$f":"SUM(SEMAINE1:SEMAINE5!B18)","v":0},{"$f":"SUM(SEMAINE1:SEMAINE5!C18)","v":0},{"$f":"SUM(SEMAINE1:SEMAINE5!D18)","v":0},{"$f":"SUM(SEMAINE1:SEMAINE5!E18)","v":0},{"$f":"SUM(SEMAINE1:SEMAINE5!F18)","v":0},{"$f":"SUM(SEMAINE1:SEMAINE5!G18)","v":0},{"$f":"SUM(SEMAINE1:SEMAINE5!H18)","v":0},{"$f":"SUM(SEMAINE1:SEMAINE5!I18)","v":0},{"$f":"SUM(SEMAINE1:SEMAINE5!J18)","v":0},{"$f":"SUM(SEMAINE1:SEMAINE5!K18)","v":2},{"$f":"SUM(SEMAINE1:SEMAINE5!L18)","v":0},{"$f":"SUM(SEMAINE1:SEMAINE5!M18)","v":0},{"$f":"SUM(SEMAINE1:SEMAINE5!N18)","v":0},{"$f":"SUM(SEMAINE1:SEMAINE5!O18)","v":0},{"$f":"SUM(SEMAINE1:SEMAINE5!P18)","v":0},{"$f":"SUM(SEMAINE1:SEMAINE5!Q18)","v":0},{"$f":"SUM(SEMAINE1:SEMAINE5!R18)","v":0},{"$f":"SUM(SEMAINE1:SEMAINE5!S18)","v":0},{"$f":"SUM(SEMAINE1:SEMAINE5!T18)","v":0},{"$f":"SUM(SEMAINE1:SEMAINE5!U18)","v":0},{"$f":"SUM(SEMAINE1:SEMAINE5!V18)","v":0},{"$f":"SUM(SEMAINE1:SEMAINE5!W18)","v":0},{"$f":"SUM(SEMAINE1:SEMAINE5!X18)","v":0},{"$f":"SUM(SEMAINE1:SEMAINE5!Y18)","v":0},{"$f":"SUM(SEMAINE1:SEMAINE5!Z18)","v":0},{"$f":"SUM(SEMAINE1:SEMAINE5!AA18)","v":0},{"$f":"SUM(SEMAINE1:SEMAINE5!AB18)","v":0},{"$f":"SUM(SEMAINE1:SEMAINE5!AC18)","v":0},{"$f":"SUM(SEMAINE1:SEMAINE5!AD18)","v":0},{"$f":"SUM(SEMAINE1:SEMAINE5!AE18)","v":0},{"$f":"SUM(SEMAINE1:SEMAINE5!AF18)","v":0},{"$f":"SUM(SEMAINE1:SEMAINE5!AG18)","v":0},{"$f":"SUM(SEMAINE1:SEMAINE5!AH18)","v":0},0]
["xxx",{"$f":"SUM(SEMAINE1:SEMAINE5!B19)","v":0},{"$f":"SUM(SEMAINE1:SEMAINE5!C19)","v":0},{"$f":"SUM(SEMAINE1:SEMAINE5!D19)","v":0},{"$f":"SUM(SEMAINE1:SEMAINE5!E19)","v":0},{"$f":"SUM(SEMAINE1:SEMAINE5!F19)","v":0},{"$f":"SUM(SEMAINE1:SEMAINE5!G19)","v":0},{"$f":"SUM(SEMAINE1:SEMAINE5!H19)","v":0},{"$f":"SUM(SEMAINE1:SEMAINE5!I19)","v":0},{"$f":"SUM(SEMAINE1:SEMAINE5!J19)","v":0},{"$f":"SUM(SEMAINE1:SEMAINE5!K19)","v":2},{"$f":"SUM(SEMAINE1:SEMAINE5!L19)","v":0},{"$f":"SUM(SEMAINE1:SEMAINE5!M19)","v":0},{"$f":"SUM(SEMAINE1:SEMAINE5!N19)","v":0},{"$f":"SUM(SEMAINE1:SEMAINE5!O19)","v":0},{"$f":"SUM(SEMAINE1:SEMAINE5!P19)","v":0},{"$f":"SUM(SEMAINE1:SEMAINE5!Q19)","v":0},{"$f":"SUM(SEMAINE1:SEMAINE5!R19)","v":0},{"$f":"SUM(SEMAINE1:SEMAINE5!S19)","v":0},{"$f":"SUM(SEMAINE1:SEMAINE5!T19)","v":0},{"$f":"SUM(SEMAINE1:SEMAINE5!U19)","v":0},{"$f":"SUM(SEMAINE1:SEMAINE5!V19)","v":0},{"$f":"SUM(SEMAINE1:SEMAINE5!W19)","v":0},{"$f":"SUM(SEMAINE1:SEMAINE5!X19)","v":0},{"$f":"SUM(SEMAINE1:SEMAINE5!Y19)","v":0},{"$f":"SUM(SEMAINE1:SEMAINE5!Z19)","v":0},{"$f":"SUM(SEMAINE1:SEMAINE5!AA19)","v":0},{"$f":"SUM(SEMAINE1:SEMAINE5!AB19)","v":0},{"$f":"SUM(SEMAINE1:SEMAINE5!AC19)","v":0},{"$f":"SUM(SEMAINE1:SEMAINE5!AD19)","v":0},{"$f":"SUM(SEMAINE1:SEMAINE5!AE19)","v":0},{"$f":"SUM(SEMAINE1:SEMAINE5!AF19)","v":0},{"$f":"SUM(SEMAINE1:SEMAINE5!AG19)","v":0},{"$f":"SUM(SEMAINE1:SEMAINE5!AH19)","v":0},0]
["xxx",{"$f":"SUM(SEMAINE1:SEMAINE5!B20)","v":0},{"$f":"SUM(SEMAINE1:SEMAINE5!C20)","v":0},{"$f":"SUM(SEMAINE1:SEMAINE5!D20)","v":0},{"$f":"SUM(SEMAINE1:SEMAINE5!E20)","v":0},{"$f":"SUM(SEMAINE1:SEMAINE5!F20)","v":0},{"$f":"SUM(SEMAINE1:SEMAINE5!G20)","v":0},{"$f":"SUM(SEMAINE1:SEMAINE5!H20)","v":0},{"$f":"SUM(SEMAINE1:SEMAINE5!I20)","v":0},{"$f":"SUM(SEMAINE1:SEMAINE5!J20)","v":0},{"$f":"SUM(SEMAINE1:SEMAINE5!K20)","v":2},{"$f":"SUM(SEMAINE1:SEMAINE5!L20)","v":0},{"$f":"SUM(SEMAINE1:SEMAINE5!M20)","v":0},{"$f":"SUM(SEMAINE1:SEMAINE5!N20)","v":0},{"$f":"SUM(SEMAINE1:SEMAINE5!O20)","v":0},{"$f":"SUM(SEMAINE1:SEMAINE5!P20)","v":0},{"$f":"SUM(SEMAINE1:SEMAINE5!Q20)","v":0},{"$f":"SUM(SEMAINE1:SEMAINE5!R20)","v":0},{"$f":"SUM(SEMAINE1:SEMAINE5!S20)","v":0},{"$f":"SUM(SEMAINE1:SEMAINE5!T20)","v":0},{"$f":"SUM(SEMAINE1:SEMAINE5!U20)","v":0},{"$f":"SUM(SEMAINE1:SEMAINE5!V20)","v":0},{"$f":"SUM(SEMAINE1:SEMAINE5!W20)","v":0},{"$f":"SUM(SEMAINE1:SEMAINE5!X20)","v":0},{"$f":"SUM(SEMAINE1:SEMAINE5!Y20)","v":0},{"$f":"SUM(SEMAINE1:SEMAINE5!Z20)","v":0},{"$f":"SUM(SEMAINE1:SEMAINE5!AA20)","v":0},{"$f":"SUM(SEMAINE1:SEMAINE5!AB20)","v":0},{"$f":"SUM(SEMAINE1:SEMAINE5!AC20)","v":0},{"$f":"SUM(SEMAINE1:SEMAINE5!AD20)","v":0},{"$f":"SUM(SEMAINE1:SEMAINE5!AE20)","v":0},{"$f":"SUM(SEMAINE1:SEMAINE5!AF20)","v":0},{"$f":"SUM(SEMAINE1:SEMAINE5!AG20)","v":0},{"$f":"SUM(SEMAINE1:SEMAINE5!AH20)","v":0},0]
["atelier électrique"]
["xxx",{"$f":"SUM(SEMAINE1:SEMAINE5!B22)","v":0},{"$f":"SUM(SEMAINE1:SEMAINE5!C22)","v":0},{"$f":"SUM(SEMAINE1:SEMAINE5!D22)","v":0},{"$f":"SUM(SEMAINE1:SEMAINE5!E22)","v":0},{"$f":"SUM(SEMAINE1:SEMAINE5!F22)","v":0},{"$f":"SUM(SEMAINE1:SEMAINE5!G22)","v":0},{"$f":"SUM(SEMAINE1:SEMAINE5!H22)","v":0},{"$f":"SUM(SEMAINE1:SEMAINE5!I22)","v":0},{"$f":"SUM(SEMAINE1:SEMAINE5!J22)","v":1},{"$f":"SUM(SEMAINE1:SEMAINE5!K22)","v":0},{"$f":"SUM(SEMAINE1:SEMAINE5!L22)","v":0},{"$f":"SUM(SEMAINE1:SEMAINE5!M22)","v":0},{"$f":"SUM(SEMAINE1:SEMAINE5!N22)","v":0},{"$f":"SUM(SEMAINE1:SEMAINE5!O22)","v":0},{"$f":"SUM(SEMAINE1:SEMAINE5!P22)","v":0},{"$f":"SUM(SEMAINE1:SEMAINE5!Q22)","v":0},{"$f":"SUM(SEMAINE1:SEMAINE5!R22)","v":0},{"$f":"SUM(SEMAINE1:SEMAINE5!S22)","v":0},{"$f":"SUM(SEMAINE1:SEMAINE5!T22)","v":0},{"$f":"SUM(SEMAINE1:SEMAINE5!U22)","v":0},{"$f":"SUM(SEMAINE1:SEMAINE5!V22)","v":0},{"$f":"SUM(SEMAINE1:SEMAINE5!W22)","v":0},{"$f":"SUM(SEMAINE1:SEMAINE5!X22)","v":0},{"$f":"SUM(SEMAINE1:SEMAINE5!Y22)","v":0},{"$f":"SUM(SEMAINE1:SEMAINE5!Z22)","v":0},{"$f":"SUM(SEMAINE1:SEMAINE5!AA22)","v":0},{"$f":"SUM(SEMAINE1:SEMAINE5!AB22)","v":0},{"$f":"SUM(SEMAINE1:SEMAINE5!AC22)","v":0},{"$f":"SUM(SEMAINE1:SEMAINE5!AD22)","v":0},{"$f":"SUM(SEMAINE1:SEMAINE5!AE22)","v":0},{"$f":"SUM(SEMAINE1:SEMAINE5!AF22)","v":0},{"$f":"SUM(SEMAINE1:SEMAINE5!AG22)","v":0},{"$f":"SUM(SEMAINE1:SEMAINE5!AH22)","v":0},1]
["xxx",{"$f":"SUM(SEMAINE1:SEMAINE5!B23)","v":0},{"$f":"SUM(SEMAINE1:SEMAINE5!C23)","v":0},{"$f":"SUM(SEMAINE1:SEMAINE5!D23)","v":0},{"$f":"SUM(SEMAINE1:SEMAINE5!E23)","v":0},{"$f":"SUM(SEMAINE1:SEMAINE5!F23)","v":0},{"$f":"SUM(SEMAINE1:SEMAINE5!G23)","v":0},{"$f":"SUM(SEMAINE1:SEMAINE5!H23)","v":0},{"$f":"SUM(SEMAINE1:SEMAINE5!I23)","v":0},{"$f":"SUM(SEMAINE1:SEMAINE5!J23)","v":1},{"$f":"SUM(SEMAINE1:SEMAINE5!K23)","v":0},{"$f":"SUM(SEMAINE1:SEMAINE5!L23)","v":0},{"$f":"SUM(SEMAINE1:SEMAINE5!M23)","v":0},{"$f":"SUM(SEMAINE1:SEMAINE5!N23)","v":0},{"$f":"SUM(SEMAINE1:SEMAINE5!O23)","v":0},{"$f":"SUM(SEMAINE1:SEMAINE5!P23)","v":0},{"$f":"SUM(SEMAINE1:SEMAINE5!Q23)","v":0},{"$f":"SUM(SEMAINE1:SEMAINE5!R23)","v":0},{"$f":"SUM(SEMAINE1:SEMAINE5!S23)","v":0},{"$f":"SUM(SEMAINE1:SEMAINE5!T23)","v":0},{"$f":"SUM(SEMAINE1:SEMAINE5!U23)","v":0},{"$f":"SUM(SEMAINE1:SEMAINE5!V23)","v":0},{"$f":"SUM(SEMAINE1:SEMAINE5!W23)","v":0},{"$f":"SUM(SEMAINE1:SEMAINE5!X23)","v":0},{"$f":"SUM(SEMAINE1:SEMAINE5!Y23)","v":0},{"$f":"SUM(SEMAINE1:SEMAINE5!Z23)","v":0},{"$f":"SUM(SEMAINE1:SEMAINE5!AA23)","v":0},{"$f":"SUM(SEMAINE1:SEMAINE5!AB23)","v":0},{"$f":"SUM(SEMAINE1:SEMAINE5!AC23)","v":0},{"$f":"SUM(SEMAINE1:SEMAINE5!AD23)","v":0},{"$f":"SUM(SEMAINE1:SEMAINE5!AE23)","v":0},{"$f":"SUM(SEMAINE1:SEMAINE5!AF23)","v":0},{"$f":"SUM(SEMAINE1:SEMAINE5!AG23)","v":0},{"$f":"SUM(SEMAINE1:SEMAINE5!AH23)","v":0},1]
["xxx",{"$f":"SUM(SEMAINE1:SEMAINE5!B24)","v":0},{"$f":"SUM(SEMAINE1:SEMAINE5!C24)","v":0},{"$f":"SUM(SEMAINE1:SEMAINE5!D24)","v":0},{"$f":"SUM(SEMAINE1:SEMAINE5!E24)","v":0},{"$f":"SUM(SEMAINE1:SEMAINE5!F24)","v":0},{"$f":"SUM(SEMAINE1:SEMAINE5!G24)","v":0},{"$f":"SUM(SEMAINE1:SEMAINE5!H24)","v":0},{"$f":"SUM(SEMAINE1:SEMAINE5!I24)","v":0},{"$f":"SUM(SEMAINE1:SEMAINE5!J24)","v":1},{"$f":"SUM(SEMAINE1:SEMAINE5!K24)","v":0},{"$f":"SUM(SEMAINE1:SEMAINE5!L24)","v":0},{"$f":"SUM(SEMAINE1:SEMAINE5!M24)","v":0},{"$f":"SUM(SEMAINE1:SEMAINE5!N24)","v":0},{"$f":"SUM(SEMAINE1:SEMAINE5!O24)","v":0},{"$f":"SUM(SEMAINE1:SEMAINE5!P24)","v":0},{"$f":"SUM(SEMAINE1:SEMAINE5!Q24)","v":0},{"$f":"SUM(SEMAINE1:SEMAINE5!R24)","v":0},{"$f":"SUM(SEMAINE1:SEMAINE5!S24)","v":0},{"$f":"SUM(SEMAINE1:SEMAINE5!T24)","v":0},{"$f":"SUM(SEMAINE1:SEMAINE5!U24)","v":0},{"$f":"SUM(SEMAINE1:SEMAINE5!V24)","v":0},{"$f":"SUM(SEMAINE1:SEMAINE5!W24)","v":0},{"$f":"SUM(SEMAINE1:SEMAINE5!X24)","v":0},{"$f":"SUM(SEMAINE1:SEMAINE5!Y24)","v":0},{"$f":"SUM(SEMAINE1:SEMAINE5!Z24)","v":0},{"$f":"SUM(SEMAINE1:SEMAINE5!AA24)","v":0},{"$f":"SUM(SEMAINE1:SEMAINE5!AB24)","v":0},{"$f":"SUM(SEMAINE1:SEMAINE5!AC24)","v":0},{"$f":"SUM(SEMAINE1:SEMAINE5!AD24)","v":0},{"$f":"SUM(SEMAINE1:SEMAINE5!AE24)","v":0},{"$f":"SUM(SEMAINE1:SEMAINE5!AF24)","v":0},{"$f":"SUM(SEMAINE1:SEMAINE5!AG24)","v":0},{"$f":"SUM(SEMAINE1:SEMAINE5!AH24)","v":0},1]
["xxx",{"$f":"SUM(SEMAINE1:SEMAINE5!B25)","v":0},{"$f":"SUM(SEMAINE1:SEMAINE5!C25)","v":0},{"$f":"SUM(SEMAINE1:SEMAINE5!D25)","v":0},{"$f":"SUM(SEMAINE1:SEMAINE5!E25)","v":0},{"$f":"SUM(SEMAINE1:SEMAINE5!F25)","v":0},{"$f":"SUM(SEMAINE1:SEMAINE5!G25)","v":0},{"$f":"SUM(SEMAINE1:SEMAINE5!H25)","v":0},{"$f":"SUM(SEMAINE1:SEMAINE5!I25)","v":0},{"$f":"SUM(SEMAINE1:SEMAINE5!J25)","v":1},{"$f":"SUM(SEMAINE1:SEMAINE5!K25)","v":0},{"$f":"SUM(SEMAINE1:SEMAINE5!L25)","v":0},{"$f":"SUM(SEMAINE1:SEMAINE5!M25)","v":0},{"$f":"SUM(SEMAINE1:SEMAINE5!N25)","v":0},{"$f":"SUM(SEMAINE1:SEMAINE5!O25)","v":0},{"$f":"SUM(SEMAINE1:SEMAINE5!P25)","v":0},{"$f":"SUM(SEMAINE1:SEMAINE5!Q25)","v":0},{"$f":"SUM(SEMAINE1:SEMAINE5!R25)","v":0},{"$f":"SUM(SEMAINE1:SEMAINE5!S25)","v":0},{"$f":"SUM(SEMAINE1:SEMAINE5!T25)","v":0},{"$f":"SUM(SEMAINE1:SEMAINE5!U25)","v":0},{"$f":"SUM(SEMAINE1:SEMAINE5!V25)","v":0},{"$f":"SUM(SEMAINE1:SEMAINE5!W25)","v":0},{"$f":"SUM(SEMAINE1:SEMAINE5!X25)","v":0},{"$f":"SUM(SEMAINE1:SEMAINE5!Y25)","v":0},{"$f":"SUM(SEMAINE1:SEMAINE5!Z25)","v":0},{"$f":"SUM(SEMAINE1:SEMAINE5!AA25)","v":0},{"$f":"SUM(SEMAINE1:SEMAINE5!AB25)","v":0},{"$f":"SUM(SEMAINE1:SEMAINE5!AC25)","v":0},{"$f":"SUM(SEMAINE1:SEMAINE5!AD25)","v":0},{"$f":"SUM(SEMAINE1:SEMAINE5!AE25)","v":0},{"$f":"SUM(SEMAINE1:SEMAINE5!AF25)","v":0},{"$f":"SUM(SEMAINE1:SEMAINE5!AG25)","v":0},{"$f":"SUM(SEMAINE1:SEMAINE5!AH25)","v":0},1]
["xxx",{"$f":"SUM(SEMAINE1:SEMAINE5!B26)","v":0},{"$f":"SUM(SEMAINE1:SEMAINE5!C26)","v":0},{"$f":"SUM(SEMAINE1:SEMAINE5!D26)","v":0},{"$f":"SUM(SEMAINE1:SEMAINE5!E26)","v":0},{"$f":"SUM(SEMAINE1:SEMAINE5!F26)","v":0},{"$f":"SUM(SEMAINE1:SEMAINE5!G26)","v":0},{"$f":"SUM(SEMAINE1:SEMAINE5!H26)","v":0},{"$f":"SUM(SEMAINE1:SEMAINE5!I26)","v":0},{"$f":"SUM(SEMAINE1:SEMAINE5!J26)","v":1},{"$f":"SUM(SEMAINE1:SEMAINE5!K26)","v":0},{"$f":"SUM(SEMAINE1:SEMAINE5!L26)","v":0},{"$f":"SUM(SEMAINE1:SEMAINE5!M26)","v":0},{"$f":"SUM(SEMAINE1:SEMAINE5!N26)","v":0},{"$f":"SUM(SEMAINE1:SEMAINE5!O26)","v":0},{"$f":"SUM(SEMAINE1:SEMAINE5!P26)","v":0},{"$f":"SUM(SEMAINE1:SEMAINE5!Q26)","v":0},{"$f":"SUM(SEMAINE1:SEMAINE5!R26)","v":0},{"$f":"SUM(SEMAINE1:SEMAINE5!S26)","v":0},{"$f":"SUM(SEMAINE1:SEMAINE5!T26)","v":0},{"$f":"SUM(SEMAINE1:SEMAINE5!U26)","v":0},{"$f":"SUM(SEMAINE1:SEMAINE5!V26)","v":0},{"$f":"SUM(SEMAINE1:SEMAINE5!W26)","v":0},{"$f":"SUM(SEMAINE1:SEMAINE5!X26)","v":0},{"$f":"SUM(SEMAINE1:SEMAINE5!Y26)","v":0},{"$f":"SUM(SEMAINE1:SEMAINE5!Z26)","v":0},{"$f":"SUM(SEMAINE1:SEMAINE5!AA26)","v":0},{"$f":"SUM(SEMAINE1:SEMAINE5!AB26)","v":0},{"$f":"SUM(SEMAINE1:SEMAINE5!AC26)","v":0},{"$f":"SUM(SEMAINE1:SEMAINE5!AD26)","v":0},{"$f":"SUM(SEMAINE1:SEMAINE5!AE26)","v":0},{"$f":"SUM(SEMAINE1:SEMAINE5!AF26)","v":0},{"$f":"SUM(SEMAINE1:SEMAINE5!AG26)","v":0},{"$f":"SUM(SEMAINE1:SEMAINE5!AH26)","v":0},1]
["xxx",{"$f":"SUM(SEMAINE1:SEMAINE5!B27)","v":0},{"$f":"SUM(SEMAINE1:SEMAINE5!C27)","v":0},{"$f":"SUM(SEMAINE1:SEMAINE5!D27)","v":0},{"$f":"SUM(SEMAINE1:SEMAINE5!E27)","v":0},{"$f":"SUM(SEMAINE1:SEMAINE5!F27)","v":0},{"$f":"SUM(SEMAINE1:SEMAINE5!G27)","v":0},{"$f":"SUM(SEMAINE1:SEMAINE5!H27)","v":0},{"$f":"SUM(SEMAINE1:SEMAINE5!I27)","v":0},{"$f":"SUM(SEMAINE1:SEMAINE5!J27)","v":1},{"$f":"SUM(SEMAINE1:SEMAINE5!K27)","v":0},{"$f":"SUM(SEMAINE1:SEMAINE5!L27)","v":0},{"$f":"SUM(SEMAINE1:SEMAINE5!M27)","v":0},{"$f":"SUM(SEMAINE1:SEMAINE5!N27)","v":0},{"$f":"SUM(SEMAINE1:SEMAINE5!O27)","v":0},{"$f":"SUM(SEMAINE1:SEMAINE5!P27)","v":0},{"$f":"SUM(SEMAINE1:SEMAINE5!Q27)","v":0},{"$f":"SUM(SEMAINE1:SEMAINE5!R27)","v":0},{"$f":"SUM(SEMAINE1:SEMAINE5!S27)","v":0},{"$f":"SUM(SEMAINE1:SEMAINE5!T27)","v":0},{"$f":"SUM(SEMAINE1:SEMAINE5!U27)","v":0},{"$f":"SUM(SEMAINE1:SEMAINE5!V27)","v":0},{"$f":"SUM(SEMAINE1:SEMAINE5!W27)","v":0},{"$f":"SUM(SEMAINE1:SEMAINE5!X27)","v":0},{"$f":"SUM(SEMAINE1:SEMAINE5!Y27)","v":0},{"$f":"SUM(SEMAINE1:SEMAINE5!Z27)","v":0},{"$f":"SUM(SEMAINE1:SEMAINE5!AA27)","v":0},{"$f":"SUM(SEMAINE1:SEMAINE5!AB27)","v":0},{"$f":"SUM(SEMAINE1:SEMAINE5!AC27)","v":0},{"$f":"SUM(SEMAINE1:SEMAINE5!AD27)","v":0},{"$f":"SUM(SEMAINE1:SEMAINE5!AE27)","v":0},{"$f":"SUM(SEMAINE1:SEMAINE5!AF27)","v":0},{"$f":"SUM(SEMAINE1:SEMAINE5!AG27)","v":0},{"$f":"SUM(SEMAINE1:SEMAINE5!AH27)","v":0},1]
["xxx",{"$f":"SUM(SEMAINE1:SEMAINE5!B28)","v":0},{"$f":"SUM(SEMAINE1:SEMAINE5!C28)","v":0},{"$f":"SUM(SEMAINE1:SEMAINE5!D28)","v":0},{"$f":"SUM(SEMAINE1:SEMAINE5!E28)","v":0},{"$f":"SUM(SEMAINE1:SEMAINE5!F28)","v":0},{"$f":"SUM(SEMAINE1:SEMAINE5!G28)","v":0},{"$f":"SUM(SEMAINE1:SEMAINE5!H28)","v":0},{"$f":"SUM(SEMAINE1:SEMAINE5!I28)","v":0},{"$f":"SUM(SEMAINE1:SEMAINE5!J28)","v":1},{"$f":"SUM(SEMAINE1:SEMAINE5!K28)","v":0},{"$f":"SUM(SEMAINE1:SEMAINE5!L28)","v":0},{"$f":"SUM(SEMAINE1:SEMAINE5!M28)","v":0},{"$f":"SUM(SEMAINE1:SEMAINE5!N28)","v":0},{"$f":"SUM(SEMAINE1:SEMAINE5!O28)","v":0},{"$f":"SUM(SEMAINE1:SEMAINE5!P28)","v":0},{"$f":"SUM(SEMAINE1:SEMAINE5!Q28)","v":0},{"$f":"SUM(SEMAINE1:SEMAINE5!R28)","v":0},{"$f":"SUM(SEMAINE1:SEMAINE5!S28)","v":0},{"$f":"SUM(SEMAINE1:SEMAINE5!T28)","v":0},{"$f":"SUM(SEMAINE1:SEMAINE5!U28)","v":0},{"$f":"SUM(SEMAINE1:SEMAINE5!V28)","v":0},{"$f":"SUM(SEMAINE1:SEMAINE5!W28)","v":0},{"$f":"SUM(SEMAINE1:SEMAINE5!X28)","v":0},{"$f":"SUM(SEMAINE1:SEMAINE5!Y28)","v":0},{"$f":"SUM(SEMAINE1:SEMAINE5!Z28)","v":0},{"$f":"SUM(SEMAINE1:SEMAINE5!AA28)","v":0},{"$f":"SUM(SEMAINE1:SEMAINE5!AB28)","v":0},{"$f":"SUM(SEMAINE1:SEMAINE5!AC28)","v":0},{"$f":"SUM(SEMAINE1:SEMAINE5!AD28)","v":0},{"$f":"SUM(SEMAINE1:SEMAINE5!AE28)","v":0},{"$f":"SUM(SEMAINE1:SEMAINE5!AF28)","v":0},{"$f":"SUM(SEMAINE1:SEMAINE5!AG28)","v":0},{"$f":"SUM(SEMAINE1:SEMAINE5!AH28)","v":0},1]
["xxx",{"$f":"SUM(SEMAINE1:SEMAINE5!B29)","v":0},{"$f":"SUM(SEMAINE1:SEMAINE5!C29)","v":0},{"$f":"SUM(SEMAINE1:SEMAINE5!D29)","v":0},{"$f":"SUM(SEMAINE1:SEMAINE5!E29)","v":0},{"$f":"SUM(SEMAINE1:SEMAINE5!F29)","v":0},{"$f":"SUM(SEMAINE1:SEMAINE5!G29)","v":0},{"$f":"SUM(SEMAINE1:SEMAINE5!H29)","v":0},{"$f":"SUM(SEMAINE1:SEMAINE5!I29)","v":0},{"$f":"SUM(SEMAINE1:SEMAINE5!J29)","v":1},{"$f":"SUM(SEMAINE1:SEMAINE5!K29)","v":0},{"$f":"SUM(SEMAINE1:SEMAINE5!L29)","v":0},{"$f":"SUM(SEMAINE1:SEMAINE5!M29)","v":0},{"$f":"SUM(SEMAINE1:SEMAINE5!N29)","v":0},{"$f":"SUM(SEMAINE1:SEMAINE5!O29)","v":0},{"$f":"SUM(SEMAINE1:SEMAINE5!P29)","v":0},{"$f":"SUM(SEMAINE1:SEMAINE5!Q29)","v":0},{"$f":"SUM(SEMAINE1:SEMAINE5!R29)","v":0},{"$f":"SUM(SEMAINE1:SEMAINE5!S29)","v":0},{"$f":"SUM(SEMAINE1:SEMAINE5!T29)","v":0},{"$f":"SUM(SEMAINE1:SEMAINE5!U29)","v":0},{"$f":"SUM(SEMAINE1:SEMAINE5!V29)","v":0},{"$f":"SUM(SEMAINE1:SEMAINE5!W29)","v":0},{"$f":"SUM(SEMAINE1:SEMAINE5!X29)","v":0},{"$f":"SUM(SEMAINE1:SEMAINE5!Y29)","v":0},{"$f":"SUM(SEMAINE1:SEMAINE5!Z29)","v":0},{"$f":"SUM(SEMAINE1:SEMAINE5!AA29)","v":0},{"$f":"SUM(SEMAINE1:SEMAINE5!AB29)","v":0},{"$f":"SUM(SEMAINE1:SEMAINE5!AC29)","v":0},{"$f":"SUM(SEMAINE1:SEMAINE5!AD29)","v":0},{"$f":"SUM(SEMAINE1:SEMAINE5!AE29)","v":0},{"$f":"SUM(SEMAINE1:SEMAINE5!AF29)","v":0},{"$f":"SUM(SEMAINE1:SEMAINE5!AG29)","v":0},{"$f":"SUM(SEMAINE1:SEMAINE5!AH29)","v":0},1]
["xxx",{"$f":"SUM(SEMAINE1:SEMAINE5!B30)","v":0},{"$f":"SUM(SEMAINE1:SEMAINE5!C30)","v":0},{"$f":"SUM(SEMAINE1:SEMAINE5!D30)","v":0},{"$f":"SUM(SEMAINE1:SEMAINE5!E30)","v":0},{"$f":"SUM(SEMAINE1:SEMAINE5!F30)","v":0},{"$f":"SUM(SEMAINE1:SEMAINE5!G30)","v":0},{"$f":"SUM(SEMAINE1:SEMAINE5!H30)","v":0},{"$f":"SUM(SEMAINE1:SEMAINE5!I30)","v":0},{"$f":"SUM(SEMAINE1:SEMAINE5!J30)","v":1},{"$f":"SUM(SEMAINE1:SEMAINE5!K30)","v":0},{"$f":"SUM(SEMAINE1:SEMAINE5!L30)","v":0},{"$f":"SUM(SEMAINE1:SEMAINE5!M30)","v":0},{"$f":"SUM(SEMAINE1:SEMAINE5!N30)","v":0},{"$f":"SUM(SEMAINE1:SEMAINE5!O30)","v":0},{"$f":"SUM(SEMAINE1:SEMAINE5!P30)","v":0},{"$f":"SUM(SEMAINE1:SEMAINE5!Q30)","v":0},{"$f":"SUM(SEMAINE1:SEMAINE5!R30)","v":0},{"$f":"SUM(SEMAINE1:SEMAINE5!S30)","v":0},{"$f":"SUM(SEMAINE1:SEMAINE5!T30)","v":0},{"$f":"SUM(SEMAINE1:SEMAINE5!U30)","v":0},{"$f":"SUM(SEMAINE1:SEMAINE5!V30)","v":0},{"$f":"SUM(SEMAINE1:SEMAINE5!W30)","v":0},{"$f":"SUM(SEMAINE1:SEMAINE5!X30)","v":0},{"$f":"SUM(SEMAINE1:SEMAINE5!Y30)","v":0},{"$f":"SUM(SEMAINE1:SEMAINE5!Z30)","v":0},{"$f":"SUM(SEMAINE1:SEMAINE5!AA30)","v":0},{"$f":"SUM(SEMAINE1:SEMAINE5!AB30)","v":0},{"$f":"SUM(SEMAINE1:SEMAINE5!AC30)","v":0},{"$f":"SUM(SEMAINE1:SEMAINE5!AD30)","v":0},{"$f":"SUM(SEMAINE1:SEMAINE5!AE30)","v":0},{"$f":"SUM(SEMAINE1:SEMAINE5!AF30)","v":0},{"$f":"SUM(SEMAINE1:SEMAINE5!AG30)","v":0},{"$f":"SUM(SEMAINE1:SEMAINE5!AH30)","v":0},1]
["xxx",{"$f":"SUM(SEMAINE1:SEMAINE5!B31)","v":0},{"$f":"SUM(SEMAINE1:SEMAINE5!C31)","v":0},{"$f":"SUM(SEMAINE1:SEMAINE5!D31)","v":0},{"$f":"SUM(SEMAINE1:SEMAINE5!E31)","v":0},{"$f":"SUM(SEMAINE1:SEMAINE5!F31)","v":0},{"$f":"SUM(SEMAINE1:SEMAINE5!G31)","v":0},{"$f":"SUM(SEMAINE1:SEMAINE5!H31)","v":0},{"$f":"SUM(SEMAINE1:SEMAINE5!I31)","v":0},{"$f":"SUM(SEMAINE1:SEMAINE5!J31)","v":1},{"$f":"SUM(SEMAINE1:SEMAINE5!K31)","v":0},{"$f":"SUM(SEMAINE1:SEMAINE5!L31)","v":0},{"$f":"SUM(SEMAINE1:SEMAINE5!M31)","v":0},{"$f":"SUM(SEMAINE1:SEMAINE5!N31)","v":0},{"$f":"SUM(SEMAINE1:SEMAINE5!O31)","v":0},{"$f":"SUM(SEMAINE1:SEMAINE5!P31)","v":0},{"$f":"SUM(SEMAINE1:SEMAINE5!Q31)","v":0},{"$f":"SUM(SEMAINE1:SEMAINE5!R31)","v":0},{"$f":"SUM(SEMAINE1:SEMAINE5!S31)","v":0},{"$f":"SUM(SEMAINE1:SEMAINE5!T31)","v":0},{"$f":"SUM(SEMAINE1:SEMAINE5!U31)","v":0},{"$f":"SUM(SEMAINE1:SEMAINE5!V31)","v":0},{"$f":"SUM(SEMAINE1:SEMAINE5!W31)","v":0},{"$f":"SUM(SEMAINE1:SEMAINE5!X31)","v":0},{"$f":"SUM(SEMAINE1:SEMAINE5!Y31)","v":0},{"$f":"SUM(SEMAINE1:SEMAINE5!Z31)","v":0},{"$f":"SUM(SEMAINE1:SEMAINE5!AA31)","v":0},{"$f":"SUM(SEMAINE1:SEMAINE5!AB31)","v":0},{"$f":"SUM(SEMAINE1:SEMAINE5!AC31)","v":0},{"$f":"SUM(SEMAINE1:SEMAINE5!AD31)","v":0},{"$f":"SUM(SEMAINE1:SEMAINE5!AE31)","v":0},{"$f":"SUM(SEMAINE1:SEMAINE5!AF31)","v":0},{"$f":"SUM(SEMAINE1:SEMAINE5!AG31)","v":0},{"$f":"SUM(SEMAINE1:SEMAINE5!AH31)","v":0},1]
["Magasin général"]
["xxx",{"$f":"SUM(SEMAINE1:SEMAINE5!B33)","v":0},{"$f":"SUM(SEMAINE1:SEMAINE5!C33)","v":0},{"$f":"SUM(SEMAINE1:SEMAINE5!D33)","v":0},{"$f":"SUM(SEMAINE1:SEMAINE5!E33)","v":0},{"$f":"SUM(SEMAINE1:SEMAINE5!F33)","v":0},{"$f":"SUM(SEMAINE1:SEMAINE5!G33)","v":0},{"$f":"SUM(SEMAINE1:SEMAINE5!H33)","v":0},{"$f":"SUM(SEMAINE1:SEMAINE5!I33)","v":0},{"$f":"SUM(SEMAINE1:SEMAINE5!J33)","v":0},{"$f":"SUM(SEMAINE1:SEMAINE5!K33)","v":0},{"$f":"SUM(SEMAINE1:SEMAINE5!L33)","v":0},{"$f":"SUM(SEMAINE1:SEMAINE5!M33)","v":0},{"$f":"SUM(SEMAINE1:SEMAINE5!N33)","v":0},{"$f":"SUM(SEMAINE1:SEMAINE5!O33)","v":0},{"$f":"SUM(SEMAINE1:SEMAINE5!P33)","v":0},{"$f":"SUM(SEMAINE1:SEMAINE5!Q33)","v":0},{"$f":"SUM(SEMAINE1:SEMAINE5!R33)","v":0},{"$f":"SUM(SEMAINE1:SEMAINE5!S33)","v":0},{"$f":"SUM(SEMAINE1:SEMAINE5!T33)","v":0},{"$f":"SUM(SEMAINE1:SEMAINE5!U33)","v":0},{"$f":"SUM(SEMAINE1:SEMAINE5!V33)","v":0},{"$f":"SUM(SEMAINE1:SEMAINE5!W33)","v":0},{"$f":"SUM(SEMAINE1:SEMAINE5!X33)","v":0},{"$f":"SUM(SEMAINE1:SEMAINE5!Y33)","v":0},{"$f":"SUM(SEMAINE1:SEMAINE5!Z33)","v":0},{"$f":"SUM(SEMAINE1:SEMAINE5!AA33)","v":0},{"$f":"SUM(SEMAINE1:SEMAINE5!AB33)","v":0},{"$f":"SUM(SEMAINE1:SEMAINE5!AC33)","v":0},{"$f":"SUM(SEMAINE1:SEMAINE5!AD33)","v":0},{"$f":"SUM(SEMAINE1:SEMAINE5!AE33)","v":0},{"$f":"SUM(SEMAINE1:SEMAINE5!AF33)","v":0},{"$f":"SUM(SEMAINE1:SEMAINE5!AG33)","v":0},{"$f":"SUM(SEMAINE1:SEMAINE5!AH33)","v":0},0]
["xxx",{"$f":"SUM(SEMAINE1:SEMAINE5!B34)","v":0},{"$f":"SUM(SEMAINE1:SEMAINE5!C34)","v":0},{"$f":"SUM(SEMAINE1:SEMAINE5!D34)","v":0},{"$f":"SUM(SEMAINE1:SEMAINE5!E34)","v":0},{"$f":"SUM(SEMAINE1:SEMAINE5!F34)","v":0},{"$f":"SUM(SEMAINE1:SEMAINE5!G34)","v":0},{"$f":"SUM(SEMAINE1:SEMAINE5!H34)","v":0},{"$f":"SUM(SEMAINE1:SEMAINE5!I34)","v":0},{"$f":"SUM(SEMAINE1:SEMAINE5!J34)","v":0},{"$f":"SUM(SEMAINE1:SEMAINE5!K34)","v":0},{"$f":"SUM(SEMAINE1:SEMAINE5!L34)","v":0},{"$f":"SUM(SEMAINE1:SEMAINE5!M34)","v":0},{"$f":"SUM(SEMAINE1:SEMAINE5!N34)","v":0},{"$f":"SUM(SEMAINE1:SEMAINE5!O34)","v":0},{"$f":"SUM(SEMAINE1:SEMAINE5!P34)","v":0},{"$f":"SUM(SEMAINE1:SEMAINE5!Q34)","v":0},{"$f":"SUM(SEMAINE1:SEMAINE5!R34)","v":0},{"$f":"SUM(SEMAINE1:SEMAINE5!S34)","v":0},{"$f":"SUM(SEMAINE1:SEMAINE5!T34)","v":0},{"$f":"SUM(SEMAINE1:SEMAINE5!U34)","v":0},{"$f":"SUM(SEMAINE1:SEMAINE5!V34)","v":0},{"$f":"SUM(SEMAINE1:SEMAINE5!W34)","v":0},{"$f":"SUM(SEMAINE1:SEMAINE5!X34)","v":0},{"$f":"SUM(SEMAINE1:SEMAINE5!Y34)","v":0},{"$f":"SUM(SEMAINE1:SEMAINE5!Z34)","v":0},{"$f":"SUM(SEMAINE1:SEMAINE5!AA34)","v":0},{"$f":"SUM(SEMAINE1:SEMAINE5!AB34)","v":0},{"$f":"SUM(SEMAINE1:SEMAINE5!AC34)","v":0},{"$f":"SUM(SEMAINE1:SEMAINE5!AD34)","v":0},{"$f":"SUM(SEMAINE1:SEMAINE5!AE34)","v":0},{"$f":"SUM(SEMAINE1:SEMAINE5!AF34)","v":0},{"$f":"SUM(SEMAINE1:SEMAINE5!AG34)","v":0},{"$f":"SUM(SEMAINE1:SEMAINE5!AH34)","v":0},0]
["xxx",{"$f":"SUM(SEMAINE1:SEMAINE5!B35)","v":0},{"$f":"SUM(SEMAINE1:SEMAINE5!C35)","v":0},{"$f":"SUM(SEMAINE1:SEMAINE5!D35)","v":0},{"$f":"SUM(SEMAINE1:SEMAINE5!E35)","v":0},{"$f":"SUM(SEMAINE1:SEMAINE5!F35)","v":0},{"$f":"SUM(SEMAINE1:SEMAINE5!G35)","v":0},{"$f":"SUM(SEMAINE1:SEMAINE5!H35)","v":0},{"$f":"SUM(SEMAINE1:SEMAINE5!I35)","v":0},{"$f":"SUM(SEMAINE1:SEMAINE5!J35)","v":0},{"$f":"SUM(SEMAINE1:SEMAINE5!K35)","v":0},{"$f":"SUM(SEMAINE1:SEMAINE5!L35)","v":0},{"$f":"SUM(SEMAINE1:SEMAINE5!M35)","v":0},{"$f":"SUM(SEMAINE1:SEMAINE5!N35)","v":0},{"$f":"SUM(SEMAINE1:SEMAINE5!O35)","v":0},{"$f":"SUM(SEMAINE1:SEMAINE5!P35)","v":0},{"$f":"SUM(SEMAINE1:SEMAINE5!Q35)","v":0},{"$f":"SUM(SEMAINE1:SEMAINE5!R35)","v":0},{"$f":"SUM(SEMAINE1:SEMAINE5!S35)","v":0},{"$f":"SUM(SEMAINE1:SEMAINE5!T35)","v":0},{"$f":"SUM(SEMAINE1:SEMAINE5!U35)","v":0},{"$f":"SUM(SEMAINE1:SEMAINE5!V35)","v":0},{"$f":"SUM(SEMAINE1:SEMAINE5!W35)","v":0},{"$f":"SUM(SEMAINE1:SEMAINE5!X35)","v":0},{"$f":"SUM(SEMAINE1:SEMAINE5!Y35)","v":0},{"$f":"SUM(SEMAINE1:SEMAINE5!Z35)","v":0},{"$f":"SUM(SEMAINE1:SEMAINE5!AA35)","v":0},{"$f":"SUM(SEMAINE1:SEMAINE5!AB35)","v":0},{"$f":"SUM(SEMAINE1:SEMAINE5!AC35)","v":0},{"$f":"SUM(SEMAINE1:SEMAINE5!AD35)","v":0},{"$f":"SUM(SEMAINE1:SEMAINE5!AE35)","v":0},{"$f":"SUM(SEMAINE1:SEMAINE5!AF35)","v":0},{"$f":"SUM(SEMAINE1:SEMAINE5!AG35)","v":0},{"$f":"SUM(SEMAINE1:SEMAINE5!AH35)","v":0},0]
["xxx",{"$f":"SUM(SEMAINE1:SEMAINE5!B36)","v":0},{"$f":"SUM(SEMAINE1:SEMAINE5!C36)","v":0},{"$f":"SUM(SEMAINE1:SEMAINE5!D36)","v":0},{"$f":"SUM(SEMAINE1:SEMAINE5!E36)","v":0},{"$f":"SUM(SEMAINE1:SEMAINE5!F36)","v":0},{"$f":"SUM(SEMAINE1:SEMAINE5!G36)","v":0},{"$f":"SUM(SEMAINE1:SEMAINE5!H36)","v":0},{"$f":"SUM(SEMAINE1:SEMAINE5!I36)","v":0},{"$f":"SUM(SEMAINE1:SEMAINE5!J36)","v":0},{"$f":"SUM(SEMAINE1:SEMAINE5!K36)","v":0},{"$f":"SUM(SEMAINE1:SEMAINE5!L36)","v":0},{"$f":"SUM(SEMAINE1:SEMAINE5!M36)","v":0},{"$f":"SUM(SEMAINE1:SEMAINE5!N36)","v":0},{"$f":"SUM(SEMAINE1:SEMAINE5!O36)","v":0},{"$f":"SUM(SEMAINE1:SEMAINE5!P36)","v":0},{"$f":"SUM(SEMAINE1:SEMAINE5!Q36)","v":0},{"$f":"SUM(SEMAINE1:SEMAINE5!R36)","v":0},{"$f":"SUM(SEMAINE1:SEMAINE5!S36)","v":0},{"$f":"SUM(SEMAINE1:SEMAINE5!T36)","v":0},{"$f":"SUM(SEMAINE1:SEMAINE5!U36)","v":0},{"$f":"SUM(SEMAINE1:SEMAINE5!V36)","v":0},{"$f":"SUM(SEMAINE1:SEMAINE5!W36)","v":0},{"$f":"SUM(SEMAINE1:SEMAINE5!X36)","v":0},{"$f":"SUM(SEMAINE1:SEMAINE5!Y36)","v":0},{"$f":"SUM(SEMAINE1:SEMAINE5!Z36)","v":0},{"$f":"SUM(SEMAINE1:SEMAINE5!AA36)","v":0},{"$f":"SUM(SEMAINE1:SEMAINE5!AB36)","v":0},{"$f":"SUM(SEMAINE1:SEMAINE5!AC36)","v":0},{"$f":"SUM(SEMAINE1:SEMAINE5!AD36)","v":0},{"$f":"SUM(SEMAINE1:SEMAINE5!AE36)","v":0},{"$f":"SUM(SEMAINE1:SEMAINE5!AF36)","v":0},{"$f":"SUM(SEMAINE1:SEMAINE5!AG36)","v":0},{"$f":"SUM(SEMAINE1:SEMAINE5!AH36)","v":0},0]
["TOTAL ",{"$f":"SUM(B4:B36)","v":122},{"$f":"SUM(C4:C36)","v":0},0,0,0,0,0,0,10,34,0,0,0,0,0,0,0,0,0,0,0,0,0,0,0,0,0,0,0,0,0,0,0,132]
[]
[]
[]
["total des heures"]
["total ENT"]
["magasin "]
["heures GESINDUS"]

{"sheet":"PERIODE DE PAIE","index":8,"n_rows":366,"n_cols":13,"rows_kept":366,"cut":false,"hidden":false,"merged":[]}
["2017-12-11",null,"PERIODE DE PAIE"]
[null,"janvier","février","mars","avril","mai","juin","juillet","août","septembre","octobre","novembre","décembre"]
["2017-12-11","2017-12-11","2018-01-15","2018-02-12","2018-03-19","2018-04-16","2018-05-14","2018-06-18","2018-07-16","2018-08-13","2018-09-17","2018-10-15","2018-11-12"]
["2017-12-12","2017-12-12","2018-01-16","2018-02-13","2018-03-20","2018-04-17","2018-05-15","2018-06-19","2018-07-17","2018-08-14","2018-09-18","2018-10-16","2018-11-13"]
["2017-12-13","2017-12-13","2018-01-17","2018-02-14","2018-03-21","2018-04-18","2018-05-16","2018-06-20","2018-07-18","2018-08-15","2018-09-19","2018-10-17","2018-11-14"]
["2017-12-14","2017-12-14","2018-01-18","2018-02-15","2018-03-22","2018-04-19","2018-05-17","2018-06-21","2018-07-19","2018-08-16","2018-09-20","2018-10-18","2018-11-15"]
["2017-12-15","2017-12-15","2018-01-19","2018-02-16","2018-03-23","2018-04-20","2018-05-18","2018-06-22","2018-07-20","2018-08-17","2018-09-21","2018-10-19","2018-11-16"]
["2017-12-16","2017-12-16","2018-01-20","2018-02-17","2018-03-24","2018-04-21","2018-05-19","2018-06-23","2018-07-21","2018-08-18","2018-09-22","2018-10-20","2018-11-17"]
["2017-12-17","2017-12-17","2018-01-21","2018-02-18","2018-03-25","2018-04-22","2018-05-20","2018-06-24","2018-07-22","2018-08-19","2018-09-23","2018-10-21","2018-11-18"]
["2017-12-18","2017-12-18","2018-01-22","2018-02-19","2018-03-26","2018-04-23","2018-05-21","2018-06-25","2018-07-23","2018-08-20","2018-09-24","2018-10-22","2018-11-19"]
["2017-12-19","2017-12-19","2018-01-23","2018-02-20","2018-03-27","2018-04-24","2018-05-22","2018-06-26","2018-07-24","2018-08-21","2018-09-25","2018-10-23","2018-11-20"]
["2017-12-20","2017-12-20","2018-01-24","2018-02-21","2018-03-28","2018-04-25","2018-05-23","2018-06-27","2018-07-25","2018-08-22","2018-09-26","2018-10-24","2018-11-21"]
["2017-12-21","2017-12-21","2018-01-25","2018-02-22","2018-03-29","2018-04-26","2018-05-24","2018-06-28","2018-07-26","2018-08-23","2018-09-27","2018-10-25","2018-11-22"]
["2017-12-22","2017-12-22","2018-01-26","2018-02-23","2018-03-30","2018-04-27","2018-05-25","2018-06-29","2018-07-27","2018-08-24","2018-09-28","2018-10-26","2018-11-23"]
["2017-12-23","2017-12-23","2018-01-27","2018-02-24","2018-03-31","2018-04-28","2018-05-26","2018-06-30","2018-07-28","2018-08-25","2018-09-29","2018-10-27","2018-11-24"]
["2017-12-24","2017-12-24","2018-01-28","2018-02-25","2018-04-01","2018-04-29","2018-05-27","2018-07-01","2018-07-29","2018-08-26","2018-09-30","2018-10-28","2018-11-25"]
["2017-12-25","2017-12-25","2018-01-29","2018-02-26","2018-04-02","2018-04-30","2018-05-28","2018-07-02","2018-07-30","2018-08-27","2018-10-01","2018-10-29","2018-11-26"]
["2017-12-26","2017-12-26","2018-01-30","2018-02-27","2018-04-03","2018-05-01","2018-05-29","2018-07-03","2018-07-31","2018-08-28","2018-10-02","2018-10-30","2018-11-27"]
["2017-12-27","2017-12-27","2018-01-31","2018-02-28","2018-04-04","2018-05-02","2018-05-30","2018-07-04","2018-08-01","2018-08-29","2018-10-03","2018-10-31","2018-11-28"]
["2017-12-28","2017-12-28","2018-02-01","2018-03-01","2018-04-05","2018-05-03","2018-05-31","2018-07-05","2018-08-02","2018-08-30","2018-10-04","2018-11-01","2018-11-29"]
["2017-12-29","2017-12-29","2018-02-02","2018-03-02","2018-04-06","2018-05-04","2018-06-01","2018-07-06","2018-08-03","2018-08-31","2018-10-05","2018-11-02","2018-11-30"]
["2017-12-30","2017-12-30","2018-02-03","2018-03-03","2018-04-07","2018-05-05","2018-06-02","2018-07-07","2018-08-04","2018-09-01","2018-10-06","2018-11-03","2018-12-01"]
["2017-12-31","2017-12-31","2018-02-04","2018-03-04","2018-04-08","2018-05-06","2018-06-03","2018-07-08","2018-08-05","2018-09-02","2018-10-07","2018-11-04","2018-12-02"]
["2018-01-01","2018-01-01","2018-02-05","2018-03-05","2018-04-09","2018-05-07","2018-06-04","2018-07-09","2018-08-06","2018-09-03","2018-10-08","2018-11-05","2018-12-03"]
["2018-01-02","2018-01-02","2018-02-06","2018-03-06","2018-04-10","2018-05-08","2018-06-05","2018-07-10","2018-08-07","2018-09-04","2018-10-09","2018-11-06","2018-12-04"]
["2018-01-03","2018-01-03","2018-02-07","2018-03-07","2018-04-11","2018-05-09","2018-06-06","2018-07-11","2018-08-08","2018-09-05","2018-10-10","2018-11-07","2018-12-05"]
["2018-01-04","2018-01-04","2018-02-08","2018-03-08","2018-04-12","2018-05-10","2018-06-07","2018-07-12","2018-08-09","2018-09-06","2018-10-11","2018-11-08","2018-12-06"]
["2018-01-05","2018-01-05","2018-02-09","2018-03-09","2018-04-13","2018-05-11","2018-06-08","2018-07-13","2018-08-10","2018-09-07","2018-10-12","2018-11-09","2018-12-07"]
["2018-01-06","2018-01-06","2018-02-10","2018-03-10","2018-04-14","2018-05-12","2018-06-09","2018-07-14","2018-08-11","2018-09-08","2018-10-13","2018-11-10","2018-12-08"]
["2018-01-07","2018-01-07","2018-02-11","2018-03-11","2018-04-15","2018-05-13","2018-06-10","2018-07-15","2018-08-12","2018-09-09","2018-10-14","2018-11-11","2018-12-09"]
["2018-01-08","2018-01-08",null,"2018-03-12",null,null,"2018-06-11",null,null,"2018-09-10"]
["2018-01-09","2018-01-09",null,"2018-03-13",null,null,"2018-06-12",null,null,"2018-09-11"]
["2018-01-10","2018-01-10",null,"2018-03-14",null,null,"2018-06-13",null,null,"2018-09-12"]
["2018-01-11","2018-01-11",null,"2018-03-15",null,null,"2018-06-14",null,null,"2018-09-13"]
["2018-01-12","2018-01-12",null,"2018-03-16",null,null,"2018-06-15",null,null,"2018-09-14"]
["2018-01-13","2018-01-13",null,"2018-03-17",null,null,"2018-06-16",null,null,"2018-09-15"]
["2018-01-14","2018-01-14",null,"2018-03-18",null,null,"2018-06-17",null,null,"2018-09-16"]
["2018-01-15"]
["2018-01-16"]
["2018-01-17"]
["2018-01-18"]
["2018-01-19"]
["2018-01-20"]
["2018-01-21"]
["2018-01-22"]
["2018-01-23"]
["2018-01-24"]
["2018-01-25"]
["2018-01-26"]
["2018-01-27"]
["2018-01-28"]
["2018-01-29"]
["2018-01-30"]
["2018-01-31"]
["2018-02-01"]
["2018-02-02"]
["2018-02-03"]
["2018-02-04"]
["2018-02-05"]
["2018-02-06"]
["2018-02-07"]
["2018-02-08"]
["2018-02-09"]
["2018-02-10"]
["2018-02-11"]
["2018-02-12"]
["2018-02-13"]
["2018-02-14"]
["2018-02-15"]
["2018-02-16"]
["2018-02-17"]
["2018-02-18"]
["2018-02-19"]
["2018-02-20"]
["2018-02-21"]
["2018-02-22"]
["2018-02-23"]
["2018-02-24"]
["2018-02-25"]
["2018-02-26"]
["2018-02-27"]
["2018-02-28"]
["2018-03-01"]
["2018-03-02"]
["2018-03-03"]
["2018-03-04"]
["2018-03-05"]
["2018-03-06"]
["2018-03-07"]
["2018-03-08"]
["2018-03-09"]
["2018-03-10"]
["2018-03-11"]
["2018-03-12"]
["2018-03-13"]
["2018-03-14"]
["2018-03-15"]
["2018-03-16"]
["2018-03-17"]
["2018-03-18"]
["2018-03-19"]
["2018-03-20"]
["2018-03-21"]
["2018-03-22"]
["2018-03-23"]
["2018-03-24"]
["2018-03-25"]
["2018-03-26"]
["2018-03-27"]
["2018-03-28"]
["2018-03-29"]
["2018-03-30"]
["2018-03-31"]
["2018-04-01"]
["2018-04-02"]
["2018-04-03"]
["2018-04-04"]
["2018-04-05"]
["2018-04-06"]
["2018-04-07"]
["2018-04-08"]
["2018-04-09"]
["2018-04-10"]
["2018-04-11"]
["2018-04-12"]
["2018-04-13"]
["2018-04-14"]
["2018-04-15"]
["2018-04-16"]
["2018-04-17"]
["2018-04-18"]
["2018-04-19"]
["2018-04-20"]
["2018-04-21"]
["2018-04-22"]
["2018-04-23"]
["2018-04-24"]
["2018-04-25"]
["2018-04-26"]
["2018-04-27"]
["2018-04-28"]
["2018-04-29"]
["2018-04-30"]
["2018-05-01"]
["2018-05-02"]
["2018-05-03"]
["2018-05-04"]
["2018-05-05"]
["2018-05-06"]
["2018-05-07"]
["2018-05-08"]
["2018-05-09"]
["2018-05-10"]
["2018-05-11"]
["2018-05-12"]
["2018-05-13"]
["2018-05-14"]
["2018-05-15"]
["2018-05-16"]
["2018-05-17"]
["2018-05-18"]
["2018-05-19"]
["2018-05-20"]
["2018-05-21"]
["2018-05-22"]
["2018-05-23"]
["2018-05-24"]
["2018-05-25"]
["2018-05-26"]
["2018-05-27"]
["2018-05-28"]
["2018-05-29"]
["2018-05-30"]
["2018-05-31"]
["2018-06-01"]
["2018-06-02"]
["2018-06-03"]
["2018-06-04"]
["2018-06-05"]
["2018-06-06"]
["2018-06-07"]
["2018-06-08"]
["2018-06-09"]
["2018-06-10"]
["2018-06-11"]
["2018-06-12"]
["2018-06-13"]
["2018-06-14"]
["2018-06-15"]
["2018-06-16"]
["2018-06-17"]
["2018-06-18"]
["2018-06-19"]
["2018-06-20"]
["2018-06-21"]
["2018-06-22"]
["2018-06-23"]
["2018-06-24"]
["2018-06-25"]
["2018-06-26"]
["2018-06-27"]
["2018-06-28"]
["2018-06-29"]
["2018-06-30"]
["2018-07-01"]
["2018-07-02"]
["2018-07-03"]
["2018-07-04"]
["2018-07-05"]
["2018-07-06"]
["2018-07-07"]
["2018-07-08"]
["2018-07-09"]
["2018-07-10"]
["2018-07-11"]
["2018-07-12"]
["2018-07-13"]
["2018-07-14"]
["2018-07-15"]
["2018-07-16"]
["2018-07-17"]
["2018-07-18"]
["2018-07-19"]
["2018-07-20"]
["2018-07-21"]
["2018-07-22"]
["2018-07-23"]
["2018-07-24"]
["2018-07-25"]
["2018-07-26"]
["2018-07-27"]
["2018-07-28"]
["2018-07-29"]
["2018-07-30"]
["2018-07-31"]
["2018-08-01"]
["2018-08-02"]
["2018-08-03"]
["2018-08-04"]
["2018-08-05"]
["2018-08-06"]
["2018-08-07"]
["2018-08-08"]
["2018-08-09"]
["2018-08-10"]
["2018-08-11"]
["2018-08-12"]
["2018-08-13"]
["2018-08-14"]
["2018-08-15"]
["2018-08-16"]
["2018-08-17"]
["2018-08-18"]
["2018-08-19"]
["2018-08-20"]
["2018-08-21"]
["2018-08-22"]
["2018-08-23"]
["2018-08-24"]
["2018-08-25"]
["2018-08-26"]
["2018-08-27"]
["2018-08-28"]
["2018-08-29"]
["2018-08-30"]
["2018-08-31"]
["2018-09-01"]
["2018-09-02"]
["2018-09-03"]
["2018-09-04"]
["2018-09-05"]
["2018-09-06"]
["2018-09-07"]
["2018-09-08"]
["2018-09-09"]
["2018-09-10"]
["2018-09-11"]
["2018-09-12"]
["2018-09-13"]
["2018-09-14"]
["2018-09-15"]
["2018-09-16"]
["2018-09-17"]
["2018-09-18"]
["2018-09-19"]
["2018-09-20"]
["2018-09-21"]
["2018-09-22"]
["2018-09-23"]
["2018-09-24"]
["2018-09-25"]
["2018-09-26"]
["2018-09-27"]
["2018-09-28"]
["2018-09-29"]
["2018-09-30"]
["2018-10-01"]
["2018-10-02"]
["2018-10-03"]
["2018-10-04"]
["2018-10-05"]
["2018-10-06"]
["2018-10-07"]
["2018-10-08"]
["2018-10-09"]
["2018-10-10"]
["2018-10-11"]
["2018-10-12"]
["2018-10-13"]
["2018-10-14"]
["2018-10-15"]
["2018-10-16"]
["2018-10-17"]
["2018-10-18"]
["2018-10-19"]
["2018-10-20"]
["2018-10-21"]
["2018-10-22"]
["2018-10-23"]
["2018-10-24"]
["2018-10-25"]
["2018-10-26"]
["2018-10-27"]
["2018-10-28"]
["2018-10-29"]
["2018-10-30"]
["2018-10-31"]
["2018-11-01"]
["2018-11-02"]
["2018-11-03"]
["2018-11-04"]
["2018-11-05"]
["2018-11-06"]
["2018-11-07"]
["2018-11-08"]
["2018-11-09"]
["2018-11-10"]
["2018-11-11"]
["2018-11-12"]
["2018-11-13"]
["2018-11-14"]
["2018-11-15"]
["2018-11-16"]
["2018-11-17"]
["2018-11-18"]
["2018-11-19"]
["2018-11-20"]
["2018-11-21"]
["2018-11-22"]
["2018-11-23"]
["2018-11-24"]
["2018-11-25"]
["2018-11-26"]
["2018-11-27"]
["2018-11-28"]
["2018-11-29"]
["2018-11-30"]
["2018-12-01"]
["2018-12-02"]
["2018-12-03"]
["2018-12-04"]
["2018-12-05"]
["2018-12-06"]
["2018-12-07"]
["2018-12-08"]
["2018-12-09"]

{"sheet":"MATRICE","index":9,"n_rows":44,"n_cols":35,"rows_kept":44,"cut":false,"hidden":false,"merged":[]}
["2017-12-11",{"$f":"MID(CELL(\"filename\",B1),FIND(\"]\",CELL(\"filename\",B1))+1,32)","v":"MATRICE"},null,null,null,"ABSENCES",null,null,null,null,null,null,null,null,null,null,null,null,null,null,null,null,null,null,null,null,null,null,"INDEMNITE ET PRIME"]
[{"$f":"TEXT(B1,\"jjjj\")","v":"MATRICE"},"présence","heures de\nrappel à 200%","heures de\n rappel à\n 300 %","heures\nsupplém\nà 150 %","grève","jour\nférié \nchômé","congé\npayé*","Réduction temps travail","repos \ncompens\nastreinte* ","astreinte\npayée\n(2h75)+absence autorisée payée","abattement\nheures\nsuplémen. non payée","repos \ncompens\nheures suppl.","repos \ncompens\nsur heures de\nnuit*","réunion\nusine","heures\nvisite \nmédicale","absence\n maladie","accident du\ntravail","congés\nconvent","congés\nnaissance","abs non rémunérée","réunion hors temps travail CE","réunion hors temps travail DP","réunion hors temps travail CHSCT","CCE","Heure délégation CE","Heure délégation DP","Heure délégation CHSCT","Indemnité \nde \nrappel","idemnité \nde\ntransport","indemnité\nde\ntransport","prime de\nresponsabilité","prime\nconditions\nparticulières","formation","total heures"]
["Noms","P","HR2","HR3","HS2","GR","JF0","CP","RTT","RC4","AA1","AHS","RC3","RC8","RIU","VM","AM","AT1","CC","CN",null,null,null,null,null,null,null,null,"IR1","IT","ITL","PR","PS","FT"]
["xxx",null,null,null,null,null,null,null,null,null,null,null,null,null,null,null,null,null,null,null,null,null,null,null,null,null,null,null,null,null,null,null,null,null,{"$f":"B4+H4+I4+J4+M4+N4+AH4","v":0}]
["xxx",null,null,null,null,null,null,null,null,null,null,null,null,null,null,null,null,null,null,null,null,null,null,null,null,null,null,null,null,null,null,null,null,null,{"$f":"B5+H5+I5+J5+M5+N5+AH5","v":0}]
["xxx",null,null,null,null,null,null,null,null,null,null,null,null,null,null,null,null,null,null,null,null,null,null,null,null,null,null,null,null,null,null,null,null,null,0]
["xxx",null,null,null,null,null,null,null,null,null,null,null,null,null,null,null,null,null,null,null,null,null,null,null,null,null,null,null,null,null,null,null,null,null,0]
["xxx",null,null,null,null,null,null,null,null,null,null,null,null,null,null,null,null,null,null,null,null,null,null,null,null,null,null,null,null,null,null,null,null,null,0]
["xxx",null,null,null,null,null,null,null,null,null,null,null,null,null,null,null,null,null,null,null,null,null,null,null,null,null,null,null,null,null,null,null,null,null,0]
["xxx",null,null,null,null,null,null,null,null,null,null,null,null,null,null,null,null,null,null,null,null,null,null,null,null,null,null,null,null,null,null,null,null,null,0]
["xxx",null,null,null,null,null,null,null,null,null,null,null,null,null,null,null,null,null,null,null,null,null,null,null,null,null,null,null,null,null,null,null,null,null,0]
["xxx",null,null,null,null,null,null,null,null,null,null,null,null,null,null,null,null,null,null,null,null,null,null,null,null,null,null,null,null,null,null,null,null,null,0]
["xxx",null,null,null,null,null,null,null,null,null,null,null,null,null,null,null,null,null,null,null,null,null,null,null,null,null,null,null,null,null,null,null,null,null,0]
["xxx",null,null,null,null,null,null,null,null,null,null,null,null,null,null,null,null,null,null,null,null,null,null,null,null,null,null,null,null,null,null,null,null,null,0]
["xxx",null,null,null,null,null,null,null,null,null,null,null,null,null,null,null,null,null,null,null,null,null,null,null,null,null,null,null,null,null,null,null,null,null,0]
["xxx",null,null,null,null,null,null,null,null,null,null,null,null,null,null,null,null,null,null,null,null,null,null,null,null,null,null,null,null,null,null,null,null,null,0]
["xxx",null,null,null,null,null,null,null,null,null,null,null,null,null,null,null,null,null,null,null,null,null,null,null,null,null,null,null,null,null,null,null,null,null,0]
["xxx",null,null,null,null,null,null,null,null,null,null,null,null,null,null,null,null,null,null,null,null,null,null,null,null,null,null,null,null,null,null,null,null,null,0]
["xxx",null,null,null,null,null,null,null,null,null,null,null,null,null,null,null,null,null,null,null,null,null,null,null,null,null,null,null,null,null,null,null,null,null,0]
["xxx",null,null,null,null,null,null,null,null,null,null,null,null,null,null,null,null,null,null,null,null,null,null,null,null,null,null,null,null,null,null,null,null,null,0]
["atelier électrique"]
["xxx",null,null,null,null,null,null,null,null,null,null,null,null,null,null,null,null,null,null,null,null,null,null,null,null,null,null,null,null,null,null,null,null,null,0]
["xxx",null,null,null,null,null,null,null,null,null,null,null,null,null,null,null,null,null,null,null,null,null,null,null,null,null,null,null,null,null,null,null,null,null,0]
["xxx",null,null,null,null,null,null,null,null,null,null,null,null,null,null,null,null,null,null,null,null,null,null,null,null,null,null,null,null,null,null,null,null,null,0]
["xxx",null,null,null,null,null,null,null,null,null,null,null,null,null,null,null,null,null,null,null,null,null,null,null,null,null,null,null,null,null,null,null,null,null,0]
["xxx",null,null,null,null,null,null,null,null,null,null,null,null,null,null,null,null,null,null,null,null,null,null,null,null,null,null,null,null,null,null,null,null,null,0]
["xxx",null,null,null,null,null,null,null,null,null,null,null,null,null,null,null,null,null,null,null,null,null,null,null,null,null,null,null,null,null,null,null,null,null,0]
["xxx",null,null,null,null,null,null,null,null,null,null,null,null,null,null,null,null,null,null,null,null,null,null,null,null,null,null,null,null,null,null,null,null,null,0]
["xxx",null,null,null,null,null,null,null,null,null,null,null,null,null,null,null,null,null,null,null,null,null,null,null,null,null,null,null,null,null,null,null,null,null,0]
["xxx",null,null,null,null,null,null,null,null,null,null,null,null,null,null,null,null,null,null,null,null,null,null,null,null,null,null,null,null,null,null,null,null,null,0]
["xxx",null,null,null,null,null,null,null,null,null,null,null,null,null,null,null,null,null,null,null,null,null,null,null,null,null,null,null,null,null,null,null,null,null,0]
["Magasin général"]
["xxx",null,null,null,null,null,null,null,null,null,null,null,null,null,null,null,null,null,null,null,null,null,null,null,null,null,null,null,null,null,null,null,null,null,0]
["xxx",null,null,null,null,null,null,null,null,null,null,null,null,null,null,null,null,null,null,null,null,null,null,null,null,null,null,null,null,null,null,null,null,null,0]
["xxx",null,null,null,null,null,null,null,null,null,null,null,null,null,null,null,null,null,null,null,null,null,null,null,null,null,null,null,null,null,null,null,null,null,0]
["xxx",null,null,null,null,null,null,null,null,null,null,null,null,null,null,null,null,null,null,null,null,null,null,null,null,null,null,null,null,null,null,null,null,null,0]
["TOTAL ",{"$f":"SUM(B4:B36)","v":0},{"$f":"SUM(C4:C36)","v":0},0,0,0,0,0,0,0,0,0,0,0,0,0,0,0,0,0,0,0,0,0,0,0,0,0,0,0,0,0,0,0,0]
[]
[]
[]
["total des heures"]
["total ENT"]
["magasin "]
["heures GESINDUS"]

{"sheet":"EXPLICATIONS","index":10,"n_rows":61,"n_cols":14,"rows_kept":61,"cut":false,"hidden":false,"merged":[]}
[]
["je voudrais créer une feuille par jour selon la période de paie mensuelle"]
[]
["Je voudrais que chaque onglet porte la date du jour et que cette date soit reportée en haut de la page",null,null,null,null,null,null,null,null,null," j'y suis arrivée"]
[]
["Ensuite, je l'enregistre sous par exemple \"janvier\" et le mois suivant \"février\" ainsi de suite jusqu'à décembre."]
[]
["Je voudrais que la semaine 1, du mois en cours, récapitule les données des onglets correspondant à la semaine 1 et ainsi de suite ",null,null,null,null,null,null,null,null,null,null,null,null," j'y suis arrivée"]
[]
["Je voudrais que les 4 ou 5 semaines soient récapitulées dans l'onglet \"récap paie\"",null,null,null,null,null,null,null,null," j'y suis arrivée"]
[]
["Evidemment tous les ans, on reproduit c'est la même chose."]
[]
["En tout cas merci d'avance."]
[]
[]
[]
[]
["date sur l'onglet : ",null,null,null,null,null,null,null,"j'ai trouvé cette macro, mais je n'arrive pas à modifier les dates"]
[null,null,null,null,null,null,null,null,"je voulais de telle date à telle date"]
[]
[]
[]
[]
[]
[]
[]
[]
[]
[]
[]
[]
[]
[]
[]
[]
["date de l'onglet dans cellule "]
[]
[]
[]
[]
[]
["jour de la semaine",null,null,"dans cellule, format cellule - personnalisé - taper jjj"]
[]
[]
[]
[]
[]
[]
[]
["si tes données sont positionnées de la même façon sur chacune de tes feuilles et que tu voudrais par exemple additionner toutes les cellules A1 "]
["tu as les feuilles: "]
["Feuil1 "]
["Feuil2 "]
["Feuil3 "]
[]
["tu peux faire =SOMME(Feuil1:Feuil3!A1) ",null,null,null,null,"pour ce tableau, ce sera ",null,"SOMME(SEMAINE1:SEMAINE5!B4)"]
[]
[]
[]
[null,"http://www.pommehappy.fr/2012/11/14/astuce-excel-n44-additionner-plusieurs-onglets-rapidement/"]